Service Delivery Area(T),Service Delivery Team(T),CostC,ExpenditureGroup(T),Account(T),Supplier Name(T),Trans Date,Amount
Adult Social Services,Access & Enablement,HMAA,Supplies & Services,Other Expenses,TV LICENSING,12/06/2014,145.50
Adult Social Services,Access & Enablement,HMAA,Supplies & Services,Service Contracts,SRCL LTD,23/06/2014,964.01
Adult Social Services,Access & Enablement,HMAA,Supplies & Services,Other Expenses,RENTOKIL INITIAL UK LIMITED,23/06/2014,174.66
Adult Social Services,Access & Enablement,HMAA,Supplies & Services,Other Expenses,TV LICENSING,25/06/2014,-145.50
Adult Social Services,Access & Enablement,HOAC,Supplies & Services,Purchased Meals,APETITO LTD,12/06/2014,996.49
Adult Social Services,Access & Enablement,HOAC,Supplies & Services,Purchased Meals,APETITO LTD,12/06/2014,"1,146.69"
Adult Social Services,Access & Enablement,HOAC,Supplies & Services,Purchased Meals,APETITO LTD,12/06/2014,904.69
Adult Social Services,Access & Enablement,HOAC,Supplies & Services,Purchased Meals,APETITO LTD,05/06/2014,223.27
Adult Social Services,Access & Enablement,HOAC,Supplies & Services,Purchased Meals,APETITO LTD,03/06/2014,172.01
Adult Social Services,Access & Enablement,HOAC,Supplies & Services,Purchased Meals,APETITO LTD,03/06/2014,121.74
Adult Social Services,Access & Enablement,HOAC,Supplies & Services,Purchased Meals,APETITO LTD,04/06/2014,127.13
Adult Social Services,Access & Enablement,HOAC,Supplies & Services,Purchased Meals,APETITO LTD,27/06/2014,873.83
Adult Social Services,Access & Enablement,HOAC,Supplies & Services,Purchased Meals,APETITO LTD,27/06/2014,148.16
Adult Social Services,Access & Enablement,HOAC,Supplies & Services,Purchased Meals,APETITO LTD,25/06/2014,"-1,032.75"
Adult Social Services,Access & Enablement,HOAC,Supplies & Services,Purchased Meals,COVERAGE CARE SERVICES LTD (SY3),25/06/2014,"2,020.18"
Adult Social Services,Access & Enablement,HOAC,Supplies & Services,Purchased Meals,COVERAGE CARE SERVICES LTD (SY3),25/06/2014,789.29
Adult Social Services,Access & Enablement,HOAC,Supplies & Services,Purchased Meals,APETITO LTD,25/06/2014,141.41
Adult Social Services,Access & Enablement,HOAC,Supplies & Services,Purchased Meals,ROYAL VOLUNTARY SERVICES,25/06/2014,261.52
Adult Social Services,Access & Enablement,HOAC,Supplies & Services,Purchased Meals,APETITO LTD,19/06/2014,103.52
Adult Social Services,Access & Enablement,HOAG,Supplies & Services,Translation Services,VISS LTD,03/06/2014,125.00
Adult Social Services,Access & Enablement,HOAG,Supplies & Services,Aids & Appliances,SW RETAIL LTD T/A IC,30/06/2014,165.00
Adult Social Services,Access & Enablement,HOAG,Supplies & Services,Aids & Appliances,ACTION ON HEARING LOSS ,12/06/2014,211.49
Adult Social Services,Access & Enablement,HOAG,Supplies & Services,Aids & Appliances,COBOLT SYSTEMS LTD,20/06/2014,242.80
Adult Social Services,Access & Enablement,HOAG,Supplies & Services,Aids & Appliances,HEARING PRODUCTS INTERNATIONAL LIMITED,10/06/2014,744.00
Adult Social Services,Access & Enablement,HOAP,Supplies & Services,Aids & Appliances,MANGAR INTERNATIONAL LTD,06/06/2014,"3,500.00"
Adult Social Services,Access & Enablement,HOAP,Supplies & Services,Aids & Appliances,MANGAR INTERNATIONAL LTD,06/06/2014,"5,100.00"
Adult Social Services,Access & Enablement,HOAP,Supplies & Services,Aids & Appliances,THE WREKIN HOUSING TRUST (INVOICES ONLY),03/06/2014,213.40
Adult Social Services,Access & Enablement,HOAP,Supplies & Services,Equipment - Repair,AIDSERVICE LTD,05/06/2014,280.40
Adult Social Services,Access & Enablement,HOAP,Supplies & Services,Aids & Appliances,AIDSERVICE LTD,26/06/2014,447.09
Adult Social Services,Access & Enablement,HOAP,Supplies & Services,Aids & Appliances,Easylink,26/06/2014,305.00
Adult Social Services,Access & Enablement,HOAP,Supplies & Services,Aids & Appliances,MIDEQUIP LTD,27/06/2014,"1,295.00"
Adult Social Services,Access & Enablement,HOAP,Supplies & Services,Equipment - Repair,TOTAL HYGIENE LIMITED,18/06/2014,180.00
Adult Social Services,Access & Enablement,HOAP,Supplies & Services,Equipment - Repair,TOTAL HYGIENE LIMITED,18/06/2014,180.00
Adult Social Services,Access & Enablement,HOAP,Supplies & Services,Equipment - Repair,TOTAL HYGIENE LIMITED,18/06/2014,180.00
Adult Social Services,Access & Enablement,HOAP,Supplies & Services,Equipment - Repair,TOTAL HYGIENE LIMITED,18/06/2014,180.00
Adult Social Services,Access & Enablement,HOAP,Supplies & Services,Equipment - Repair,TOTAL HYGIENE LIMITED,18/06/2014,180.00
Adult Social Services,Access & Enablement,HOAP,Supplies & Services,Equipment - Repair,HANDICARE ACCESSIBILITY LIMITED,18/06/2014,"5,523.66"
Adult Social Services,Access & Enablement,HOAP,Supplies & Services,Equipment - Repair,HANDICARE ACCESSIBILITY LIMITED,18/06/2014,576.64
Adult Social Services,Access & Enablement,HOAP,Supplies & Services,Aids & Appliances,RNIB SERVICES LIMITED,18/06/2014,259.50
Adult Social Services,Access & Enablement,HOAP,Supplies & Services,Aids & Appliances,OSPREY HEALTHCARE LTD,18/06/2014,159.00
Adult Social Services,Access & Enablement,HOAP,Supplies & Services,Equipment - Repair,HANDICARE ACCESSIBILITY LIMITED,20/06/2014,"5,442.60"
Adult Social Services,Access & Enablement,HOAP,Supplies & Services,Equipment - Repair,HANDICARE ACCESSIBILITY LIMITED,20/06/2014,576.64
Adult Social Services,Access & Enablement,HOAP,Supplies & Services,Aids & Appliances,CEFNDY ENTERPRISES HEALTHCARE,09/06/2014,195.72
Adult Social Services,Access & Enablement,HOAP,Supplies & Services,Aids & Appliances,AA Moving Solutions Ltd,17/06/2014,330.00
Adult Social Services,Access & Enablement,HOAP,Supplies & Services,Aids & Appliances,Easylink,23/06/2014,205.00
Adult Social Services,Access & Enablement,HOAP,Supplies & Services,Aids & Appliances,NRS Healthcare T/A Nottingham Rehab Ltd,24/06/2014,476.56
Adult Social Services,Access & Enablement,HOAP,Supplies & Services,Aids & Appliances,Easylink,24/06/2014,171.25
Adult Social Services,Access & Enablement,HOAP,Supplies & Services,Aids & Appliances,THE WREKIN HOUSING TRUST (INVOICES ONLY),24/06/2014,125.00
Adult Social Services,Access & Enablement,HOAP,Supplies & Services,Aids & Appliances,THE WREKIN HOUSING TRUST (INVOICES ONLY),24/06/2014,125.00
Adult Social Services,Access & Enablement,HOAP,Supplies & Services,Aids & Appliances,THE WREKIN HOUSING TRUST (INVOICES ONLY),24/06/2014,158.00
Adult Social Services,Access & Enablement,HOAW,Supplies & Services,Equipment - Purchase,Boots The Chemist,27/06/2014,140.00
Adult Social Services,Access & Enablement,HOCV,Premises-Related Expenditure,Contract Cleaning,Unitty Specialist Cleaning LTD,27/06/2014,400.00
Adult Social Services,Adult Social Care Commissioning,HJAA,Supplies & Services,Other Grants (Expenses),TAKING PART,26/06/2014,"16,448.00"
Adult Social Services,Adult Social Care Commissioning,HJAA,Supplies & Services,Other Grants (Expenses),INDEPENDENT LIVING PARTNERSHIP LTD,26/06/2014,"14,553.60"
Adult Social Services,Adult Social Care Commissioning,HJAA,Supplies & Services,Other Grants (Expenses),HEADWAY SHROPSHIRE,26/06/2014,"3,013.00"
Adult Social Services,Adult Social Care Commissioning,HJAA,Supplies & Services,Other Grants (Expenses),ALZHEIMERS SOCIETY,26/06/2014,"3,013.00"
Adult Social Services,Adult Social Care Commissioning,HJAF,Supplies & Services,Other Grants (Expenses),D H Homecare Limited,02/06/2014,393.00
Adult Social Services,Adult Social Care Commissioning,HJAF,Supplies & Services,Other Grants (Expenses),BRANCHING OUT,05/06/2014,"4,500.00"
Adult Social Services,Adult Social Care Commissioning,HJAF,Supplies & Services,Other Grants (Expenses),A Helping Hand,05/06/2014,225.00
Adult Social Services,Adult Social Care Commissioning,HJAF,Supplies & Services,Other Grants (Expenses),SOCIAL CARE ONE OFF SUNDRIES,05/06/2014,500.00
Adult Social Services,Adult Social Care Commissioning,HJAF,Supplies & Services,Other Grants (Expenses),A Helping Hand,05/06/2014,250.00
Adult Social Services,Adult Social Care Commissioning,HJAF,Supplies & Services,Other Grants (Expenses),COMMUNITY COUNCIL OF SHROPSHIRE,05/06/2014,"4,500.00"
Adult Social Services,Adult Social Care Commissioning,HJAF,Supplies & Services,Other Grants (Expenses),A Helping Hand,26/06/2014,150.00
Adult Social Services,Adult Social Care Commissioning,HJAF,Supplies & Services,Other Grants (Expenses),SOCIAL CARE ONE OFF SUNDRIES,19/06/2014,500.00
Adult Social Services,Adult Social Care Commissioning,HJAF,Supplies & Services,Other Grants (Expenses),Fable Progression CIC,23/06/2014,"4,500.00"
Adult Social Services,Adult Social Care Commissioning,HOBK,Supplies & Services,Respite Care,COVERAGE CARE SERVICES LTD (SY3),30/06/2014,"4,193.91"
Adult Social Services,Adult Social Care Commissioning,HOBK,Third Party Payments,Nursing Expenditure,COVERAGE CARE SERVICES LTD (SY3),30/06/2014,"86,483.44"
Adult Social Services,Adult Social Care Commissioning,HOBL,Third Party Payments,Residential Expenditure,COVERAGE CARE SERVICES LTD (SY3),30/06/2014,"61,475.21"
Adult Social Services,Adult Social Care Commissioning,HOBL,Third Party Payments,Residential Expenditure,COVERAGE CARE SERVICES LTD (SY3),30/06/2014,"59,492.15"
Adult Social Services,Adult Social Care Commissioning,HOBP,Third Party Payments,Daycare Expenditure,COVERAGE CARE SERVICES LTD (SY3),30/06/2014,"13,549.87"
Adult Social Services,Adult Social Care Commissioning,HOBP,Third Party Payments,Daycare Expenditure,COVERAGE CARE SERVICES LTD (SY3),30/06/2014,"13,112.78"
Adult Social Services,Adult Social Care Commissioning,HOBQ,Third Party Payments,Residential Expenditure,ACCORD HOUSING ASSOCIATION LIMITED,30/06/2014,"51,537.07"
Adult Social Services,Adult Social Care Commissioning,HOBR,Third Party Payments,Homecare Expenditure,SUPREME HOME CARE,26/06/2014,"7,159.04"
Adult Social Services,Adult Social Care Commissioning,HOBR,Third Party Payments,Homecare Expenditure,SUPREME HOME CARE,26/06/2014,"7,159.04"
Adult Social Services,Adult Social Care Commissioning,HOBR,Third Party Payments,Homecare Expenditure,COVERAGE CARE SERVICES LTD (SY3),26/06/2014,"45,370.52"
Adult Social Services,Adult Social Care Commissioning,HOCJ,Supplies & Services,Other Services,BRITISH RED CROSS SOCIETY,26/06/2014,"5,645.79"
Adult Social Services,Adult Social Care Commissioning,HOCM,Third Party Payments,Nursing Expenditure,MORRIS CARE,30/06/2014,"78,857.14"
Adult Social Services,Assessment & Case Management,HLAB,Premises-Related Expenditure,General Rents,WREKIN HOUSING TRUST (CARE SUPPORT PYMTS ONLY),10/06/2014,"16,462.44"
Adult Social Services,Assessment & Case Management,HLAC,Supplies & Services,Other Grants (Expenses),TAKING PART,26/06/2014,"50,000.00"
Adult Social Services,Assessment & Case Management,HLCG,Premises-Related Expenditure,Planned Repairs,HOME GROUP LTD,30/06/2014,772.74
Adult Social Services,Assessment & Case Management,HLCG,Third Party Payments,Nursing Expenditure,BROMFORD HOUSING ASSOCIATION LIMITED,30/06/2014,"12,756.83"
Adult Social Services,Assessment & Case Management,HOAH,Third Party Payments,Nursing Expenditure,SHROPSHIRE PEER COUNSELLING & ADVOCACY  SERV,20/06/2014,592.10
Adult Social Services,Assessment & Case Management,HOBJ,Supplies & Services,Telephones,BRITISH TELECOMMUNICATIONS PLC,11/06/2014,150.25
Adult Social Services,Assessment & Case Management,HPAB,Supplies & Services,Telecomms,BRITISH TELECOMMUNICATIONS PLC,23/06/2014,368.63
Adult Social Services,Care & Support,HHAC,Premises-Related Expenditure,Hire Of Rooms,MEETING POINT TRUST LTD,26/06/2014,154.50
Adult Social Services,Care & Support,HHAC,Supplies & Services,Conference Expenses,AMBASSADOR TAXIS,26/06/2014,150.00
Adult Social Services,Personalisation Support & Service Provision,HMBB,Premises-Related Expenditure,R&M - Pavillions,BRITISH GAS BUSINESS (GU45 1AW),05/06/2014,475.80
Adult Social Services,Personalisation Support & Service Provision,HMBJ,Premises-Related Expenditure,General Rents,THE WREKIN HOUSING TRUST (INVOICES ONLY),24/06/2014,"1,033.40"
Adult Social Services,Personalisation Support & Service Provision,HMBK,Third Party Payments,Private Contractors,Acorn Kennels,05/06/2014,575.00
Care & Support,Assessment & Case Management,HPAB,Supplies & Services,Computer Software (Maint),CM 2000 CARE MONITORING,18/06/2014," 1,076.87 "
Children's Safeguarding & Specialist Services,Child Protection & Assessment,JHAB,Transport-Related Expenditure,Travelling Expenses General,EXPOTEL HOTEL RESERVATIONS LIMITED,25/06/2014,185.90
Children's Safeguarding & Specialist Services,Child Protection & Assessment,JHAB,Transport-Related Expenditure,Transport,EXPOTEL HOTEL RESERVATIONS LIMITED,25/06/2014,185.90
Children's Safeguarding & Specialist Services,Child Protection & Assessment,JMAB,Employees,Agency Supply Costs,MERIDIAN COST BENEFIT LTD,06/06/2014,"1,478.15"
Children's Safeguarding & Specialist Services,Child Protection & Assessment,JMAB,Employees,Agency Supply Costs,CARITAS RECRUITMENT LTD,04/06/2014,"5,912.60"
Children's Safeguarding & Specialist Services,Child Protection & Assessment,JMAB,Employees,Agency Supply Costs,MERIDIAN COST BENEFIT LTD,18/06/2014,237.06
Children's Safeguarding & Specialist Services,Child Protection & Assessment,JMAB,Supplies & Services,Section 17 Childrens Act,Benson Management & Associates Ltd,03/06/2014,700.00
Children's Safeguarding & Specialist Services,Child Protection & Assessment,JMAB,Supplies & Services,Doctors Fees,ALPHA BIOLABORATORIES LIMITED,03/06/2014,112.50
Children's Safeguarding & Specialist Services,Child Protection & Assessment,JMAB,Supplies & Services,Translation Services,UK Language Solutions Ltd,16/06/2014,450.75
Children's Safeguarding & Specialist Services,Child Protection & Assessment,JMAB,Supplies & Services,Furniture - Purchase,BROADSTOCK OFFICE FURNITURE LIMITED,18/06/2014,572.82
Children's Safeguarding & Specialist Services,Child Protection & Assessment,JMAB,Supplies & Services,Furniture - Purchase,BROADSTOCK OFFICE FURNITURE LIMITED,18/06/2014,168.00
Children's Safeguarding & Specialist Services,Child Protection & Assessment,JMAB,Third Party Payments,Childminders,DAISY CHAIN DAY CARE LTD,18/06/2014,132.60
Children's Safeguarding & Specialist Services,Child Protection & Assessment,JMAD,Employees,Agency Supply Costs,Nonstop Recruitment,06/06/2014,"1,056.00"
Children's Safeguarding & Specialist Services,Child Protection & Assessment,JMAE,Supplies & Services,Other Services,ELMHURST PSYCHOLOGY LTD,06/06/2014,206.50
Children's Safeguarding & Specialist Services,Child Protection & Assessment,JMAE,Supplies & Services,Other Services,ELMHURST PSYCHOLOGY LTD,05/06/2014,"1,931.50"
Children's Safeguarding & Specialist Services,Child Protection & Assessment,JMAE,Supplies & Services,Other Services,INDEPENDENT LIVING PARTNERSHIP LTD,05/06/2014,400.00
Children's Safeguarding & Specialist Services,Child Protection & Assessment,JMAE,Supplies & Services,Other Services,NEWSTART NETWORKS CIC,27/06/2014,"1,800.00"
Children's Safeguarding & Specialist Services,Child Protection & Assessment,JMAE,Supplies & Services,Other Services,NEWSTART NETWORKS CIC,27/06/2014,600.00
Children's Safeguarding & Specialist Services,Child Protection & Assessment,JMAE,Supplies & Services,Other Services,NEWSTART NETWORKS CIC,27/06/2014,"1,000.00"
Children's Safeguarding & Specialist Services,Child Protection & Assessment,JMAE,Supplies & Services,Other Services,NEWSTART NETWORKS CIC,27/06/2014,900.00
Children's Safeguarding & Specialist Services,Child Protection & Assessment,JMAE,Supplies & Services,Other Services,NEWSTART NETWORKS CIC,27/06/2014,999.96
Children's Safeguarding & Specialist Services,Child Protection & Assessment,JMAL,Supplies & Services,Other Services,NESTOR PRIMECARE SERVICES LTD T/A ALLIED HEALTHCARE,05/06/2014,303.20
Children's Safeguarding & Specialist Services,Child Protection & Assessment,JMAL,Supplies & Services,Legal,Wright McMillian Bennett Law,05/06/2014,457.55
Children's Safeguarding & Specialist Services,Child Protection & Assessment,JMAL,Third Party Payments,Childminders,Lawley Village Day Nursery,05/06/2014,139.20
Children's Safeguarding & Specialist Services,Child Protection & Assessment,JSAB,Transport-Related Expenditure,Taxi Costs,DIAMOND CARS (TELFORD) LTD,11/06/2014,300.00
Children's Safeguarding & Specialist Services,Children in Care & Fostering,JCAB,Supplies & Services,Supportive Lodgings,SAAIL,18/06/2014,234.15
Children's Safeguarding & Specialist Services,Children in Care & Fostering,JCAB,Supplies & Services,Supportive Lodgings,Keys 16 Plus ILS Ltd,18/06/2014,799.96
Children's Safeguarding & Specialist Services,Children in Care & Fostering,JCAB,Supplies & Services,Supportive Lodgings,Keys 16 Plus ILS Ltd,18/06/2014,864.56
Children's Safeguarding & Specialist Services,Children in Care & Fostering,JCAB,Supplies & Services,Supportive Lodgings,SAAIL,18/06/2014,-234.15
Children's Safeguarding & Specialist Services,Children in Care & Fostering,JCAB,Supplies & Services,CL - Basic Allowance,NEXT STEP CARE MANAGEMENT LTD,30/06/2014,229.80
Children's Safeguarding & Specialist Services,Children in Care & Fostering,JCAB,Supplies & Services,Supportive Lodgings,NEXT STEP CARE MANAGEMENT LTD,30/06/2014,"1,328.57"
Children's Safeguarding & Specialist Services,Children in Care & Fostering,JCAB,Supplies & Services,Supportive Lodgings,NEXT STEP CARE MANAGEMENT LTD,30/06/2014,"1,328.57"
Children's Safeguarding & Specialist Services,Children in Care & Fostering,JCAB,Supplies & Services,Supportive Lodgings,IMPACTING LIVES LIMITED,30/06/2014,"2,799.96"
Children's Safeguarding & Specialist Services,Children in Care & Fostering,JCAB,Supplies & Services,CL - Basic Allowance,IMPACTING LIVES LIMITED,30/06/2014,227.20
Children's Safeguarding & Specialist Services,Children in Care & Fostering,JCAB,Supplies & Services,CL - Basic Allowance,IMPACTING LIVES LIMITED,30/06/2014,229.40
Children's Safeguarding & Specialist Services,Children in Care & Fostering,JCAB,Supplies & Services,CL - Basic Allowance,IMPACTING LIVES LIMITED,30/06/2014,229.40
Children's Safeguarding & Specialist Services,Children in Care & Fostering,JCAB,Supplies & Services,Supportive Lodgings,IMPACTING LIVES LIMITED,30/06/2014,"2,799.96"
Children's Safeguarding & Specialist Services,Children in Care & Fostering,JCAB,Supplies & Services,Supportive Lodgings,IMPACTING LIVES LIMITED,30/06/2014,"2,799.96"
Children's Safeguarding & Specialist Services,Children in Care & Fostering,JCAB,Supplies & Services,Supportive Lodgings,IMPACTING LIVES LIMITED,30/06/2014,"2,799.96"
Children's Safeguarding & Specialist Services,Children in Care & Fostering,JCAB,Supplies & Services,Supportive Lodgings,IMPACTING LIVES LIMITED,30/06/2014,"2,799.96"
Children's Safeguarding & Specialist Services,Children in Care & Fostering,JCAB,Supplies & Services,CL - Basic Allowance,SAAIL,30/06/2014,229.40
Children's Safeguarding & Specialist Services,Children in Care & Fostering,JCAB,Supplies & Services,Supportive Lodgings,PROGRESS CHILDREN'S SERVICES LTD,18/06/2014,"-5,038.00"
Children's Safeguarding & Specialist Services,Children in Care & Fostering,JCAB,Supplies & Services,Supportive Lodgings,STAY TELFORD XC SUPPORTED HOUSE,18/06/2014,742.00
Children's Safeguarding & Specialist Services,Children in Care & Fostering,JCAB,Supplies & Services,Supportive Lodgings,NEXT STEP CARE MANAGEMENT LTD,18/06/2014,321.43
Children's Safeguarding & Specialist Services,Children in Care & Fostering,JCAB,Supplies & Services,Supportive Lodgings,NEXT STEP CARE MANAGEMENT LTD,18/06/2014,"1,285.80"
Children's Safeguarding & Specialist Services,Children in Care & Fostering,JCAB,Supplies & Services,CL - Basic Allowance,NEXT STEP CARE MANAGEMENT LTD,18/06/2014,286.75
Children's Safeguarding & Specialist Services,Children in Care & Fostering,JCAB,Supplies & Services,CL - Basic Allowance,NEXT STEP CARE MANAGEMENT LTD,27/06/2014,227.20
Children's Safeguarding & Specialist Services,Children in Care & Fostering,JCAB,Supplies & Services,CL - Basic Allowance,NEXT STEP CARE MANAGEMENT LTD,27/06/2014,172.05
Children's Safeguarding & Specialist Services,Children in Care & Fostering,JCAB,Supplies & Services,Supportive Lodgings,SAAIL,27/06/2014,"2,214.33"
Children's Safeguarding & Specialist Services,Children in Care & Fostering,JCAB,Supplies & Services,Supportive Lodgings,NEXT STEP CARE MANAGEMENT LTD,27/06/2014,"1,285.71"
Children's Safeguarding & Specialist Services,Children in Care & Fostering,JCAB,Supplies & Services,Supportive Lodgings,STAY TELFORD XC SUPPORTED HOUSE,27/06/2014,553.08
Children's Safeguarding & Specialist Services,Children in Care & Fostering,JCAB,Supplies & Services,Supportive Lodgings,SAAIL,27/06/2014,"2,142.90"
Children's Safeguarding & Specialist Services,Children in Care & Fostering,JCAB,Supplies & Services,Supportive Lodgings,NEXT STEP CARE MANAGEMENT LTD,27/06/2014,"1,285.71"
Children's Safeguarding & Specialist Services,Children in Care & Fostering,JCAB,Supplies & Services,CL - Basic Allowance,SAAIL,27/06/2014,232.15
Children's Safeguarding & Specialist Services,Children in Care & Fostering,JCAB,Supplies & Services,Supportive Lodgings,NEXT STEP CARE MANAGEMENT LTD,27/06/2014,"4,170.00"
Children's Safeguarding & Specialist Services,Children in Care & Fostering,JCAB,Supplies & Services,Supportive Lodgings,NEXT STEP CARE MANAGEMENT LTD,27/06/2014,414.64
Children's Safeguarding & Specialist Services,Children in Care & Fostering,JCAB,Supplies & Services,Supportive Lodgings,NEXT STEP CARE MANAGEMENT LTD,27/06/2014,"11,997.00"
Children's Safeguarding & Specialist Services,Children in Care & Fostering,JCAB,Supplies & Services,CL - Basic Allowance,CLAY HOUSING,27/06/2014,286.20
Children's Safeguarding & Specialist Services,Children in Care & Fostering,JCAB,Supplies & Services,Supportive Lodgings,NEXT STEP CARE MANAGEMENT LTD,27/06/2014,332.14
Children's Safeguarding & Specialist Services,Children in Care & Fostering,JCAB,Supplies & Services,Supportive Lodgings,LEAVING CARE COMPANY,27/06/2014,239.14
Children's Safeguarding & Specialist Services,Children in Care & Fostering,JCAB,Supplies & Services,Supportive Lodgings,LEAVING CARE COMPANY,27/06/2014,"1,372.86"
Children's Safeguarding & Specialist Services,Children in Care & Fostering,JCAB,Supplies & Services,Supportive Lodgings,NEXT STEP CARE MANAGEMENT LTD,27/06/2014,"1,657.14"
Children's Safeguarding & Specialist Services,Children in Care & Fostering,JCAB,Supplies & Services,Supportive Lodgings,STAY TELFORD XC SUPPORTED HOUSE,27/06/2014,888.08
Children's Safeguarding & Specialist Services,Children in Care & Fostering,JCAB,Supplies & Services,Supportive Lodgings,STAY TELFORD XC SUPPORTED HOUSE,27/06/2014,742.00
Children's Safeguarding & Specialist Services,Children in Care & Fostering,JCAB,Supplies & Services,CL - Basic Allowance,NEXT STEP CARE MANAGEMENT LTD,27/06/2014,229.40
Children's Safeguarding & Specialist Services,Children in Care & Fostering,JCAB,Supplies & Services,CL - Basic Allowance,NEXT STEP CARE MANAGEMENT LTD,18/06/2014,113.60
Children's Safeguarding & Specialist Services,Children in Care & Fostering,JCAB,Supplies & Services,Supportive Lodgings,NEXT STEP CARE MANAGEMENT LTD,18/06/2014,257.14
Children's Safeguarding & Specialist Services,Children in Care & Fostering,JCAB,Supplies & Services,Supportive Lodgings,NEXT STEP CARE MANAGEMENT LTD,18/06/2014,750.00
Children's Safeguarding & Specialist Services,Children in Care & Fostering,JCAB,Supplies & Services,Supportive Lodgings,LEAVING CARE COMPANY,18/06/2014,"1,328.57"
Children's Safeguarding & Specialist Services,Children in Care & Fostering,JCAB,Supplies & Services,Supportive Lodgings,NEXT STEP CARE MANAGEMENT LTD,18/06/2014,"8,285.00"
Children's Safeguarding & Specialist Services,Children in Care & Fostering,JCAB,Supplies & Services,Supportive Lodgings,NEXT STEP CARE MANAGEMENT LTD,18/06/2014,356.79
Children's Safeguarding & Specialist Services,Children in Care & Fostering,JCAB,Supplies & Services,Supportive Lodgings,NEXT STEP CARE MANAGEMENT LTD,18/06/2014,"11,610.00"
Children's Safeguarding & Specialist Services,Children in Care & Fostering,JCAB,Supplies & Services,Supportive Lodgings,NEXT STEP CARE MANAGEMENT LTD,18/06/2014,"5,996.42"
Children's Safeguarding & Specialist Services,Children in Care & Fostering,JCAB,Supplies & Services,Supportive Lodgings,NEXT STEP CARE MANAGEMENT LTD,18/06/2014,"1,932.14"
Children's Safeguarding & Specialist Services,Children in Care & Fostering,JCAB,Supplies & Services,Supportive Lodgings,ABC CARE LTD,18/06/2014,"9,081.00"
Children's Safeguarding & Specialist Services,Children in Care & Fostering,JCAB,Supplies & Services,Supportive Lodgings,THEO LANGSTON,18/06/2014,-112.58
Children's Safeguarding & Specialist Services,Children in Care & Fostering,JCAB,Supplies & Services,Supportive Lodgings,LEAVING CARE COMPANY,10/06/2014,"1,700.58"
Children's Safeguarding & Specialist Services,Children in Care & Fostering,JCAB,Supplies & Services,Supportive Lodgings,LEAVING CARE COMPANY,10/06/2014,"1,612.00"
Children's Safeguarding & Specialist Services,Children in Care & Fostering,JCAB,Supplies & Services,CL - Basic Allowance,CLAY HOUSING,27/06/2014,229.40
Children's Safeguarding & Specialist Services,Children in Care & Fostering,JCAB,Transfer Payments,Leaving Care Grant,Redacted Personal Information,13/06/2014,200.00
Children's Safeguarding & Specialist Services,Children in Care & Fostering,JCAB,Transfer Payments,Leaving Care Grant,NEXT STEP CARE MANAGEMENT LTD,18/06/2014,220.00
Children's Safeguarding & Specialist Services,Children in Care & Fostering,JMAF,Employees,Childcare Provision,Crackerjacks Day Nursery,27/06/2014,105.00
Children's Safeguarding & Specialist Services,Children in Care & Fostering,JMAF,Employees,Childcare Provision,SMILEY FACES DAY NURSERIES LTD,27/06/2014,312.75
Children's Safeguarding & Specialist Services,Children in Care & Fostering,JMAF,Employees,Childcare Provision,SMILEY FACES DAY NURSERIES LTD,27/06/2014,432.00
Children's Safeguarding & Specialist Services,Children in Care & Fostering,JMAF,Employees,Childcare Provision,SMILEY FACES DAY NURSERIES LTD,27/06/2014,432.00
Children's Safeguarding & Specialist Services,Children in Care & Fostering,JMAF,Employees,Childcare Provision,SMILEY FACES DAY NURSERIES LTD,27/06/2014,468.00
Children's Safeguarding & Specialist Services,Children in Care & Fostering,JMAF,Employees,Childcare Provision,Crackerjacks Day Nursery,27/06/2014,105.00
Children's Safeguarding & Specialist Services,Children in Care & Fostering,JMAF,Employees,Childcare Provision,Crackerjacks Day Nursery,27/06/2014,105.00
Children's Safeguarding & Specialist Services,Children in Care & Fostering,JMAF,Supplies & Services,CL - Basic Allowance,IMPACTING LIVES LIMITED,27/06/2014,228.00
Children's Safeguarding & Specialist Services,Children in Care & Fostering,JMAF,Transport-Related Expenditure,Travelling Expenses General,EXPOTEL HOTEL RESERVATIONS LIMITED,25/06/2014,198.40
Children's Safeguarding & Specialist Services,Children in Care & Fostering,JMAF,Transport-Related Expenditure,Contract Hire,CORKYS CARS,27/06/2014,800.00
Children's Safeguarding & Specialist Services,Children in Care & Fostering,JPAD,Third Party Payments,External Foster Care Payments,NATIONAL FOSTERING AGENCY,11/06/2014,"3,380.86"
Children's Safeguarding & Specialist Services,Children in Care & Fostering,JPAD,Third Party Payments,External Foster Care Payments,NATIONAL FOSTERING AGENCY,11/06/2014,"3,233.30"
Children's Safeguarding & Specialist Services,Children in Care & Fostering,JPAD,Third Party Payments,External Foster Care Payments,NATIONAL FOSTERING AGENCY,11/06/2014,"3,233.30"
Children's Safeguarding & Specialist Services,Children in Care & Fostering,JPAD,Third Party Payments,External Foster Care Payments,NATIONAL FOSTERING AGENCY,11/06/2014,"3,311.73"
Children's Safeguarding & Specialist Services,Children in Care & Fostering,JPAD,Third Party Payments,External Foster Care Payments,NATIONAL FOSTERING AGENCY,11/06/2014,"3,077.99"
Children's Safeguarding & Specialist Services,Children in Care & Fostering,JPAD,Third Party Payments,External Foster Care Payments,NATIONAL FOSTERING AGENCY,11/06/2014,"3,449.99"
Children's Safeguarding & Specialist Services,Children in Care & Fostering,JPAD,Third Party Payments,External Foster Care Payments,NATIONAL FOSTERING AGENCY,11/06/2014,"3,233.30"
Children's Safeguarding & Specialist Services,Children in Care & Fostering,JPAD,Third Party Payments,External Foster Care Payments,NATIONAL FOSTERING AGENCY,11/06/2014,"3,167.27"
Children's Safeguarding & Specialist Services,Children in Care & Fostering,JPAD,Third Party Payments,External Foster Care Payments,NATIONAL FOSTERING AGENCY,11/06/2014,"3,175.64"
Children's Safeguarding & Specialist Services,Children in Care & Fostering,JPAD,Third Party Payments,External Foster Care Payments,SWIIS FOSTER CARE LTD,02/06/2014,872.62
Children's Safeguarding & Specialist Services,Children in Care & Fostering,JPAD,Third Party Payments,External Foster Care Payments,SWIIS FOSTER CARE LTD,02/06/2014,872.62
Children's Safeguarding & Specialist Services,Children in Care & Fostering,JPAD,Third Party Payments,External Foster Care Payments,SWIIS FOSTER CARE LTD,02/06/2014,872.62
Children's Safeguarding & Specialist Services,Children in Care & Fostering,JPAD,Third Party Payments,External Foster Care Payments,SWIIS FOSTER CARE LTD,02/06/2014,895.00
Children's Safeguarding & Specialist Services,Children in Care & Fostering,JPAD,Third Party Payments,External Foster Care Payments,SWIIS FOSTER CARE LTD,02/06/2014,895.00
Children's Safeguarding & Specialist Services,Children in Care & Fostering,JPAD,Third Party Payments,External Foster Care Payments,SWIIS FOSTER CARE LTD,02/06/2014,895.00
Children's Safeguarding & Specialist Services,Children in Care & Fostering,JPAD,Third Party Payments,External Foster Care Payments,SWIIS FOSTER CARE LTD,02/06/2014,872.62
Children's Safeguarding & Specialist Services,Children in Care & Fostering,JPAD,Third Party Payments,External Foster Care Payments,SWIIS FOSTER CARE LTD,02/06/2014,872.62
Children's Safeguarding & Specialist Services,Children in Care & Fostering,JPAD,Third Party Payments,External Foster Care Payments,FREEDOM FOSTERING,30/06/2014,"3,960.00"
Children's Safeguarding & Specialist Services,Children in Care & Fostering,JPAD,Third Party Payments,External Foster Care Payments,HILLCREST CARE LTD,06/06/2014,"3,077.86"
Children's Safeguarding & Specialist Services,Children in Care & Fostering,JPAD,Third Party Payments,External Foster Care Payments,CLIFFORD HOUSE FOSTERING LTD,06/06/2014,"3,604.00"
Children's Safeguarding & Specialist Services,Children in Care & Fostering,JPAD,Third Party Payments,External Foster Care Payments,HILLCREST CARE LTD,06/06/2014,"3,344.68"
Children's Safeguarding & Specialist Services,Children in Care & Fostering,JPAD,Third Party Payments,External Foster Care Payments,HILLCREST CARE LTD,06/06/2014,"3,244.33"
Children's Safeguarding & Specialist Services,Children in Care & Fostering,JPAD,Third Party Payments,External Foster Care Payments,HILLCREST CARE LTD,06/06/2014,"3,344.68"
Children's Safeguarding & Specialist Services,Children in Care & Fostering,JPAD,Third Party Payments,External Foster Care Payments,FOSTER CARE ASSOCIATES LTD,30/06/2014,"1,835.24"
Children's Safeguarding & Specialist Services,Children in Care & Fostering,JPAD,Third Party Payments,External Foster Care Payments,FOSTER CARE ASSOCIATES LTD,30/06/2014,"5,152.20"
Children's Safeguarding & Specialist Services,Children in Care & Fostering,JPAD,Third Party Payments,External Foster Care Payments,HILLCREST CARE LTD,04/06/2014,"2,635.00"
Children's Safeguarding & Specialist Services,Children in Care & Fostering,JPAD,Third Party Payments,External Foster Care Payments,REGIONAL FOSTER PLACEMENTS,04/06/2014,"3,338.70"
Children's Safeguarding & Specialist Services,Children in Care & Fostering,JPAD,Third Party Payments,External Foster Care Payments,HILLCREST CARE LTD,04/06/2014,"3,380.86"
Children's Safeguarding & Specialist Services,Children in Care & Fostering,JPAD,Third Party Payments,External Foster Care Payments,HILLCREST CARE LTD,04/06/2014,"3,520.67"
Children's Safeguarding & Specialist Services,Children in Care & Fostering,JPAD,Third Party Payments,External Foster Care Payments,INDEPENDENT CHILDCARE GROUP OF SCHOOLS ,04/06/2014,"3,538.34"
Children's Safeguarding & Specialist Services,Children in Care & Fostering,JPAD,Third Party Payments,External Foster Care Payments,HILLCREST CARE LTD,04/06/2014,"2,958.64"
Children's Safeguarding & Specialist Services,Children in Care & Fostering,JPAD,Third Party Payments,External Foster Care Payments,PHOENIX FOSTERING,04/06/2014,"5,310.00"
Children's Safeguarding & Specialist Services,Children in Care & Fostering,JPAD,Third Party Payments,External Foster Care Payments,REGIONAL FOSTER PLACEMENTS,09/06/2014,"3,449.99"
Children's Safeguarding & Specialist Services,Children in Care & Fostering,JPAD,Third Party Payments,External Foster Care Payments,PARK FOSTER CARE,09/06/2014,"6,200.00"
Children's Safeguarding & Specialist Services,Children in Care & Fostering,JPAD,Third Party Payments,External Foster Care Payments,PARK FOSTER CARE,09/06/2014,"3,720.00"
Children's Safeguarding & Specialist Services,Children in Care & Fostering,JPAD,Third Party Payments,External Foster Care Payments,PARK FOSTER CARE,09/06/2014,"3,720.00"
Children's Safeguarding & Specialist Services,Children in Care & Fostering,JPAD,Third Party Payments,External Foster Care Payments,FOSTERING SOLUTIONS LTD,25/06/2014,"3,376.74"
Children's Safeguarding & Specialist Services,Children in Care & Fostering,JPAD,Third Party Payments,External Foster Care Payments,PHOENIX FOSTERING,25/06/2014,"5,120.28"
Children's Safeguarding & Specialist Services,Children in Care & Fostering,JPAD,Third Party Payments,External Foster Care Payments,Childcare Bureau,25/06/2014,"3,997.50"
Children's Safeguarding & Specialist Services,Children in Care & Fostering,JPAD,Third Party Payments,External Foster Care Payments,PROGRESS CHILDREN'S SERVICES LTD,25/06/2014,"3,797.40"
Children's Safeguarding & Specialist Services,Children in Care & Fostering,JPAD,Third Party Payments,External Foster Care Payments,Foundation Fostering,25/06/2014,"3,480.00"
Children's Safeguarding & Specialist Services,Children in Care & Fostering,JPAD,Third Party Payments,External Foster Care Payments,SWIIS FOSTER CARE LTD,25/06/2014,872.62
Children's Safeguarding & Specialist Services,Children in Care & Fostering,JPAD,Third Party Payments,External Foster Care Payments,FAMILIES@FAMILYCARE,25/06/2014,"3,757.12"
Children's Safeguarding & Specialist Services,Children in Care & Fostering,JPAD,Third Party Payments,External Foster Care Payments,FAMILIES@FAMILYCARE,25/06/2014,"4,435.50"
Children's Safeguarding & Specialist Services,Children in Care & Fostering,JPAD,Third Party Payments,External Foster Care Payments,PHOENIX FOSTERING,25/06/2014,"1,706.76"
Children's Safeguarding & Specialist Services,Children in Care & Fostering,JPAD,Third Party Payments,External Foster Care Payments,PHOENIX FOSTERING,26/06/2014,"6,532.01"
Children's Safeguarding & Specialist Services,Children in Care & Fostering,JPAD,Third Party Payments,External Foster Care Payments,THE ADOLESCENT & CHILDRENS TRUST,26/06/2014,"2,907.00"
Children's Safeguarding & Specialist Services,Children in Care & Fostering,JPAD,Third Party Payments,External Foster Care Payments,FOSTERING SOLUTIONS LTD,27/06/2014,"3,267.81"
Children's Safeguarding & Specialist Services,Children in Care & Fostering,JPAD,Third Party Payments,External Foster Care Payments,FAMILIES@FAMILYCARE,27/06/2014,"3,888.00"
Children's Safeguarding & Specialist Services,Children in Care & Fostering,JPAD,Third Party Payments,External Foster Care Payments,SWIIS FOSTER CARE LTD,26/06/2014,872.62
Children's Safeguarding & Specialist Services,Children in Care & Fostering,JPAD,Third Party Payments,External Foster Care Payments,PARK FOSTER CARE,18/06/2014,360.00
Children's Safeguarding & Specialist Services,Children in Care & Fostering,JPAD,Third Party Payments,External Foster Care Payments,THE ADOLESCENT & CHILDRENS TRUST,18/06/2014,"3,003.90"
Children's Safeguarding & Specialist Services,Children in Care & Fostering,JPAD,Third Party Payments,External Foster Care Payments,PHOENIX FOSTERING,19/06/2014,"5,900.00"
Children's Safeguarding & Specialist Services,Children in Care & Fostering,JPAD,Third Party Payments,External Foster Care Payments,SWIIS FOSTER CARE LTD,20/06/2014,872.62
Children's Safeguarding & Specialist Services,Children in Care & Fostering,JPAD,Third Party Payments,External Foster Care Payments,FAMILIES@FAMILYCARE,20/06/2014,409.26
Children's Safeguarding & Specialist Services,Children in Care & Fostering,JPAD,Third Party Payments,External Foster Care Payments,PARK FOSTER CARE,09/06/2014,"3,348.00"
Children's Safeguarding & Specialist Services,Children in Care & Fostering,JPAD,Third Party Payments,External Foster Care Payments,PARK FOSTER CARE,09/06/2014,"3,419.92"
Children's Safeguarding & Specialist Services,Children in Care & Fostering,JPAD,Third Party Payments,External Foster Care Payments,PARK FOSTER CARE,09/06/2014,"3,720.00"
Children's Safeguarding & Specialist Services,Children in Care & Fostering,JPAD,Third Party Payments,External Foster Care Payments,CLIFFORD HOUSE FOSTERING LTD,05/06/2014,"3,412.00"
Children's Safeguarding & Specialist Services,Children in Care & Fostering,JPAD,Third Party Payments,External Foster Care Payments,HILLCREST CARE LTD,09/06/2014,"3,344.68"
Children's Safeguarding & Specialist Services,Children in Care & Fostering,JPAD,Third Party Payments,External Foster Care Payments,HILLCREST CARE LTD,09/06/2014,"3,344.68"
Children's Safeguarding & Specialist Services,Children in Care & Fostering,JPAD,Third Party Payments,External Foster Care Payments,HILLCREST CARE LTD,09/06/2014,"3,346.36"
Children's Safeguarding & Specialist Services,Children in Care & Fostering,JPAD,Third Party Payments,External Foster Care Payments,HILLCREST CARE LTD,09/06/2014,"3,244.33"
Children's Safeguarding & Specialist Services,Children in Care & Fostering,JPAD,Third Party Payments,External Foster Care Payments,HILLCREST CARE LTD,09/06/2014,"3,244.33"
Children's Safeguarding & Specialist Services,Children in Care & Fostering,JPAD,Third Party Payments,External Foster Care Payments,HILLCREST CARE LTD,09/06/2014,"3,210.71"
Children's Safeguarding & Specialist Services,Children in Care & Fostering,JPAD,Third Party Payments,External Foster Care Payments,HILLCREST CARE LTD,09/06/2014,"3,344.68"
Children's Safeguarding & Specialist Services,Children in Care & Fostering,JPAD,Third Party Payments,External Foster Care Payments,HILLCREST CARE LTD,09/06/2014,"3,277.76"
Children's Safeguarding & Specialist Services,Children in Care & Fostering,JPAD,Third Party Payments,External Foster Care Payments,HILLCREST CARE LTD,09/06/2014,"3,050.18"
Children's Safeguarding & Specialist Services,Children in Care & Fostering,JPAD,Third Party Payments,External Foster Care Payments,PARK FOSTER CARE,09/06/2014,"3,600.00"
Children's Safeguarding & Specialist Services,Children in Care & Fostering,JPAD,Third Party Payments,External Foster Care Payments,HILLCREST CARE LTD,09/06/2014,"3,050.18"
Children's Safeguarding & Specialist Services,Children in Care & Fostering,JPAD,Third Party Payments,External Foster Care Payments,HILLCREST CARE LTD,09/06/2014,"3,277.81"
Children's Safeguarding & Specialist Services,Children in Care & Fostering,JPAD,Third Party Payments,External Foster Care Payments,HILLCREST CARE LTD,09/06/2014,"3,077.86"
Children's Safeguarding & Specialist Services,Children in Care & Fostering,JPAD,Third Party Payments,External Foster Care Payments,HILLCREST CARE LTD,09/06/2014,"3,344.68"
Children's Safeguarding & Specialist Services,Children in Care & Fostering,JPAD,Third Party Payments,External Foster Care Payments,HILLCREST CARE LTD,09/06/2014,"5,247.86"
Children's Safeguarding & Specialist Services,Children in Care & Fostering,JPAD,Third Party Payments,External Foster Care Payments,HILLCREST CARE LTD,09/06/2014,"3,449.86"
Children's Safeguarding & Specialist Services,Children in Care & Fostering,JPAD,Third Party Payments,External Foster Care Payments,CLIFFORD HOUSE FOSTERING LTD,09/06/2014,"3,604.00"
Children's Safeguarding & Specialist Services,Children in Care & Fostering,JPAD,Third Party Payments,External Foster Care Payments,HILLCREST CARE LTD,09/06/2014,"3,244.33"
Children's Safeguarding & Specialist Services,Children in Care & Fostering,JPAD,Third Party Payments,External Foster Care Payments,PARK FOSTER CARE,09/06/2014,"2,640.00"
Children's Safeguarding & Specialist Services,Children in Care & Fostering,JPAD,Third Party Payments,External Foster Care Payments,PARK FOSTER CARE,09/06/2014,"3,309.60"
Children's Safeguarding & Specialist Services,Children in Care & Fostering,JPAD,Third Party Payments,External Foster Care Payments,FOSTERING PRIORY,09/06/2014,"3,318.21"
Children's Safeguarding & Specialist Services,Children in Care & Fostering,JPAD,Third Party Payments,External Foster Care Payments,Prospects for Young People Ltd,09/06/2014,"3,366.60"
Children's Safeguarding & Specialist Services,Children in Care & Fostering,JPAD,Third Party Payments,External Foster Care Payments,Prospects for Young People Ltd,09/06/2014,"3,258.00"
Children's Safeguarding & Specialist Services,Children in Care & Fostering,JPAD,Third Party Payments,External Foster Care Payments,PARK FOSTER CARE,09/06/2014,"3,600.00"
Children's Safeguarding & Specialist Services,Children in Care & Fostering,JPAD,Third Party Payments,External Foster Care Payments,PARK FOSTER CARE,09/06/2014,"2,376.00"
Children's Safeguarding & Specialist Services,Children in Care & Fostering,JPAD,Third Party Payments,External Foster Care Payments,Prospects for Young People Ltd,09/06/2014,"3,604.99"
Children's Safeguarding & Specialist Services,Children in Care & Fostering,JPAD,Third Party Payments,External Foster Care Payments,PARK FOSTER CARE,09/06/2014,"6,000.00"
Children's Safeguarding & Specialist Services,Children in Care & Fostering,JPAD,Third Party Payments,External Foster Care Payments,FOSTER CARE ASSOCIATES LTD,09/06/2014,"5,152.20"
Children's Safeguarding & Specialist Services,Children in Care & Fostering,JPAD,Third Party Payments,External Foster Care Payments,FOSTER CARE ASSOCIATES LTD,09/06/2014,"5,323.94"
Children's Safeguarding & Specialist Services,Children in Care & Fostering,JPAD,Third Party Payments,External Foster Care Payments,Prospects for Young People Ltd,09/06/2014,"3,488.70"
Children's Safeguarding & Specialist Services,Children in Care & Fostering,JPAD,Third Party Payments,External Foster Care Payments,HILLCREST CARE LTD,09/06/2014,"3,244.33"
Children's Safeguarding & Specialist Services,Children in Care & Fostering,JPAD,Third Party Payments,External Foster Care Payments,HILLCREST CARE LTD,09/06/2014,"3,277.81"
Children's Safeguarding & Specialist Services,Children in Care & Fostering,JPAD,Third Party Payments,External Foster Care Payments,FAMILIES@FAMILYCARE,23/06/2014,"2,527.20"
Children's Safeguarding & Specialist Services,Children in Care & Fostering,JPAD,Third Party Payments,External Foster Care Payments,FAMILIES@FAMILYCARE,23/06/2014,"2,611.44"
Children's Safeguarding & Specialist Services,Children in Care & Fostering,JPAD,Third Party Payments,External Foster Care Payments,HILLCREST CARE LTD,24/06/2014,"3,077.86"
Children's Safeguarding & Specialist Services,Children in Care & Fostering,JPAD,Third Party Payments,External Foster Care Payments,HILLCREST CARE LTD,24/06/2014,"3,021.00"
Children's Safeguarding & Specialist Services,Children in Care & Fostering,JPAD,Third Party Payments,External Foster Care Payments,HILLCREST CARE LTD,24/06/2014,"3,520.71"
Children's Safeguarding & Specialist Services,Children in Care & Fostering,JPAD,Third Party Payments,External Foster Care Payments,SWIIS FOSTER CARE LTD,24/06/2014,872.62
Children's Safeguarding & Specialist Services,Children in Care & Fostering,JPAD,Third Party Payments,External Foster Care Payments,ACTION FOR CHILDREN LIMITED,25/06/2014,"3,402.90"
Children's Safeguarding & Specialist Services,Children in Care & Fostering,JPAD,Third Party Payments,External Foster Care Payments,ACTION FOR CHILDREN LIMITED,25/06/2014,"3,402.90"
Children's Safeguarding & Specialist Services,Children in Care & Fostering,JPAM,Employees,Staff Training,THE UNIVERSITY OF BIRMINGHAM,11/06/2014,"1,680.00"
Children's Safeguarding & Specialist Services,Children in Care & Fostering,JPAM,Supplies & Services,Tobacco,THE UNIVERSITY OF BIRMINGHAM,24/06/2014,"-1,680.00"
Children's Safeguarding & Specialist Services,Children in Care & Fostering,JPAM,Supplies & Services,Advertising,THE MIDLAND NEWS ASSOCIATION LTD,24/06/2014,181.98
Children's Safeguarding & Specialist Services,Children in Care & Fostering,JPAM,Supplies & Services,Marketing & Publicity,Exterion Media (UK) Limited,24/06/2014,765.00
Children's Safeguarding & Specialist Services,Children in Care & Fostering,JPAM,Supplies & Services,Subscriptions,FOSTERING NETWORK,24/06/2014,"2,702.00"
Children's Safeguarding & Specialist Services,Children in Care & Fostering,JPAM,Supplies & Services,Marketing & Publicity,Exterion Media (UK) Limited,24/06/2014,300.00
Children's Safeguarding & Specialist Services,Children in Care & Fostering,JPAM,Supplies & Services,Advertising,THE MIDLAND NEWS ASSOCIATION LTD,24/06/2014,125.14
Children's Safeguarding & Specialist Services,Children in Care & Fostering,JPAM,Third Party Payments,External Foster Care Payments,SWIIS FOSTER CARE LTD,24/06/2014,"-1,163.76"
Children's Safeguarding & Specialist Services,Children in Care & Fostering,JPAM,Third Party Payments,Residential Expenditure,NATIONAL FOSTERING AGENCY,24/06/2014,"2,991.24"
Children's Safeguarding & Specialist Services,Children in Care & Fostering,JPAM,Third Party Payments,External Foster Care Payments,SWIIS FOSTER CARE LTD,24/06/2014,872.62
Children's Safeguarding & Specialist Services,Children in Care & Fostering,JPAN,Third Party Payments,Private Contractors,Youth Justice Board,24/06/2014,"1,413.00"
Children's Safeguarding & Specialist Services,Children in Care & Fostering,JPAN,Third Party Payments,Private Contractors,Youth Justice Board,24/06/2014,"4,740.00"
Children's Safeguarding & Specialist Services,Children in Care & Fostering,JPAN,Third Party Payments,Private Contractors,Youth Justice Board,24/06/2014,"4,867.00"
Children's Safeguarding & Specialist Services,Children in Care & Fostering,JPAN,Third Party Payments,Residential Expenditure,Unity Residential Care Services Ltd,11/06/2014,"17,240.00"
Children's Safeguarding & Specialist Services,Children in Care & Fostering,JPAN,Third Party Payments,Residential Expenditure,ABC CARE LTD,18/06/2014,"13,405.33"
Children's Safeguarding & Specialist Services,Children in Care & Fostering,JPAN,Third Party Payments,Residential Expenditure,KEYS CHILDCARE LTD,13/06/2014,"10,714.20"
Children's Safeguarding & Specialist Services,Children in Care & Fostering,JPAN,Third Party Payments,Residential Expenditure,PRESTIGE ADOLESCENT CARE & EDUCATION,13/06/2014,"11,514.33"
Children's Safeguarding & Specialist Services,Children in Care & Fostering,JPAN,Third Party Payments,Residential Expenditure,SUNFIELD CHILDRENS HOMES LTD,05/06/2014,"15,691.17"
Children's Safeguarding & Specialist Services,Children in Care & Fostering,JPAN,Third Party Payments,Residential Expenditure,Mullberry House Care Homes Limited,02/06/2014,"17,271.43"
Children's Safeguarding & Specialist Services,Children in Care & Fostering,JPAN,Third Party Payments,Residential Expenditure,CARE TODAY CHILDRENS SERVICES,02/06/2014,"2,156.00"
Children's Safeguarding & Specialist Services,Children in Care & Fostering,JPAN,Third Party Payments,Residential Expenditure,Mullberry House Care Homes Limited,02/06/2014,"16,714.29"
Children's Safeguarding & Specialist Services,Children in Care & Fostering,JPAN,Third Party Payments,Residential Expenditure,Unity Residential Care Services Ltd,10/06/2014,"10,520.00"
Children's Safeguarding & Specialist Services,Children in Care & Fostering,JPAN,Third Party Payments,Residential Expenditure,CASTLE HOMES CARE LIMITED,05/06/2014,"13,384.25"
Children's Safeguarding & Specialist Services,Children in Care & Fostering,JPAN,Third Party Payments,Residential Expenditure,CASTLE HOMES CARE LIMITED,05/06/2014,"13,384.25"
Children's Safeguarding & Specialist Services,Children in Care & Fostering,JPAN,Third Party Payments,Residential Expenditure,YOUNG OPTIONS COLLEGE LTD,30/06/2014,"17,066.30"
Children's Safeguarding & Specialist Services,Children in Care & Fostering,JPAN,Third Party Payments,Residential Expenditure,KEYS CHILDCARE LTD,30/06/2014,"2,125.00"
Children's Safeguarding & Specialist Services,Children in Care & Fostering,JPAN,Third Party Payments,Residential Expenditure,KEYS CHILDCARE LTD,30/06/2014,"1,275.00"
Children's Safeguarding & Specialist Services,Children in Care & Fostering,JPAN,Third Party Payments,Residential Expenditure,CARE TODAY CHILDRENS SERVICES,30/06/2014,"3,449.60"
Children's Safeguarding & Specialist Services,Children in Care & Fostering,JPAN,Third Party Payments,Residential Expenditure,Mullberry House Care Homes Limited,30/06/2014,"5,571.43"
Children's Safeguarding & Specialist Services,Children in Care & Fostering,JPAN,Third Party Payments,Residential Expenditure,KEYS CHILDCARE LTD,30/06/2014,"-5,775.00"
Children's Safeguarding & Specialist Services,Children in Care & Fostering,JPAN,Third Party Payments,Residential Expenditure,HORIZON CARE & EDUCATION GROUP LTD,25/06/2014,"12,642.90"
Children's Safeguarding & Specialist Services,Children in Care & Fostering,JPAN,Third Party Payments,Residential Expenditure,KEYS CHILDCARE LTD,27/06/2014,"1,000.00"
Children's Safeguarding & Specialist Services,Children in Care & Fostering,JPAN,Third Party Payments,Residential Expenditure,CARE TODAY CHILDRENS SERVICES,10/06/2014,"3,489.67"
Children's Safeguarding & Specialist Services,Children in Care & Fostering,JPAN,Third Party Payments,Residential Expenditure,Unity Residential Care Services Ltd,25/06/2014,"24,154.50"
Children's Safeguarding & Specialist Services,Children in Care & Fostering,JPAN,Third Party Payments,Residential Expenditure,SACCS CARE LTD,25/06/2014,"-20,477.71"
Children's Safeguarding & Specialist Services,Children in Care & Fostering,JPAN,Third Party Payments,Residential Expenditure,KEYS CHILDCARE LTD,25/06/2014,"11,314.20"
Children's Safeguarding & Specialist Services,Children in Care & Fostering,JPAN,Third Party Payments,Residential Expenditure,PRESTIGE ADOLESCENT CARE & EDUCATION,25/06/2014,"11,142.90"
Children's Safeguarding & Specialist Services,Children in Care & Fostering,JPAN,Third Party Payments,Residential Expenditure,KEYS CHILDCARE LTD,26/06/2014,"11,071.34"
Children's Safeguarding & Specialist Services,Children in Care & Fostering,JPAN,Third Party Payments,Residential Expenditure,NEW HORIZONS CHILD CARE LTD,26/06/2014,"10,714.20"
Children's Safeguarding & Specialist Services,Children in Care & Fostering,JPAN,Third Party Payments,Residential Expenditure,KEYS CHILDCARE LTD,26/06/2014,"10,714.20"
Children's Safeguarding & Specialist Services,Children in Care & Fostering,JPAN,Third Party Payments,Residential Expenditure,CASTLE HOMES CARE LIMITED,26/06/2014,431.75
Children's Safeguarding & Specialist Services,Children in Care & Fostering,JPAN,Third Party Payments,Residential Expenditure,MGM CARE SERVICES LTD,27/06/2014,"11,539.50"
Children's Safeguarding & Specialist Services,Children in Care & Fostering,JPAN,Third Party Payments,Residential Expenditure,CARE TODAY CHILDRENS SERVICES,26/06/2014,-454.71
Children's Safeguarding & Specialist Services,Children in Care & Fostering,JPAN,Third Party Payments,Residential Expenditure,CARE TODAY CHILDRENS SERVICES,26/06/2014,"14,096.01"
Children's Safeguarding & Specialist Services,Children in Care & Fostering,JPAN,Third Party Payments,Residential Expenditure,ABC CARE LTD,16/06/2014,"9,142.72"
Children's Safeguarding & Specialist Services,Children in Care & Fostering,JPAN,Third Party Payments,Residential Expenditure,ABC CARE LTD,16/06/2014,"13,214.18"
Children's Safeguarding & Specialist Services,Children in Care & Fostering,JPAN,Third Party Payments,Residential Expenditure,BETTERCARE KEYS LTD,17/06/2014,"8,414.33"
Children's Safeguarding & Specialist Services,Children in Care & Fostering,JPAN,Third Party Payments,Residential Expenditure,BETTERCARE KEYS LTD,17/06/2014,"8,414.33"
Children's Safeguarding & Specialist Services,Children in Care & Fostering,JPAN,Third Party Payments,Residential Expenditure,BETTERCARE KEYS LTD,18/06/2014,"8,414.33"
Children's Safeguarding & Specialist Services,Children in Care & Fostering,JPAN,Third Party Payments,Residential Expenditure,HORIZON CARE & EDUCATION GROUP LTD,19/06/2014,"13,064.33"
Children's Safeguarding & Specialist Services,Children in Care & Fostering,JPAN,Third Party Payments,Residential Expenditure,HORIZON CARE & EDUCATION GROUP LTD,19/06/2014,"12,642.90"
Children's Safeguarding & Specialist Services,Children in Care & Fostering,JPAN,Third Party Payments,Residential Expenditure,NEW HORIZONS CHILD CARE LTD,20/06/2014,"11,071.34"
Children's Safeguarding & Specialist Services,Children in Care & Fostering,JPAN,Third Party Payments,Residential Expenditure,BETTERCARE KEYS LTD,09/06/2014,"-8,421.30"
Children's Safeguarding & Specialist Services,Children in Care & Fostering,JPAN,Third Party Payments,Residential Expenditure,BETTERCARE KEYS LTD,09/06/2014,"-5,052.78"
Children's Safeguarding & Specialist Services,Children in Care & Fostering,JPAN,Third Party Payments,Residential Expenditure,BETTERCARE KEYS LTD,09/06/2014,"-4,885.74"
Children's Safeguarding & Specialist Services,Children in Care & Fostering,JPAN,Third Party Payments,Residential Expenditure,BETTERCARE KEYS LTD,09/06/2014,"8,421.30"
Children's Safeguarding & Specialist Services,Children in Care & Fostering,JPAN,Third Party Payments,Residential Expenditure,BETTERCARE KEYS LTD,09/06/2014,"5,971.46"
Children's Safeguarding & Specialist Services,Children in Care & Fostering,JPAN,Third Party Payments,Residential Expenditure,BETTERCARE KEYS LTD,09/06/2014,"8,702.01"
Children's Safeguarding & Specialist Services,Children in Care & Fostering,JPAN,Third Party Payments,Residential Expenditure,BETTERCARE KEYS LTD,09/06/2014,"5,052.78"
Children's Safeguarding & Specialist Services,Children in Care & Fostering,JPAN,Third Party Payments,Residential Expenditure,BETTERCARE KEYS LTD,09/06/2014,"8,421.30"
Children's Safeguarding & Specialist Services,Children in Care & Fostering,JPAN,Third Party Payments,Residential Expenditure,BETTERCARE KEYS LTD,09/06/2014,"1,628.58"
Children's Safeguarding & Specialist Services,Children in Care & Fostering,JPAN,Third Party Payments,Residential Expenditure,BETTERCARE KEYS LTD,09/06/2014,"8,702.01"
Children's Safeguarding & Specialist Services,Children in Care & Fostering,JPAN,Third Party Payments,Residential Expenditure,BETTERCARE KEYS LTD,09/06/2014,"8,421.30"
Children's Safeguarding & Specialist Services,Children in Care & Fostering,JPAN,Third Party Payments,Residential Expenditure,Unity Residential Care Services Ltd,09/06/2014,"10,520.00"
Children's Safeguarding & Specialist Services,Children in Care & Fostering,JPAN,Third Party Payments,Residential Expenditure,CARE TODAY CHILDRENS SERVICES,09/06/2014,"12,407.10"
Children's Safeguarding & Specialist Services,Children in Care & Fostering,JPAN,Third Party Payments,Residential Expenditure,CARE TODAY CHILDRENS SERVICES,09/06/2014,"3,377.10"
Children's Safeguarding & Specialist Services,Children in Care & Fostering,JPAN,Third Party Payments,Residential Expenditure,CARE TODAY CHILDRENS SERVICES,10/06/2014,"12,820.67"
Children's Safeguarding & Specialist Services,Children in Care & Fostering,JPAN,Third Party Payments,Residential Expenditure,NEW HORIZONS CHILD CARE LTD,24/06/2014,"10,714.20"
Children's Safeguarding & Specialist Services,Children in Care & Fostering,JPAN,Third Party Payments,Residential Expenditure,KEYS CHILDCARE LTD,24/06/2014,750.00
Children's Safeguarding & Specialist Services,Children in Care & Fostering,JPAN,Third Party Payments,Residential Expenditure,HORIZON CARE & EDUCATION GROUP LTD,24/06/2014,"12,642.90"
Children's Safeguarding & Specialist Services,Children in Care & Fostering,JPAT,Supplies & Services,Legal Expenses,TERRY JONES SOLICITORS & ADVOCATES,24/06/2014,720.00
Co-Operative Council,Community Engagement & Voluntary Sector,AEAH,Supplies & Services,Out of School Activities,TELFORD & WREKIN CITIZENS ADVICE BUREAU,03/06/2014,"254,000.00"
Co-Operative Council,Community Engagement & Voluntary Sector,LEAC,Supplies & Services,Comp Hardware (Purch / Hire),WEST MERCIA SUPPLIES Catalogue Supplies (None Utility),23/06/2014,369.99
Co-Operative Council,Community Engagement & Voluntary Sector,MCAC,Supplies & Services,Equipment - Purchase,SPECIALIST COMPUTERS CENTRES PLC,12/06/2014,238.71
Co-Operative Council,Corporate Communications,MMAD,Employees,Recruitment Advertising,THE MIDLAND NEWS ASSOCIATION LTD,27/06/2014,624.37
Co-Operative Council,Corporate Communications,MMAD,Employees,Recruitment Advertising,THE MIDLAND NEWS ASSOCIATION LTD,27/06/2014,563.40
Co-Operative Council,Corporate Communications,MMAD,Employees,Recruitment Advertising,THE MIDLAND NEWS ASSOCIATION LTD,20/06/2014,563.40
Co-Operative Council,Corporate Communications,MMAD,Supplies & Services,Advertising,WHATS ON MAGAZINES LTD F1069,27/06/2014,260.00
Co-Operative Council,Corporate Communications,MMAD,Supplies & Services,Advertising,Exterion Media (UK) Limited,27/06/2014,510.00
Co-Operative Council,Corporate Communications,MMAD,Supplies & Services,Advertising,MERIDIAN COST BENEFIT LTD,18/06/2014,311.94
Co-Operative Council,Corporate Communications,MMAD,Supplies & Services,Advertising,THE MIDLAND NEWS ASSOCIATION LTD,20/06/2014,238.14
Co-Operative Council,Corporate Communications,MMAD,Supplies & Services,Advertising,THE MIDLAND NEWS ASSOCIATION LTD,24/06/2014,142.75
Co-Operative Council,Corporate Communications,MMAD,Supplies & Services,Advertising,THE MIDLAND NEWS ASSOCIATION LTD,24/06/2014,-142.75
Co-Operative Council,Corporate Communications,MMAD,Supplies & Services,Advertising,THE MIDLAND NEWS ASSOCIATION LTD,24/06/2014,-238.14
Co-Operative Council,Delivery & Planning,MDAB,Employees,Professional Subs,Office for National Statistics,09/06/2014,150.00
Co-Operative Council,Policy & Strategy,MPAA,Supplies & Services,Conference Expenses,GOVNET COMMUNICATIONS,04/06/2014,355.00
Co-Operative Council,Policy & Strategy,MPAA,Supplies & Services,Other Expenses,WYG Environment Planning Transport Ltd,02/06/2014,"1,998.00"
Co-Operative Council,Policy & Strategy,MPAA,Supplies & Services,Other Expenses,ARUP,26/06/2014,"10,100.00"
Customer Services,ALD Services,HLBB,Supplies & Services,Provisions,G N BADLEY & SONS,30/06/2014,154.48
Customer Services,ALD Services,HLBB,Supplies & Services,Laundry & Towel Hire,PHS WASTEMANAGEMENT,19/06/2014,449.60
Customer Services,ALD Services,HLBC,Supplies & Services,Provisions,BIKOLD,03/06/2014,246.70
Customer Services,ALD Services,HLBC,Supplies & Services,Provisions,BIKOLD,03/06/2014,115.36
Customer Services,ALD Services,HLBC,Supplies & Services,Provisions,BIKOLD,03/06/2014,217.25
Customer Services,ALD Services,HLBC,Supplies & Services,Provisions,BIKOLD,17/06/2014,119.85
Customer Services,ALD Services,HLBC,Supplies & Services,Provisions,BIKOLD,25/06/2014,104.88
Customer Services,ALD Services,HLBC,Supplies & Services,Laundry & Towel Hire,PHS GROUP LTD,24/06/2014,439.68
Customer Services,ALD Services,HLCE,Premises-Related Expenditure,General Rents,THE WREKIN HOUSING TRUST (INVOICES ONLY),17/06/2014,"2,018.58"
Customer Services,ALD Services,HLDB,Supplies & Services,Equipment - Purchase,JACKDAW DINSTOCK,24/06/2014,131.04
Customer Services,ALD Services,HLDB,Supplies & Services,Items For Resale,TELFORD TIMBER SUPPLIES,18/06/2014,200.00
Customer Services,ALD Services,HLDB,Supplies & Services,Items For Resale,TELFORD TIMBER SUPPLIES,18/06/2014,133.00
Customer Services,ALD Services,HLDB,Supplies & Services,Items For Resale,TELFORD TIMBER SUPPLIES,18/06/2014,104.00
Customer Services,ALD Services,HLDC,Supplies & Services,Equipment - Hire,WEST MERCIA SUPPLIES Catalogue Supplies (None Utility),03/06/2014,220.17
Customer Services,ALD Services,HLEB,Supplies & Services,Equipment - Purchase,THE CONSORTIUM FOR PURCHASING & DISTRIBUTION LTD T/A WEST MERCIA SUPPLIES,06/06/2014,422.37
Customer Services,ALD Services,HLEC,Capital Financing Costs,Leased Equipment,LEX AUTOLEASE LTD,06/06/2014,500.14
Customer Services,ALD Services,HLEC,Employees,Agency Supply Costs,WE ARE THE CARE COMPANY LTD,06/06/2014,293.75
Customer Services,ALD Services,HLEC,Supplies & Services,Protective Clothing,CARESHOP,06/06/2014,357.08
Customer Services,ALD Services,HLEC,Supplies & Services,Equipment - Purchase,EVAC+CHAIR INTERNATIONAL LTD,06/06/2014,145.00
Customer Services,ALD Services,HLEG,Supplies & Services,Respite Care,Redacted Personal Information,10/06/2014,"1,135.58"
Customer Services,Benefits,LRSF,Supplies & Services,Supplies & Services,PayPoint Network Limited,06/06/2014,"2,400.00"
Customer Services,Benefits,LRSF,Transfer Payments,Crisis Assistance Awards,PayPoint Network Limited,11/06/2014,135.00
Customer Services,Benefits,LRSF,Transfer Payments,Crisis Assistance Awards,DAWLEY BARGAIN CENTRE,11/06/2014,180.00
Customer Services,Benefits,LRSF,Transfer Payments,Crisis Assistance Awards,DAWLEY BARGAIN CENTRE,11/06/2014,115.00
Customer Services,Benefits,LRSF,Transfer Payments,Crisis Assistance Awards,Shropshire Community Project,11/06/2014,139.00
Customer Services,Benefits,LRSF,Transfer Payments,Crisis Assistance Awards,DAWLEY BARGAIN CENTRE,11/06/2014,185.00
Customer Services,Benefits,LRSF,Transfer Payments,Crisis Assistance Awards,DAWLEY BARGAIN CENTRE,11/06/2014,505.00
Customer Services,Benefits,LRSF,Transfer Payments,Crisis Assistance Awards,DAWLEY BARGAIN CENTRE,11/06/2014,455.00
Customer Services,Benefits,LRSF,Transfer Payments,Crisis Assistance Awards,A W HOLDINGS,11/06/2014,974.00
Customer Services,Benefits,LRSF,Transfer Payments,Crisis Assistance Awards,PayPoint Network Limited,06/06/2014,170.00
Customer Services,Benefits,LRSF,Transfer Payments,Crisis Assistance Awards,DAWLEY BARGAIN CENTRE,06/06/2014,405.00
Customer Services,Benefits,LRSF,Transfer Payments,Crisis Assistance Awards,DAWLEY BARGAIN CENTRE,06/06/2014,190.00
Customer Services,Benefits,LRSF,Transfer Payments,Crisis Assistance Awards,DAWLEY BARGAIN CENTRE,06/06/2014,120.00
Customer Services,Benefits,LRSF,Transfer Payments,Crisis Assistance Awards,DAWLEY BARGAIN CENTRE,06/06/2014,185.00
Customer Services,Benefits,LRSF,Transfer Payments,Crisis Assistance Awards,PayPoint Network Limited,23/06/2014,231.00
Customer Services,Benefits,LRSF,Transfer Payments,Crisis Assistance Awards,DAWLEY BARGAIN CENTRE,23/06/2014,135.00
Customer Services,Benefits,LRSF,Transfer Payments,Crisis Assistance Awards,DAWLEY BARGAIN CENTRE,23/06/2014,200.00
Customer Services,Benefits,LRSF,Transfer Payments,Crisis Assistance Awards,DAWLEY BARGAIN CENTRE,23/06/2014,235.00
Customer Services,Benefits,LRSF,Transfer Payments,Crisis Assistance Awards,DAWLEY BARGAIN CENTRE,23/06/2014,305.00
Customer Services,Benefits,LRSF,Transfer Payments,Crisis Assistance Awards,DAWLEY BARGAIN CENTRE,23/06/2014,185.00
Customer Services,Benefits,LRSF,Transfer Payments,Crisis Assistance Awards,DAWLEY BARGAIN CENTRE,23/06/2014,230.00
Customer Services,Benefits,LRTC,Employees,Staff Training,CIPFA BUSINESS LTD,13/06/2014,325.00
Customer Services,Benefits,LRTC,Supplies & Services,Comp Software (Purch / Hire),NORTHGATE INFORMATION SOLUTIONS UK LTD,18/06/2014,950.00
Customer Services,Benefits,LRTC,Supplies & Services,Comp Software (Purch / Hire),NORTHGATE INFORMATION SOLUTIONS UK LTD,18/06/2014,950.00
Customer Services,Benefits,LRTC,Supplies & Services,Postages,ROYAL MAIL GROUP LTD,10/06/2014,135.18
Customer Services,Catering,CAFT,Supplies & Services,Provisions,TROPICAL ICE,02/06/2014,205.00
Customer Services,Catering,CAFT,Supplies & Services,Provisions,John Sheppard Catering Butchers,05/06/2014,165.44
Customer Services,Catering,CAFT,Supplies & Services,Equipment - Purchase,ERIC NEVILLE CATERING SUPPLIES LTD,05/06/2014,346.49
Customer Services,Catering,CAFT,Supplies & Services,Equipment - Hire,FCC RECYCLING (UK) LIMITED,20/06/2014,207.87
Customer Services,Catering,CAFT,Supplies & Services,Provisions,BIKOLD,24/06/2014,"3,974.00"
Customer Services,Catering,CAHH,Premises-Related Expenditure,General Rents,Eversheds LLP,10/06/2014,"2,500.00"
Customer Services,Catering,CAHH,Supplies & Services,Provisions,Shepleys Butchers,12/06/2014,100.02
Customer Services,Catering,CAHH,Supplies & Services,Provisions,Shepleys Butchers,02/06/2014,214.62
Customer Services,Catering,CAHH,Supplies & Services,Provisions,BIKOLD,27/06/2014,144.84
Customer Services,Catering,CAHH,Supplies & Services,Provisions,BIKOLD,27/06/2014,237.25
Customer Services,Catering,CAHH,Supplies & Services,Equipment - Hire,FCC RECYCLING (UK) LIMITED,20/06/2014,-111.93
Customer Services,Catering,CAHH,Supplies & Services,Provisions,Aroma Tea & Coffee Merchants,20/06/2014,179.55
Customer Services,Catering,CAHH,Supplies & Services,Provisions,BIKOLD,23/06/2014,193.64
Customer Services,Catering,CAMA,Supplies & Services,Stationery,CIEH,04/06/2014,922.95
Customer Services,Catering,CAMA,Supplies & Services,Postages,ROYAL MAIL GROUP LTD,10/06/2014,118.06
Customer Services,Catering,CASM,Supplies & Services,EEC Whole Milk,JOHAL DAIRIES,25/06/2014,743.39
Customer Services,Catering,CASM,Supplies & Services,EEC Whole Milk,JOHAL DAIRIES,25/06/2014,"1,805.95"
Customer Services,Catering,CASN,Supplies & Services,Provisions,BIKOLD,12/06/2014,146.90
Customer Services,Catering,CASN,Supplies & Services,Provisions,BIKOLD,12/06/2014,180.38
Customer Services,Catering,CASN,Supplies & Services,Provisions,John Sheppard Catering Butchers,03/06/2014,188.63
Customer Services,Catering,CASN,Supplies & Services,Provisions,John Sheppard Catering Butchers,05/06/2014,118.72
Customer Services,Catering,CASN,Supplies & Services,Provisions,ROWLANDS & COMPANY,05/06/2014,111.28
Customer Services,Catering,CASN,Supplies & Services,Provisions,ROWLANDS & COMPANY,05/06/2014,127.09
Customer Services,Catering,CASN,Supplies & Services,Provisions,BIKOLD,06/06/2014,179.90
Customer Services,Catering,CASN,Supplies & Services,Provisions,BIKOLD,06/06/2014,235.10
Customer Services,Catering,CASN,Supplies & Services,Provisions,BIKOLD,06/06/2014,160.32
Customer Services,Catering,CASN,Supplies & Services,Provisions,BIKOLD,06/06/2014,182.69
Customer Services,Catering,CASN,Supplies & Services,Provisions,ROWLANDS & COMPANY,26/06/2014,133.70
Customer Services,Catering,CASN,Supplies & Services,Provisions,ROWLANDS & COMPANY,26/06/2014,102.20
Customer Services,Catering,CASN,Supplies & Services,Provisions,BIKOLD,27/06/2014,150.64
Customer Services,Catering,CASN,Supplies & Services,Provisions,BIKOLD,27/06/2014,162.03
Customer Services,Catering,CASN,Supplies & Services,Provisions,BIKOLD,27/06/2014,148.15
Customer Services,Catering,CASN,Supplies & Services,Provisions,BIKOLD,27/06/2014,126.74
Customer Services,Catering,CASN,Supplies & Services,Provisions,ROWLANDS & COMPANY,23/06/2014,124.03
Customer Services,Catering,CASN,Supplies & Services,Provisions,BIKOLD,23/06/2014,164.20
Customer Services,Catering,CASN,Supplies & Services,Provisions,BIKOLD,23/06/2014,111.95
Customer Services,Catering,CASN,Supplies & Services,Provisions,BIKOLD,23/06/2014,218.18
Customer Services,Catering,CASP,Premises-Related Expenditure,Clean Mats & Toilet Requisites,WEST MERCIA SUPPLIES Catalogue Supplies (None Utility),03/06/2014,102.15
Customer Services,Catering,CASP,Supplies & Services,Equipment - Purchase,ERIC NEVILLE CATERING SUPPLIES LTD,04/06/2014,196.00
Customer Services,Catering,CASP,Supplies & Services,Crockery/Hardware/Light Equip,ERIC NEVILLE CATERING SUPPLIES LTD,04/06/2014,334.93
Customer Services,Catering,CASP,Supplies & Services,Equipment - Hire,FCC RECYCLING (UK) LIMITED,23/06/2014,179.40
Customer Services,Catering,CASP,Supplies & Services,Provisions,BIKOLD,12/06/2014,423.05
Customer Services,Catering,CASP,Supplies & Services,Provisions,BIKOLD,12/06/2014,109.14
Customer Services,Catering,CASP,Supplies & Services,Provisions,BIKOLD,12/06/2014,211.42
Customer Services,Catering,CASP,Supplies & Services,Provisions,BIKOLD,12/06/2014,123.41
Customer Services,Catering,CASP,Supplies & Services,Provisions,BIKOLD,12/06/2014,133.03
Customer Services,Catering,CASP,Supplies & Services,Provisions,BIKOLD,06/06/2014,164.41
Customer Services,Catering,CASP,Supplies & Services,Provisions,BIKOLD,06/06/2014,134.31
Customer Services,Catering,CASP,Supplies & Services,Provisions,BIKOLD,23/06/2014,252.60
Customer Services,Catering,CASP,Supplies & Services,Provisions,BIKOLD,23/06/2014,252.31
Customer Services,Catering,CASP,Supplies & Services,Provisions,BIKOLD,23/06/2014,151.70
Customer Services,Catering,CASP,Supplies & Services,Provisions,BIKOLD,23/06/2014,147.90
Customer Services,Catering,CASP,Supplies & Services,Provisions,BIKOLD,23/06/2014,124.89
Customer Services,Catering,CASP,Supplies & Services,Provisions,BIKOLD,23/06/2014,103.81
Customer Services,Catering,CASP,Supplies & Services,Provisions,BIKOLD,23/06/2014,192.57
Customer Services,Catering,CASP,Supplies & Services,Provisions,BIKOLD,23/06/2014,201.12
Customer Services,Catering,CASP,Supplies & Services,Provisions,BIKOLD,23/06/2014,227.92
Customer Services,Catering,CASP,Supplies & Services,Provisions,BIKOLD,23/06/2014,349.18
Customer Services,Catering,CASP,Supplies & Services,Provisions,BIKOLD,23/06/2014,191.70
Customer Services,Catering,CASP,Supplies & Services,Provisions,BIKOLD,23/06/2014,229.50
Customer Services,Catering,CASP,Supplies & Services,Provisions,BIKOLD,23/06/2014,128.63
Customer Services,Catering,CASP,Supplies & Services,Provisions,BIKOLD,23/06/2014,108.08
Customer Services,Catering,CASP,Supplies & Services,Provisions,BIKOLD,23/06/2014,156.21
Customer Services,Catering,CASP,Supplies & Services,Provisions,BIKOLD,23/06/2014,100.43
Customer Services,Catering,CASP,Supplies & Services,Provisions,BIKOLD,23/06/2014,260.83
Customer Services,Catering,CASP,Supplies & Services,Provisions,BIKOLD,23/06/2014,423.41
Customer Services,Catering,CASP,Supplies & Services,Provisions,SMART FOOD,12/06/2014,458.65
Customer Services,Catering,CASP,Supplies & Services,Provisions,Brambles Foods Ltd,12/06/2014,139.92
Customer Services,Catering,CASP,Supplies & Services,Provisions,BIKOLD,12/06/2014,190.76
Customer Services,Catering,CASP,Supplies & Services,Provisions,BIKOLD,12/06/2014,154.35
Customer Services,Catering,CASP,Supplies & Services,Provisions,BIKOLD,12/06/2014,173.59
Customer Services,Catering,CASP,Supplies & Services,Provisions,BIKOLD,12/06/2014,106.21
Customer Services,Catering,CASP,Supplies & Services,Provisions,BIKOLD,12/06/2014,110.76
Customer Services,Catering,CASP,Supplies & Services,Provisions,BIKOLD,12/06/2014,206.12
Customer Services,Catering,CASP,Supplies & Services,Provisions,BIKOLD,12/06/2014,133.09
Customer Services,Catering,CASP,Supplies & Services,Provisions,BIKOLD,12/06/2014,101.55
Customer Services,Catering,CASP,Supplies & Services,Provisions,BIKOLD,12/06/2014,172.73
Customer Services,Catering,CASP,Supplies & Services,Provisions,BIKOLD,12/06/2014,135.54
Customer Services,Catering,CASP,Supplies & Services,Provisions,BIKOLD,12/06/2014,240.94
Customer Services,Catering,CASP,Supplies & Services,Provisions,BIKOLD,12/06/2014,176.93
Customer Services,Catering,CASP,Supplies & Services,Provisions,BIKOLD,12/06/2014,169.52
Customer Services,Catering,CASP,Supplies & Services,Provisions,BIKOLD,12/06/2014,181.14
Customer Services,Catering,CASP,Supplies & Services,Provisions,BIKOLD,12/06/2014,149.43
Customer Services,Catering,CASP,Supplies & Services,Provisions,BIKOLD,12/06/2014,217.93
Customer Services,Catering,CASP,Supplies & Services,Provisions,BIKOLD,12/06/2014,112.55
Customer Services,Catering,CASP,Supplies & Services,Provisions,BIKOLD,12/06/2014,139.17
Customer Services,Catering,CASP,Supplies & Services,Provisions,BIKOLD,12/06/2014,150.07
Customer Services,Catering,CASP,Supplies & Services,Provisions,BIKOLD,12/06/2014,100.06
Customer Services,Catering,CASP,Supplies & Services,Provisions,BIKOLD,12/06/2014,182.43
Customer Services,Catering,CASP,Supplies & Services,Provisions,BIKOLD,12/06/2014,178.49
Customer Services,Catering,CASP,Supplies & Services,Provisions,BIKOLD,12/06/2014,326.33
Customer Services,Catering,CASP,Supplies & Services,Provisions,BIKOLD,12/06/2014,116.29
Customer Services,Catering,CASP,Supplies & Services,Provisions,BIKOLD,12/06/2014,179.51
Customer Services,Catering,CASP,Supplies & Services,Provisions,BIKOLD,12/06/2014,146.83
Customer Services,Catering,CASP,Supplies & Services,Provisions,BIKOLD,12/06/2014,175.55
Customer Services,Catering,CASP,Supplies & Services,Provisions,BIKOLD,12/06/2014,258.58
Customer Services,Catering,CASP,Supplies & Services,Provisions,BIKOLD,12/06/2014,178.40
Customer Services,Catering,CASP,Supplies & Services,Provisions,BIKOLD,12/06/2014,118.05
Customer Services,Catering,CASP,Supplies & Services,Provisions,BIKOLD,12/06/2014,127.13
Customer Services,Catering,CASP,Supplies & Services,Provisions,BIKOLD,12/06/2014,222.89
Customer Services,Catering,CASP,Supplies & Services,Provisions,BIKOLD,12/06/2014,134.45
Customer Services,Catering,CASP,Supplies & Services,Provisions,BIKOLD,12/06/2014,258.44
Customer Services,Catering,CASP,Supplies & Services,Provisions,BIKOLD,12/06/2014,173.18
Customer Services,Catering,CASP,Supplies & Services,Provisions,BIKOLD,12/06/2014,288.55
Customer Services,Catering,CASP,Supplies & Services,Provisions,BIKOLD,12/06/2014,153.13
Customer Services,Catering,CASP,Supplies & Services,Provisions,BIKOLD,12/06/2014,164.44
Customer Services,Catering,CASP,Supplies & Services,Provisions,BIKOLD,12/06/2014,155.80
Customer Services,Catering,CASP,Supplies & Services,Provisions,BIKOLD,12/06/2014,118.70
Customer Services,Catering,CASP,Supplies & Services,Provisions,BIKOLD,12/06/2014,109.76
Customer Services,Catering,CASP,Supplies & Services,Provisions,BIKOLD,12/06/2014,115.78
Customer Services,Catering,CASP,Supplies & Services,Provisions,BIKOLD,12/06/2014,151.17
Customer Services,Catering,CASP,Supplies & Services,Provisions,BIKOLD,12/06/2014,118.87
Customer Services,Catering,CASP,Supplies & Services,Provisions,BIKOLD,12/06/2014,369.58
Customer Services,Catering,CASP,Supplies & Services,Provisions,BIKOLD,12/06/2014,160.80
Customer Services,Catering,CASP,Supplies & Services,Provisions,BIKOLD,12/06/2014,182.98
Customer Services,Catering,CASP,Supplies & Services,Provisions,BIKOLD,12/06/2014,123.78
Customer Services,Catering,CASP,Supplies & Services,Provisions,BIKOLD,12/06/2014,115.81
Customer Services,Catering,CASP,Supplies & Services,Provisions,BIKOLD,12/06/2014,220.30
Customer Services,Catering,CASP,Supplies & Services,Provisions,BIKOLD,12/06/2014,165.37
Customer Services,Catering,CASP,Supplies & Services,Provisions,BIKOLD,12/06/2014,113.59
Customer Services,Catering,CASP,Supplies & Services,Provisions,BIKOLD,12/06/2014,334.05
Customer Services,Catering,CASP,Supplies & Services,Provisions,BIKOLD,12/06/2014,127.98
Customer Services,Catering,CASP,Supplies & Services,Provisions,BIKOLD,12/06/2014,387.10
Customer Services,Catering,CASP,Supplies & Services,Provisions,BIKOLD,12/06/2014,258.66
Customer Services,Catering,CASP,Supplies & Services,Provisions,BIKOLD,12/06/2014,218.02
Customer Services,Catering,CASP,Supplies & Services,Provisions,BIKOLD,12/06/2014,132.02
Customer Services,Catering,CASP,Supplies & Services,Provisions,BIKOLD,12/06/2014,129.08
Customer Services,Catering,CASP,Supplies & Services,Provisions,Brambles Foods Ltd,02/06/2014,105.57
Customer Services,Catering,CASP,Supplies & Services,Provisions,SAFY IMPEX T/A SPICE TIME,02/06/2014,100.50
Customer Services,Catering,CASP,Supplies & Services,Provisions,ROWLANDS & COMPANY,02/06/2014,360.03
Customer Services,Catering,CASP,Supplies & Services,Provisions,ROWLANDS & COMPANY,02/06/2014,119.68
Customer Services,Catering,CASP,Supplies & Services,Provisions,ROWLANDS & COMPANY,02/06/2014,163.72
Customer Services,Catering,CASP,Supplies & Services,Provisions,ROWLANDS & COMPANY,02/06/2014,131.30
Customer Services,Catering,CASP,Supplies & Services,Provisions,John Sheppard Catering Butchers,03/06/2014,185.42
Customer Services,Catering,CASP,Supplies & Services,Provisions,John Sheppard Catering Butchers,03/06/2014,106.39
Customer Services,Catering,CASP,Supplies & Services,Provisions,John Sheppard Catering Butchers,03/06/2014,148.10
Customer Services,Catering,CASP,Supplies & Services,Provisions,John Sheppard Catering Butchers,03/06/2014,112.62
Customer Services,Catering,CASP,Supplies & Services,Provisions,John Sheppard Catering Butchers,03/06/2014,107.16
Customer Services,Catering,CASP,Supplies & Services,Provisions,John Sheppard Catering Butchers,03/06/2014,230.69
Customer Services,Catering,CASP,Supplies & Services,Provisions,John Sheppard Catering Butchers,03/06/2014,233.13
Customer Services,Catering,CASP,Supplies & Services,Provisions,John Sheppard Catering Butchers,03/06/2014,124.78
Customer Services,Catering,CASP,Supplies & Services,Provisions,John Sheppard Catering Butchers,03/06/2014,117.94
Customer Services,Catering,CASP,Supplies & Services,Provisions,John Sheppard Catering Butchers,03/06/2014,102.89
Customer Services,Catering,CASP,Supplies & Services,Provisions,John Sheppard Catering Butchers,05/06/2014,177.05
Customer Services,Catering,CASP,Supplies & Services,Provisions,John Sheppard Catering Butchers,05/06/2014,103.52
Customer Services,Catering,CASP,Supplies & Services,Provisions,ROWLANDS & COMPANY,05/06/2014,119.22
Customer Services,Catering,CASP,Supplies & Services,Provisions,ROWLANDS & COMPANY,05/06/2014,-144.82
Customer Services,Catering,CASP,Supplies & Services,Provisions,ROWLANDS & COMPANY,05/06/2014,194.88
Customer Services,Catering,CASP,Supplies & Services,Provisions,ROWLANDS & COMPANY,05/06/2014,227.74
Customer Services,Catering,CASP,Supplies & Services,Provisions,ROWLANDS & COMPANY,05/06/2014,124.26
Customer Services,Catering,CASP,Supplies & Services,Provisions,ROWLANDS & COMPANY,05/06/2014,117.77
Customer Services,Catering,CASP,Supplies & Services,Provisions,ROWLANDS & COMPANY,05/06/2014,-338.06
Customer Services,Catering,CASP,Supplies & Services,Provisions,ROWLANDS & COMPANY,05/06/2014,125.93
Customer Services,Catering,CASP,Supplies & Services,Provisions,ROWLANDS & COMPANY,05/06/2014,158.41
Customer Services,Catering,CASP,Supplies & Services,Provisions,ROWLANDS & COMPANY,05/06/2014,127.57
Customer Services,Catering,CASP,Supplies & Services,Provisions,SAFY IMPEX T/A SPICE TIME,04/06/2014,139.75
Customer Services,Catering,CASP,Supplies & Services,Provisions,SAFY IMPEX T/A SPICE TIME,04/06/2014,247.50
Customer Services,Catering,CASP,Supplies & Services,Provisions,SAFY IMPEX T/A SPICE TIME,04/06/2014,208.50
Customer Services,Catering,CASP,Supplies & Services,Provisions,BIKOLD,06/06/2014,156.52
Customer Services,Catering,CASP,Supplies & Services,Provisions,BIKOLD,06/06/2014,256.23
Customer Services,Catering,CASP,Supplies & Services,Provisions,BIKOLD,06/06/2014,150.77
Customer Services,Catering,CASP,Supplies & Services,Provisions,BIKOLD,06/06/2014,113.88
Customer Services,Catering,CASP,Supplies & Services,Provisions,BIKOLD,06/06/2014,125.75
Customer Services,Catering,CASP,Supplies & Services,Provisions,BIKOLD,06/06/2014,176.60
Customer Services,Catering,CASP,Supplies & Services,Provisions,BIKOLD,06/06/2014,122.19
Customer Services,Catering,CASP,Supplies & Services,Provisions,BIKOLD,06/06/2014,129.42
Customer Services,Catering,CASP,Supplies & Services,Provisions,BIKOLD,06/06/2014,115.60
Customer Services,Catering,CASP,Supplies & Services,Provisions,BIKOLD,06/06/2014,104.27
Customer Services,Catering,CASP,Supplies & Services,Provisions,BIKOLD,06/06/2014,162.46
Customer Services,Catering,CASP,Supplies & Services,Provisions,BIKOLD,06/06/2014,124.20
Customer Services,Catering,CASP,Supplies & Services,Provisions,BIKOLD,06/06/2014,104.21
Customer Services,Catering,CASP,Supplies & Services,Provisions,BIKOLD,06/06/2014,122.20
Customer Services,Catering,CASP,Supplies & Services,Provisions,BIKOLD,06/06/2014,139.11
Customer Services,Catering,CASP,Supplies & Services,Provisions,BIKOLD,06/06/2014,270.42
Customer Services,Catering,CASP,Supplies & Services,Provisions,BIKOLD,06/06/2014,107.79
Customer Services,Catering,CASP,Supplies & Services,Provisions,BIKOLD,06/06/2014,124.61
Customer Services,Catering,CASP,Supplies & Services,Provisions,BIKOLD,06/06/2014,229.70
Customer Services,Catering,CASP,Supplies & Services,Provisions,BIKOLD,06/06/2014,172.02
Customer Services,Catering,CASP,Supplies & Services,Provisions,BIKOLD,06/06/2014,117.68
Customer Services,Catering,CASP,Supplies & Services,Provisions,BIKOLD,06/06/2014,110.54
Customer Services,Catering,CASP,Supplies & Services,Provisions,BIKOLD,06/06/2014,129.91
Customer Services,Catering,CASP,Supplies & Services,Provisions,BIKOLD,06/06/2014,116.01
Customer Services,Catering,CASP,Supplies & Services,Provisions,BIKOLD,06/06/2014,133.49
Customer Services,Catering,CASP,Supplies & Services,Provisions,BIKOLD,06/06/2014,142.05
Customer Services,Catering,CASP,Supplies & Services,Provisions,BIKOLD,06/06/2014,245.17
Customer Services,Catering,CASP,Supplies & Services,Provisions,BIKOLD,06/06/2014,194.76
Customer Services,Catering,CASP,Supplies & Services,Provisions,BIKOLD,06/06/2014,242.25
Customer Services,Catering,CASP,Supplies & Services,Provisions,BIKOLD,06/06/2014,131.65
Customer Services,Catering,CASP,Supplies & Services,Provisions,BIKOLD,06/06/2014,180.38
Customer Services,Catering,CASP,Supplies & Services,Provisions,BIKOLD,06/06/2014,107.78
Customer Services,Catering,CASP,Supplies & Services,Provisions,BIKOLD,06/06/2014,192.32
Customer Services,Catering,CASP,Supplies & Services,Provisions,BIKOLD,06/06/2014,111.72
Customer Services,Catering,CASP,Supplies & Services,Provisions,BIKOLD,06/06/2014,178.14
Customer Services,Catering,CASP,Supplies & Services,Provisions,BIKOLD,06/06/2014,103.55
Customer Services,Catering,CASP,Supplies & Services,Provisions,BIKOLD,06/06/2014,111.25
Customer Services,Catering,CASP,Supplies & Services,Provisions,BIKOLD,06/06/2014,141.40
Customer Services,Catering,CASP,Supplies & Services,Provisions,BIKOLD,06/06/2014,100.96
Customer Services,Catering,CASP,Supplies & Services,Provisions,BIKOLD,06/06/2014,169.76
Customer Services,Catering,CASP,Supplies & Services,Provisions,BIKOLD,06/06/2014,251.04
Customer Services,Catering,CASP,Supplies & Services,Provisions,BIKOLD,06/06/2014,255.30
Customer Services,Catering,CASP,Supplies & Services,Provisions,BIKOLD,06/06/2014,202.89
Customer Services,Catering,CASP,Supplies & Services,Provisions,BIKOLD,06/06/2014,240.12
Customer Services,Catering,CASP,Supplies & Services,Provisions,BIKOLD,06/06/2014,108.31
Customer Services,Catering,CASP,Supplies & Services,Provisions,BIKOLD,06/06/2014,162.97
Customer Services,Catering,CASP,Supplies & Services,Provisions,BIKOLD,06/06/2014,177.27
Customer Services,Catering,CASP,Supplies & Services,Provisions,BIKOLD,06/06/2014,114.84
Customer Services,Catering,CASP,Supplies & Services,Provisions,BIKOLD,06/06/2014,145.47
Customer Services,Catering,CASP,Supplies & Services,Provisions,BIKOLD,06/06/2014,276.08
Customer Services,Catering,CASP,Supplies & Services,Provisions,BIKOLD,06/06/2014,116.63
Customer Services,Catering,CASP,Supplies & Services,Provisions,BIKOLD,06/06/2014,184.43
Customer Services,Catering,CASP,Supplies & Services,Provisions,BIKOLD,06/06/2014,117.73
Customer Services,Catering,CASP,Supplies & Services,Provisions,BIKOLD,06/06/2014,142.62
Customer Services,Catering,CASP,Supplies & Services,Provisions,BIKOLD,06/06/2014,102.26
Customer Services,Catering,CASP,Supplies & Services,Provisions,BIKOLD,06/06/2014,219.55
Customer Services,Catering,CASP,Supplies & Services,Provisions,BIKOLD,06/06/2014,371.38
Customer Services,Catering,CASP,Supplies & Services,Provisions,BIKOLD,06/06/2014,110.99
Customer Services,Catering,CASP,Supplies & Services,Provisions,BIKOLD,06/06/2014,112.23
Customer Services,Catering,CASP,Supplies & Services,Provisions,BIKOLD,06/06/2014,202.52
Customer Services,Catering,CASP,Supplies & Services,Provisions,BIKOLD,06/06/2014,351.25
Customer Services,Catering,CASP,Supplies & Services,Provisions,BIKOLD,06/06/2014,117.39
Customer Services,Catering,CASP,Supplies & Services,Provisions,BIKOLD,06/06/2014,215.41
Customer Services,Catering,CASP,Supplies & Services,Provisions,BIKOLD,06/06/2014,100.87
Customer Services,Catering,CASP,Supplies & Services,Provisions,BIKOLD,06/06/2014,130.93
Customer Services,Catering,CASP,Supplies & Services,Provisions,BIKOLD,06/06/2014,188.40
Customer Services,Catering,CASP,Supplies & Services,Provisions,BIKOLD,06/06/2014,107.63
Customer Services,Catering,CASP,Supplies & Services,Provisions,BIKOLD,06/06/2014,139.07
Customer Services,Catering,CASP,Supplies & Services,Provisions,BIKOLD,06/06/2014,252.87
Customer Services,Catering,CASP,Supplies & Services,Provisions,BIKOLD,06/06/2014,246.97
Customer Services,Catering,CASP,Supplies & Services,Provisions,BIKOLD,06/06/2014,108.77
Customer Services,Catering,CASP,Supplies & Services,Provisions,ROWLANDS & COMPANY,26/06/2014,120.94
Customer Services,Catering,CASP,Supplies & Services,Provisions,ROWLANDS & COMPANY,26/06/2014,100.88
Customer Services,Catering,CASP,Supplies & Services,Provisions,ROWLANDS & COMPANY,26/06/2014,123.84
Customer Services,Catering,CASP,Supplies & Services,Provisions,ROWLANDS & COMPANY,26/06/2014,107.06
Customer Services,Catering,CASP,Supplies & Services,Provisions,ROWLANDS & COMPANY,26/06/2014,165.13
Customer Services,Catering,CASP,Supplies & Services,Provisions,ROWLANDS & COMPANY,26/06/2014,113.48
Customer Services,Catering,CASP,Supplies & Services,Provisions,ROWLANDS & COMPANY,26/06/2014,109.19
Customer Services,Catering,CASP,Supplies & Services,Provisions,ROWLANDS & COMPANY,26/06/2014,107.58
Customer Services,Catering,CASP,Supplies & Services,Provisions,ROWLANDS & COMPANY,26/06/2014,117.07
Customer Services,Catering,CASP,Supplies & Services,Provisions,ROWLANDS & COMPANY,26/06/2014,111.56
Customer Services,Catering,CASP,Supplies & Services,Provisions,ROWLANDS & COMPANY,26/06/2014,166.79
Customer Services,Catering,CASP,Supplies & Services,Provisions,ROWLANDS & COMPANY,26/06/2014,127.77
Customer Services,Catering,CASP,Supplies & Services,Provisions,BIKOLD,27/06/2014,183.09
Customer Services,Catering,CASP,Supplies & Services,Provisions,BIKOLD,27/06/2014,135.11
Customer Services,Catering,CASP,Supplies & Services,Provisions,BIKOLD,27/06/2014,251.02
Customer Services,Catering,CASP,Supplies & Services,Provisions,BIKOLD,27/06/2014,164.17
Customer Services,Catering,CASP,Supplies & Services,Provisions,BIKOLD,27/06/2014,116.40
Customer Services,Catering,CASP,Supplies & Services,Provisions,BIKOLD,27/06/2014,233.45
Customer Services,Catering,CASP,Supplies & Services,Provisions,BIKOLD,27/06/2014,119.73
Customer Services,Catering,CASP,Supplies & Services,Provisions,BIKOLD,27/06/2014,121.38
Customer Services,Catering,CASP,Supplies & Services,Provisions,BIKOLD,27/06/2014,215.26
Customer Services,Catering,CASP,Supplies & Services,Provisions,BIKOLD,27/06/2014,362.43
Customer Services,Catering,CASP,Supplies & Services,Provisions,BIKOLD,27/06/2014,112.43
Customer Services,Catering,CASP,Supplies & Services,Provisions,BIKOLD,27/06/2014,256.62
Customer Services,Catering,CASP,Supplies & Services,Provisions,BIKOLD,27/06/2014,351.92
Customer Services,Catering,CASP,Supplies & Services,Provisions,BIKOLD,27/06/2014,132.82
Customer Services,Catering,CASP,Supplies & Services,Provisions,BIKOLD,27/06/2014,111.83
Customer Services,Catering,CASP,Supplies & Services,Provisions,BIKOLD,27/06/2014,116.09
Customer Services,Catering,CASP,Supplies & Services,Provisions,BIKOLD,27/06/2014,135.44
Customer Services,Catering,CASP,Supplies & Services,Provisions,BIKOLD,27/06/2014,132.17
Customer Services,Catering,CASP,Supplies & Services,Provisions,BIKOLD,27/06/2014,146.56
Customer Services,Catering,CASP,Supplies & Services,Provisions,BIKOLD,27/06/2014,108.31
Customer Services,Catering,CASP,Supplies & Services,Provisions,BIKOLD,27/06/2014,105.02
Customer Services,Catering,CASP,Supplies & Services,Provisions,BIKOLD,27/06/2014,228.54
Customer Services,Catering,CASP,Supplies & Services,Provisions,BIKOLD,27/06/2014,103.39
Customer Services,Catering,CASP,Supplies & Services,Provisions,BIKOLD,27/06/2014,248.66
Customer Services,Catering,CASP,Supplies & Services,Provisions,BIKOLD,27/06/2014,121.03
Customer Services,Catering,CASP,Supplies & Services,Provisions,BIKOLD,27/06/2014,124.00
Customer Services,Catering,CASP,Supplies & Services,Provisions,BIKOLD,27/06/2014,130.54
Customer Services,Catering,CASP,Supplies & Services,Provisions,BIKOLD,27/06/2014,253.91
Customer Services,Catering,CASP,Supplies & Services,Provisions,BIKOLD,27/06/2014,149.09
Customer Services,Catering,CASP,Supplies & Services,Provisions,BIKOLD,27/06/2014,277.09
Customer Services,Catering,CASP,Supplies & Services,Provisions,BIKOLD,27/06/2014,182.63
Customer Services,Catering,CASP,Supplies & Services,Provisions,BIKOLD,27/06/2014,109.57
Customer Services,Catering,CASP,Supplies & Services,Provisions,BIKOLD,27/06/2014,206.14
Customer Services,Catering,CASP,Supplies & Services,Provisions,BIKOLD,27/06/2014,162.74
Customer Services,Catering,CASP,Supplies & Services,Provisions,BIKOLD,27/06/2014,176.66
Customer Services,Catering,CASP,Supplies & Services,Provisions,BIKOLD,27/06/2014,106.46
Customer Services,Catering,CASP,Supplies & Services,Provisions,BIKOLD,27/06/2014,138.94
Customer Services,Catering,CASP,Supplies & Services,Provisions,BIKOLD,27/06/2014,115.95
Customer Services,Catering,CASP,Supplies & Services,Provisions,BIKOLD,27/06/2014,114.03
Customer Services,Catering,CASP,Supplies & Services,Provisions,BIKOLD,27/06/2014,111.71
Customer Services,Catering,CASP,Supplies & Services,Provisions,BIKOLD,27/06/2014,161.46
Customer Services,Catering,CASP,Supplies & Services,Provisions,BIKOLD,27/06/2014,111.70
Customer Services,Catering,CASP,Supplies & Services,Provisions,BIKOLD,27/06/2014,170.71
Customer Services,Catering,CASP,Supplies & Services,Provisions,BIKOLD,27/06/2014,116.93
Customer Services,Catering,CASP,Supplies & Services,Provisions,BIKOLD,27/06/2014,118.82
Customer Services,Catering,CASP,Supplies & Services,Provisions,BIKOLD,27/06/2014,387.46
Customer Services,Catering,CASP,Supplies & Services,Provisions,BIKOLD,27/06/2014,230.87
Customer Services,Catering,CASP,Supplies & Services,Provisions,BIKOLD,27/06/2014,104.63
Customer Services,Catering,CASP,Supplies & Services,Provisions,BIKOLD,27/06/2014,188.99
Customer Services,Catering,CASP,Supplies & Services,Provisions,BIKOLD,27/06/2014,313.89
Customer Services,Catering,CASP,Supplies & Services,Provisions,BIKOLD,27/06/2014,146.14
Customer Services,Catering,CASP,Supplies & Services,Provisions,BIKOLD,27/06/2014,212.69
Customer Services,Catering,CASP,Supplies & Services,Provisions,BIKOLD,27/06/2014,224.56
Customer Services,Catering,CASP,Supplies & Services,Provisions,Brambles Foods Ltd,10/06/2014,134.64
Customer Services,Catering,CASP,Supplies & Services,Provisions,ROWLANDS & COMPANY,23/06/2014,120.96
Customer Services,Catering,CASP,Supplies & Services,Provisions,ROWLANDS & COMPANY,23/06/2014,182.07
Customer Services,Catering,CASP,Supplies & Services,Provisions,ROWLANDS & COMPANY,23/06/2014,119.31
Customer Services,Catering,CASP,Supplies & Services,Provisions,ROWLANDS & COMPANY,23/06/2014,118.02
Customer Services,Catering,CASP,Supplies & Services,Provisions,ROWLANDS & COMPANY,23/06/2014,159.21
Customer Services,Catering,CASP,Supplies & Services,Provisions,ROWLANDS & COMPANY,23/06/2014,106.75
Customer Services,Catering,CASP,Supplies & Services,Provisions,ROWLANDS & COMPANY,23/06/2014,111.64
Customer Services,Catering,CASP,Supplies & Services,Provisions,BIKOLD,23/06/2014,102.22
Customer Services,Catering,CASP,Supplies & Services,Provisions,BIKOLD,23/06/2014,161.93
Customer Services,Catering,CASP,Supplies & Services,Provisions,BIKOLD,23/06/2014,102.77
Customer Services,Catering,CASP,Supplies & Services,Provisions,BIKOLD,23/06/2014,179.29
Customer Services,Catering,CASP,Supplies & Services,Provisions,BIKOLD,23/06/2014,128.40
Customer Services,Catering,CASP,Supplies & Services,Provisions,BIKOLD,23/06/2014,155.65
Customer Services,Catering,CASP,Supplies & Services,Provisions,BIKOLD,23/06/2014,313.59
Customer Services,Catering,CASP,Supplies & Services,Provisions,BIKOLD,23/06/2014,203.70
Customer Services,Catering,CASP,Supplies & Services,Provisions,BIKOLD,23/06/2014,164.51
Customer Services,Catering,CASP,Supplies & Services,Provisions,BIKOLD,23/06/2014,225.55
Customer Services,Catering,CASP,Supplies & Services,Provisions,BIKOLD,23/06/2014,238.27
Customer Services,Catering,CASP,Supplies & Services,Provisions,BIKOLD,23/06/2014,140.86
Customer Services,Catering,CASP,Supplies & Services,Provisions,BIKOLD,23/06/2014,196.98
Customer Services,Catering,CASP,Supplies & Services,Provisions,BIKOLD,23/06/2014,160.18
Customer Services,Catering,CASP,Supplies & Services,Provisions,BIKOLD,23/06/2014,212.16
Customer Services,Catering,CASP,Supplies & Services,Provisions,BIKOLD,23/06/2014,140.49
Customer Services,Catering,CASP,Supplies & Services,Provisions,BIKOLD,23/06/2014,154.70
Customer Services,Catering,CASP,Supplies & Services,Provisions,BIKOLD,23/06/2014,101.72
Customer Services,Catering,CASP,Supplies & Services,Provisions,BIKOLD,23/06/2014,189.57
Customer Services,Catering,CASP,Supplies & Services,Provisions,BIKOLD,23/06/2014,152.85
Customer Services,Catering,CASP,Supplies & Services,Provisions,BIKOLD,23/06/2014,228.16
Customer Services,Catering,CASP,Supplies & Services,Provisions,BIKOLD,23/06/2014,129.53
Customer Services,Catering,CASP,Supplies & Services,Provisions,BIKOLD,23/06/2014,150.08
Customer Services,Catering,CASP,Supplies & Services,Provisions,BIKOLD,23/06/2014,124.67
Customer Services,Catering,CASP,Supplies & Services,Provisions,BIKOLD,23/06/2014,159.54
Customer Services,Catering,CASP,Supplies & Services,Provisions,BIKOLD,23/06/2014,120.21
Customer Services,Catering,CASP,Supplies & Services,Provisions,BIKOLD,23/06/2014,240.01
Customer Services,Catering,CASP,Supplies & Services,Provisions,BIKOLD,23/06/2014,153.52
Customer Services,Catering,CASP,Supplies & Services,Provisions,BIKOLD,23/06/2014,407.53
Customer Services,Catering,CASP,Supplies & Services,Provisions,BIKOLD,23/06/2014,105.67
Customer Services,Catering,CASP,Supplies & Services,Provisions,BIKOLD,23/06/2014,283.92
Customer Services,Catering,CASP,Supplies & Services,Provisions,BIKOLD,23/06/2014,129.49
Customer Services,Catering,CASP,Supplies & Services,Provisions,BIKOLD,23/06/2014,124.88
Customer Services,Catering,CASP,Supplies & Services,Provisions,BIKOLD,23/06/2014,118.08
Customer Services,Catering,CASP,Supplies & Services,Provisions,BIKOLD,23/06/2014,129.69
Customer Services,Catering,CASP,Supplies & Services,Provisions,BIKOLD,23/06/2014,196.91
Customer Services,Catering,CASP,Supplies & Services,Provisions,BIKOLD,23/06/2014,132.45
Customer Services,Catering,CASP,Supplies & Services,Provisions,BIKOLD,23/06/2014,209.03
Customer Services,Catering,CASP,Supplies & Services,Provisions,BIKOLD,23/06/2014,124.19
Customer Services,Catering,CASP,Supplies & Services,Provisions,BIKOLD,23/06/2014,240.78
Customer Services,Catering,CASP,Supplies & Services,Provisions,BIKOLD,23/06/2014,107.10
Customer Services,Catering,CASP,Supplies & Services,Provisions,BIKOLD,23/06/2014,139.86
Customer Services,Catering,CASP,Supplies & Services,Provisions,BIKOLD,23/06/2014,102.36
Customer Services,Catering,CASP,Supplies & Services,Provisions,BIKOLD,23/06/2014,215.93
Customer Services,Catering,CASP,Supplies & Services,Provisions,BIKOLD,23/06/2014,114.13
Customer Services,Catering,CASP,Supplies & Services,Provisions,BIKOLD,23/06/2014,240.63
Customer Services,Catering,CASP,Supplies & Services,Provisions,Brambles Foods Ltd,23/06/2014,141.24
Customer Services,Catering,CASS,Supplies & Services,Provisions,Brambles Foods Ltd,12/06/2014,225.45
Customer Services,Catering,CASS,Supplies & Services,Provisions,Brambles Foods Ltd,12/06/2014,186.63
Customer Services,Catering,CASS,Supplies & Services,Provisions,Brambles Foods Ltd,12/06/2014,183.35
Customer Services,Catering,CASS,Supplies & Services,Provisions,Brambles Foods Ltd,12/06/2014,287.66
Customer Services,Catering,CASS,Supplies & Services,Provisions,RADNOR HILLS MINERAL WATER COMPANY LTD,12/06/2014,104.79
Customer Services,Catering,CASS,Supplies & Services,Provisions,Willoughby (731) Ltd T/A The Fabulous Bakin' Boys,12/06/2014,125.16
Customer Services,Catering,CASS,Supplies & Services,Provisions,BIKOLD,12/06/2014,140.57
Customer Services,Catering,CASS,Supplies & Services,Provisions,BIKOLD,12/06/2014,107.58
Customer Services,Catering,CASS,Supplies & Services,Provisions,BIKOLD,12/06/2014,121.12
Customer Services,Catering,CASS,Supplies & Services,Provisions,Tasties of Chester Ltd,04/06/2014,687.20
Customer Services,Catering,CASS,Supplies & Services,Provisions,Tasties of Chester Ltd,04/06/2014,472.01
Customer Services,Catering,CASS,Supplies & Services,Provisions,Brambles Foods Ltd,02/06/2014,186.63
Customer Services,Catering,CASS,Supplies & Services,Provisions,Brambles Foods Ltd,02/06/2014,252.50
Customer Services,Catering,CASS,Supplies & Services,Provisions,Tasties of Chester Ltd,02/06/2014,613.10
Customer Services,Catering,CASS,Supplies & Services,Provisions,Tasties of Chester Ltd,02/06/2014,280.60
Customer Services,Catering,CASS,Supplies & Services,Provisions,SMART FOOD,02/06/2014,353.18
Customer Services,Catering,CASS,Supplies & Services,Provisions,SMART FOOD,02/06/2014,381.40
Customer Services,Catering,CASS,Supplies & Services,Provisions,Tasties of Chester Ltd,02/06/2014,473.00
Customer Services,Catering,CASS,Supplies & Services,Provisions,BIKOLD,27/06/2014,149.81
Customer Services,Catering,CASS,Supplies & Services,Provisions,BIKOLD,27/06/2014,208.03
Customer Services,Catering,CASS,Supplies & Services,Provisions,BIKOLD,27/06/2014,123.61
Customer Services,Catering,CASS,Supplies & Services,Provisions,BIKOLD,27/06/2014,165.20
Customer Services,Catering,CASS,Supplies & Services,Provisions,BIKOLD,27/06/2014,248.33
Customer Services,Catering,CASS,Supplies & Services,Provisions,BIKOLD,27/06/2014,292.67
Customer Services,Catering,CASS,Supplies & Services,Provisions,BIKOLD,23/06/2014,237.56
Customer Services,Catering,CASS,Supplies & Services,Provisions,BIKOLD,23/06/2014,138.63
Customer Services,Catering,CASS,Supplies & Services,Provisions,BIKOLD,23/06/2014,192.08
Customer Services,Catering,CASS,Supplies & Services,Provisions,BIKOLD,23/06/2014,196.45
Customer Services,Catering,CASS,Supplies & Services,Provisions,BIKOLD,23/06/2014,283.08
Customer Services,Catering,CASS,Supplies & Services,Provisions,BIKOLD,23/06/2014,165.91
Customer Services,Catering,CASS,Supplies & Services,Provisions,BIKOLD,23/06/2014,326.71
Customer Services,Catering,CASS,Supplies & Services,Provisions,Brambles Foods Ltd,11/06/2014,225.45
Customer Services,Catering,CASS,Supplies & Services,Provisions,RADNOR HILLS MINERAL WATER COMPANY LTD,11/06/2014,180.60
Customer Services,Catering,CASS,Supplies & Services,Provisions,Willoughby (731) Ltd T/A The Fabulous Bakin' Boys,11/06/2014,186.56
Customer Services,Catering,CASS,Supplies & Services,Provisions,SMART FOOD,11/06/2014,384.20
Customer Services,Catering,CASS,Supplies & Services,Provisions,Brambles Foods Ltd,11/06/2014,167.08
Customer Services,Catering,CASS,Supplies & Services,Provisions,BIKOLD,12/06/2014,185.52
Customer Services,Catering,CASS,Supplies & Services,Provisions,BIKOLD,12/06/2014,149.74
Customer Services,Catering,CASS,Supplies & Services,Provisions,BIKOLD,12/06/2014,136.58
Customer Services,Catering,CASS,Supplies & Services,Provisions,BIKOLD,12/06/2014,183.80
Customer Services,Catering,CASS,Supplies & Services,Provisions,BIKOLD,12/06/2014,179.89
Customer Services,Catering,CASS,Supplies & Services,Provisions,BIKOLD,12/06/2014,246.44
Customer Services,Catering,CASS,Supplies & Services,Provisions,BIKOLD,12/06/2014,216.66
Customer Services,Catering,CASS,Supplies & Services,Provisions,BIKOLD,12/06/2014,342.24
Customer Services,Catering,CASS,Supplies & Services,Provisions,RADNOR HILLS MINERAL WATER COMPANY LTD,02/06/2014,242.92
Customer Services,Catering,CASS,Supplies & Services,Provisions,Brambles Foods Ltd,02/06/2014,297.46
Customer Services,Catering,CASS,Supplies & Services,Provisions,Brambles Foods Ltd,02/06/2014,153.80
Customer Services,Catering,CASS,Supplies & Services,Provisions,Tasties of Chester Ltd,02/06/2014,639.20
Customer Services,Catering,CASS,Supplies & Services,Provisions,Tasties of Chester Ltd,02/06/2014,508.90
Customer Services,Catering,CASS,Supplies & Services,Provisions,Tasties of Chester Ltd,02/06/2014,473.00
Customer Services,Catering,CASS,Supplies & Services,Provisions,Tasties of Chester Ltd,02/06/2014,327.00
Customer Services,Catering,CASS,Supplies & Services,Provisions,Tasties of Chester Ltd,02/06/2014,473.00
Customer Services,Catering,CASS,Supplies & Services,Provisions,Brambles Foods Ltd,02/06/2014,153.80
Customer Services,Catering,CASS,Supplies & Services,Provisions,RADNOR HILLS MINERAL WATER COMPANY LTD,02/06/2014,180.60
Customer Services,Catering,CASS,Supplies & Services,Provisions,Tasties of Chester Ltd,02/06/2014,532.60
Customer Services,Catering,CASS,Supplies & Services,Provisions,Tasties of Chester Ltd,02/06/2014,473.60
Customer Services,Catering,CASS,Supplies & Services,Provisions,SAFY IMPEX T/A SPICE TIME,05/06/2014,-109.00
Customer Services,Catering,CASS,Supplies & Services,Provisions,Tasties of Chester Ltd,04/06/2014,813.40
Customer Services,Catering,CASS,Supplies & Services,Provisions,SAFY IMPEX T/A SPICE TIME,04/06/2014,109.00
Customer Services,Catering,CASS,Supplies & Services,Provisions,RADNOR HILLS MINERAL WATER COMPANY LTD,04/06/2014,179.64
Customer Services,Catering,CASS,Supplies & Services,Provisions,BIKOLD,06/06/2014,114.90
Customer Services,Catering,CASS,Supplies & Services,Provisions,BIKOLD,06/06/2014,168.43
Customer Services,Catering,CASS,Supplies & Services,Provisions,BIKOLD,06/06/2014,213.28
Customer Services,Catering,CASS,Supplies & Services,Provisions,BIKOLD,06/06/2014,417.01
Customer Services,Catering,CASS,Supplies & Services,Provisions,BIKOLD,06/06/2014,123.25
Customer Services,Catering,CASS,Supplies & Services,Provisions,BIKOLD,06/06/2014,275.84
Customer Services,Catering,CASS,Supplies & Services,Provisions,BIKOLD,06/06/2014,195.03
Customer Services,Catering,CASS,Supplies & Services,Provisions,BIKOLD,06/06/2014,101.83
Customer Services,Catering,CASS,Supplies & Services,Provisions,BIKOLD,06/06/2014,170.23
Customer Services,Catering,CASS,Supplies & Services,Provisions,BIKOLD,06/06/2014,156.96
Customer Services,Catering,CASS,Supplies & Services,Provisions,BIKOLD,06/06/2014,200.66
Customer Services,Catering,CASS,Supplies & Services,Provisions,BIKOLD,06/06/2014,127.63
Customer Services,Catering,CASS,Supplies & Services,Provisions,BIKOLD,06/06/2014,335.36
Customer Services,Catering,CASS,Supplies & Services,Provisions,BIKOLD,06/06/2014,319.85
Customer Services,Catering,CASS,Supplies & Services,Provisions,BIKOLD,06/06/2014,151.37
Customer Services,Catering,CASS,Supplies & Services,Provisions,Willoughby (731) Ltd T/A The Fabulous Bakin' Boys,02/06/2014,114.73
Customer Services,Catering,CASS,Supplies & Services,Provisions,TROPICAL ICE,02/06/2014,300.00
Customer Services,Catering,CASS,Supplies & Services,Provisions,Tasties of Chester Ltd,25/06/2014,101.70
Customer Services,Catering,CASS,Supplies & Services,Provisions,Tasties of Chester Ltd,25/06/2014,506.98
Customer Services,Catering,CASS,Supplies & Services,Provisions,RADNOR HILLS MINERAL WATER COMPANY LTD,25/06/2014,179.64
Customer Services,Catering,CASS,Supplies & Services,Provisions,RADNOR HILLS MINERAL WATER COMPANY LTD,25/06/2014,103.36
Customer Services,Catering,CASS,Supplies & Services,Provisions,Tasties of Chester Ltd,25/06/2014,495.00
Customer Services,Catering,CASS,Supplies & Services,Provisions,Brambles Foods Ltd,25/06/2014,293.44
Customer Services,Catering,CASS,Supplies & Services,Provisions,RADNOR HILLS MINERAL WATER COMPANY LTD,25/06/2014,104.79
Customer Services,Catering,CASS,Supplies & Services,Provisions,RADNOR HILLS MINERAL WATER COMPANY LTD,25/06/2014,180.60
Customer Services,Catering,CASS,Supplies & Services,Protective Clothing,SIMON JERSEY LIMITED,25/06/2014,133.87
Customer Services,Catering,CASS,Supplies & Services,Provisions,BIKOLD,27/06/2014,207.32
Customer Services,Catering,CASS,Supplies & Services,Provisions,BIKOLD,27/06/2014,133.14
Customer Services,Catering,CASS,Supplies & Services,Provisions,BIKOLD,27/06/2014,111.03
Customer Services,Catering,CASS,Supplies & Services,Provisions,BIKOLD,27/06/2014,223.74
Customer Services,Catering,CASS,Supplies & Services,Provisions,Tasties of Chester Ltd,09/06/2014,236.80
Customer Services,Catering,CASS,Supplies & Services,Provisions,Brambles Foods Ltd,10/06/2014,123.47
Customer Services,Catering,CASS,Supplies & Services,Provisions,Brambles Foods Ltd,10/06/2014,121.52
Customer Services,Catering,CASS,Supplies & Services,Provisions,Brambles Foods Ltd,10/06/2014,237.50
Customer Services,Catering,CASS,Supplies & Services,Provisions,BIKOLD,23/06/2014,184.47
Customer Services,Catering,CASS,Supplies & Services,Provisions,Tasties of Chester Ltd,23/06/2014,473.00
Customer Services,Catering,CASS,Supplies & Services,Provisions,Tasties of Chester Ltd,23/06/2014,564.75
Customer Services,Catering,CASS,Supplies & Services,Provisions,Brambles Foods Ltd,23/06/2014,186.63
Customer Services,Catering,CASS,Supplies & Services,Provisions,RADNOR HILLS MINERAL WATER COMPANY LTD,23/06/2014,104.79
Customer Services,Catering,CASS,Supplies & Services,Provisions,Willoughby (731) Ltd T/A The Fabulous Bakin' Boys,23/06/2014,136.76
Customer Services,Catering,CASS,Supplies & Services,Provisions,Brambles Foods Ltd,23/06/2014,182.86
Customer Services,Catering,CASS,Supplies & Services,Provisions,BDO LLP Administrators for The Fabulous Bakin' Boys Ltd,23/06/2014,166.88
Customer Services,Catering,CASS,Supplies & Services,Provisions,Tasties of Chester Ltd,23/06/2014,506.98
Customer Services,Catering,CASS,Supplies & Services,Provisions,Tasties of Chester Ltd,23/06/2014,615.00
Customer Services,Catering,CASS,Supplies & Services,Provisions,Tasties of Chester Ltd,23/06/2014,101.70
Customer Services,Catering,CASS,Supplies & Services,Provisions,Brambles Foods Ltd,23/06/2014,573.00
Customer Services,Catering,CASX,Supplies & Services,Provisions,BIKOLD,12/06/2014,192.46
Customer Services,Catering,CASX,Supplies & Services,Provisions,BIKOLD,12/06/2014,172.90
Customer Services,Catering,CASX,Supplies & Services,Provisions,BIKOLD,12/06/2014,123.52
Customer Services,Catering,CASX,Supplies & Services,Provisions,BIKOLD,06/06/2014,147.24
Customer Services,Catering,CASX,Supplies & Services,Provisions,BIKOLD,06/06/2014,133.85
Customer Services,Catering,CASX,Supplies & Services,Provisions,BIKOLD,06/06/2014,156.70
Customer Services,Catering,CASX,Supplies & Services,Provisions,BIKOLD,06/06/2014,115.24
Customer Services,Catering,CASX,Supplies & Services,Provisions,BIKOLD,06/06/2014,338.96
Customer Services,Catering,CASX,Supplies & Services,Provisions,SMART FOOD,02/06/2014,229.20
Customer Services,Catering,CASX,Supplies & Services,Provisions,BIKOLD,27/06/2014,160.49
Customer Services,Catering,CASX,Supplies & Services,Provisions,BIKOLD,27/06/2014,130.25
Customer Services,Catering,CASX,Supplies & Services,Provisions,BIKOLD,27/06/2014,127.14
Customer Services,Catering,CASX,Supplies & Services,Provisions,BIKOLD,23/06/2014,174.33
Customer Services,Catering,CASX,Supplies & Services,Provisions,BIKOLD,23/06/2014,128.82
Customer Services,Catering,CASX,Supplies & Services,Provisions,BIKOLD,23/06/2014,148.00
Customer Services,Catering,CFAN,Supplies & Services,Telephones,VIRGIN MEDIA BUSINESS,20/06/2014,126.00
Customer Services,Catering,CHOL,Supplies & Services,Provisions,John Sheppard Catering Butchers,03/06/2014,124.29
Customer Services,Catering,CHOL,Supplies & Services,Equipment - Purchase,BIKOLD,06/06/2014,113.41
Customer Services,Catering,COMM,Supplies & Services,Provisions,BIKOLD,12/06/2014,118.31
Customer Services,Catering,COMM,Supplies & Services,Provisions,BIKOLD,12/06/2014,231.70
Customer Services,Catering,COMM,Supplies & Services,Provisions,BIKOLD,12/06/2014,120.02
Customer Services,Catering,COMM,Supplies & Services,Provisions,BIKOLD,12/06/2014,166.64
Customer Services,Catering,COMM,Supplies & Services,Provisions,Tasties of Chester Ltd,02/06/2014,275.19
Customer Services,Catering,COMM,Supplies & Services,Other Materials,Vegware,02/06/2014,110.16
Customer Services,Catering,COMM,Supplies & Services,Provisions,Brambles Foods Ltd,02/06/2014,527.86
Customer Services,Catering,COMM,Supplies & Services,Provisions,Vegware,02/06/2014,118.04
Customer Services,Catering,COMM,Supplies & Services,Provisions,Aroma Tea & Coffee Merchants,02/06/2014,157.30
Customer Services,Catering,COMM,Supplies & Services,Provisions,John Sheppard Catering Butchers,05/06/2014,108.23
Customer Services,Catering,COMM,Supplies & Services,Provisions,John Sheppard Catering Butchers,05/06/2014,100.39
Customer Services,Catering,COMM,Supplies & Services,Provisions,John Sheppard Catering Butchers,05/06/2014,100.80
Customer Services,Catering,COMM,Supplies & Services,Provisions,Brambles Foods Ltd,30/06/2014,268.78
Customer Services,Catering,COMM,Supplies & Services,Provisions,Brambles Foods Ltd,30/06/2014,109.05
Customer Services,Catering,COMM,Supplies & Services,Provisions,BIKOLD,06/06/2014,258.00
Customer Services,Catering,COMM,Supplies & Services,Provisions,BIKOLD,06/06/2014,129.12
Customer Services,Catering,COMM,Supplies & Services,Provisions,BIKOLD,06/06/2014,102.93
Customer Services,Catering,COMM,Supplies & Services,Provisions,BIKOLD,06/06/2014,128.02
Customer Services,Catering,COMM,Supplies & Services,Provisions,BIKOLD,06/06/2014,110.47
Customer Services,Catering,COMM,Supplies & Services,Provisions,BIKOLD,06/06/2014,239.37
Customer Services,Catering,COMM,Supplies & Services,Provisions,BIKOLD,27/06/2014,129.39
Customer Services,Catering,COMM,Supplies & Services,Provisions,BIKOLD,27/06/2014,172.38
Customer Services,Catering,COMM,Supplies & Services,Provisions,BIKOLD,23/06/2014,163.91
Customer Services,Catering,COMM,Supplies & Services,Provisions,BIKOLD,23/06/2014,155.26
Customer Services,Catering,COMM,Supplies & Services,Provisions,BIKOLD,23/06/2014,160.78
Customer Services,Catering,COMM,Supplies & Services,Provisions,BIKOLD,23/06/2014,242.03
Customer Services,Catering,COMM,Supplies & Services,Equipment - Hire,ShropshireVendingServices,23/06/2014,101.18
Customer Services,Catering,COMM,Supplies & Services,Provisions,Gills Puddings Ltd,23/06/2014,306.40
Customer Services,Catering,LEIC,Supplies & Services,Provisions,BIKOLD,27/06/2014,179.99
Customer Services,Catering,LEIC,Supplies & Services,Provisions,BIKOLD,27/06/2014,230.48
Customer Services,Customer & Registrars Services,LMAA,Supplies & Services,Security Services,BUSINESS WATCH GUARDING LIMITED,30/06/2014,"2,018.00"
Customer Services,Customer & Registrars Services,LSAA,Supplies & Services,Equipment - Hire,OASIS INTERIOR LANDSCAPING,23/06/2014,332.85
Customer Services,Customer & Registrars Services,LSAB,Premises-Related Expenditure,Grounds Maintenance - Cemeteries,P & W MAINTENANCE CONTRACTING LTD,23/06/2014,"3,579.62"
Customer Services,Customer & Registrars Services,LSAB,Premises-Related Expenditure,Grounds Maintenance - Cemeteries,P & W MAINTENANCE CONTRACTING LTD,23/06/2014,"3,331.55"
Customer Services,Facilities Management and Cleaning Services,ASAB,Supplies & Services,Other Expenses,THE MIDLAND NEWS ASSOCIATION LTD,05/06/2014,104.02
Customer Services,Facilities Management and Cleaning Services,ASAB,Supplies & Services,Security Services,BUSINESS WATCH GUARDING LIMITED,16/06/2014,910.32
Customer Services,Facilities Management and Cleaning Services,ASAB,Supplies & Services,Security Services,BUSINESS WATCH GUARDING LIMITED,16/06/2014,234.00
Customer Services,Facilities Management and Cleaning Services,CFAA,Premises-Related Expenditure,Grounds Maintenance,TELFORD & WREKIN SERVICES LTD,10/06/2014,"6,069.16"
Customer Services,Facilities Management and Cleaning Services,CFAA,Premises-Related Expenditure,Grounds Maintenance,NOBRIDGE LTD,30/06/2014,"3,351.81"
Customer Services,Facilities Management and Cleaning Services,CFAD,Supplies & Services,Security Services,BUSINESS WATCH GUARDING LIMITED,18/06/2014,"17,873.18"
Customer Services,Facilities Management and Cleaning Services,CFAM,Premises-Related Expenditure,R&M -Building Other,WINDOW & DOOR CONTRACT SERVICES,30/06/2014,193.10
Customer Services,Facilities Management and Cleaning Services,CFAV,Capital Financing Costs,Unitary Charge,PYRAMID SCHOOLS (HADLEY) LTD,19/06/2014,"818,310.29"
Customer Services,Facilities Management and Cleaning Services,CFAV,Supplies & Services,Telephones,INTERSERVE (FACILITIES MANAGEMENT) LTD,18/06/2014,139.85
Customer Services,Facilities Management and Cleaning Services,CFAV,Supplies & Services,Telephones,INTERSERVE (FACILITIES MANAGEMENT) LTD,18/06/2014,142.84
Customer Services,Facilities Management and Cleaning Services,CFAV,Supplies & Services,Telephones,VIRGIN MEDIA BUSINESS,20/06/2014,185.96
Customer Services,Facilities Management and Cleaning Services,CFAV,Supplies & Services,Telephones,VIRGIN MEDIA BUSINESS,20/06/2014,152.00
Customer Services,Facilities Management and Cleaning Services,CFAY,Premises-Related Expenditure,R&M -Buildings DLO Charge,SDT ELECTRICAL LTD,11/06/2014,"-1,046.00"
Customer Services,Facilities Management and Cleaning Services,CFAY,Premises-Related Expenditure,R&M -Buildings DLO Charge,SDT ELECTRICAL LTD,11/06/2014,400.00
Customer Services,Facilities Management and Cleaning Services,CFAY,Premises-Related Expenditure,R&M -Buildings DLO Charge,SDT ELECTRICAL LTD,11/06/2014,646.00
Customer Services,Facilities Management and Cleaning Services,CFAY,Premises-Related Expenditure,R&M -Buildings DLO Charge,EVAC+CHAIR INTERNATIONAL LTD,16/06/2014,255.00
Customer Services,Facilities Management and Cleaning Services,CFAY,Premises-Related Expenditure,R&M -Buildings DLO Charge,MAIN MAN SUPPLIES LTD,06/06/2014,375.50
Customer Services,Facilities Management and Cleaning Services,CFAY,Premises-Related Expenditure,R&M -Buildings DLO Charge,FCC RECYCLING (UK) LIMITED,11/06/2014,"1,199.92"
Customer Services,Facilities Management and Cleaning Services,CFAY,Premises-Related Expenditure,R&M -Buildings DLO Charge,FCC RECYCLING (UK) LIMITED,11/06/2014,104.72
Customer Services,Facilities Management and Cleaning Services,CFAY,Premises-Related Expenditure,R&M -Buildings DLO Charge,Redacted Personal Information,20/06/2014,"1,020.00"
Customer Services,Facilities Management and Cleaning Services,CFAY,Premises-Related Expenditure,R&M -Buildings DLO Charge,Redacted Personal Information,20/06/2014,165.00
Customer Services,Facilities Management and Cleaning Services,CFAY,Premises-Related Expenditure,R&M -Buildings DLO Charge,MESSRS FARR & HARRIS LTD,09/06/2014,134.17
Customer Services,Facilities Management and Cleaning Services,CFAY,Premises-Related Expenditure,R&M -Buildings DLO Charge,Howdens Joinery Ltd,09/06/2014,260.94
Customer Services,Facilities Management and Cleaning Services,CFAY,Premises-Related Expenditure,R&M -Buildings DLO Charge,Howdens Joinery Ltd,09/06/2014,837.52
Customer Services,Facilities Management and Cleaning Services,CFAY,Premises-Related Expenditure,R&M -Buildings DLO Charge,SCREWFIX DIRECT,23/06/2014,172.39
Customer Services,Facilities Management and Cleaning Services,CFAY,Premises-Related Expenditure,R&M -Buildings DLO Charge,SCREWFIX DIRECT,23/06/2014,112.43
Customer Services,Facilities Management and Cleaning Services,CFAY,Premises-Related Expenditure,R&M -Buildings DLO Charge,SCREWFIX DIRECT,23/06/2014,108.24
Customer Services,Facilities Management and Cleaning Services,CFAY,Premises-Related Expenditure,R&M -Buildings DLO Charge,SCREWFIX DIRECT,23/06/2014,178.23
Customer Services,Facilities Management and Cleaning Services,CFAY,Premises-Related Expenditure,R&M -Buildings DLO Charge,SCREWFIX DIRECT,23/06/2014,156.43
Customer Services,Facilities Management and Cleaning Services,CLCM,Premises-Related Expenditure,Clean Mats & Toilet Requisites,Border Janitorial Supplies Limited,04/06/2014,121.62
Customer Services,Facilities Management and Cleaning Services,CLCM,Premises-Related Expenditure,Clean Mats & Toilet Requisites,WEST MERCIA SUPPLIES Catalogue Supplies (None Utility),04/06/2014,216.09
Customer Services,Facilities Management and Cleaning Services,CLCM,Premises-Related Expenditure,Clean Mats & Toilet Requisites,Border Janitorial Supplies Limited,27/06/2014,221.80
Customer Services,Facilities Management and Cleaning Services,CLCM,Premises-Related Expenditure,Clean Mats & Toilet Requisites,Border Janitorial Supplies Limited,27/06/2014,113.54
Customer Services,Facilities Management and Cleaning Services,CLCM,Premises-Related Expenditure,Clean Mats & Toilet Requisites,Border Janitorial Supplies Limited,16/06/2014,161.72
Customer Services,Facilities Management and Cleaning Services,CLCM,Premises-Related Expenditure,Clean Mats & Toilet Requisites,Border Janitorial Supplies Limited,10/06/2014,144.77
Customer Services,Facilities Management and Cleaning Services,CLCM,Premises-Related Expenditure,Clean Mats & Toilet Requisites,Border Janitorial Supplies Limited,10/06/2014,145.36
Customer Services,Facilities Management and Cleaning Services,CLCM,Premises-Related Expenditure,Clean Mats & Toilet Requisites,Border Janitorial Supplies Limited,23/06/2014,159.52
Customer Services,Facilities Management and Cleaning Services,CLCM,Premises-Related Expenditure,Clean Mats & Toilet Requisites,Border Janitorial Supplies Limited,23/06/2014,116.88
Customer Services,Facilities Management and Cleaning Services,CLCM,Premises-Related Expenditure,Clean Mats & Toilet Requisites,Border Janitorial Supplies Limited,23/06/2014,159.72
Customer Services,Facilities Management and Cleaning Services,CLCM,Premises-Related Expenditure,Clean Mats & Toilet Requisites,Border Janitorial Supplies Limited,23/06/2014,102.71
Customer Services,Facilities Management and Cleaning Services,CLCM,Premises-Related Expenditure,Clean Mats & Toilet Requisites,Border Janitorial Supplies Limited,23/06/2014,202.01
Customer Services,Facilities Management and Cleaning Services,CLSP,Premises-Related Expenditure,Contract Cleaning,CLEANIT CLEANING SERVICES,12/06/2014,112.50
Customer Services,Facilities Management and Cleaning Services,CLSP,Premises-Related Expenditure,Clean Mats & Toilet Requisites,Border Janitorial Supplies Limited,04/06/2014,140.84
Customer Services,Facilities Management and Cleaning Services,CLSP,Premises-Related Expenditure,Clean Mats & Toilet Requisites,Border Janitorial Supplies Limited,27/06/2014,110.41
Customer Services,Facilities Management and Cleaning Services,CLSP,Premises-Related Expenditure,Clean Mats & Toilet Requisites,Border Janitorial Supplies Limited,27/06/2014,166.68
Customer Services,Facilities Management and Cleaning Services,CLSP,Premises-Related Expenditure,Contract Cleaning,CLEANIT CLEANING SERVICES,27/06/2014,112.50
Customer Services,Facilities Management and Cleaning Services,CLSP,Premises-Related Expenditure,Contract Cleaning,CLEANIT CLEANING SERVICES,16/06/2014,112.50
Customer Services,Facilities Management and Cleaning Services,CLSP,Premises-Related Expenditure,Clean Mats & Toilet Requisites,Border Janitorial Supplies Limited,16/06/2014,101.26
Customer Services,Facilities Management and Cleaning Services,CLSP,Premises-Related Expenditure,Clean Mats & Toilet Requisites,Border Janitorial Supplies Limited,16/06/2014,216.00
Customer Services,Facilities Management and Cleaning Services,CLSP,Premises-Related Expenditure,Clean Mats & Toilet Requisites,Border Janitorial Supplies Limited,16/06/2014,125.56
Customer Services,Facilities Management and Cleaning Services,CLSP,Premises-Related Expenditure,Clean Mats & Toilet Requisites,Border Janitorial Supplies Limited,16/06/2014,272.48
Customer Services,Facilities Management and Cleaning Services,CLSP,Premises-Related Expenditure,Contract Cleaning,CLEANIT CLEANING SERVICES,10/06/2014,112.50
Customer Services,Facilities Management and Cleaning Services,CLSP,Premises-Related Expenditure,Clean Mats & Toilet Requisites,Border Janitorial Supplies Limited,23/06/2014,124.62
Customer Services,Facilities Management and Cleaning Services,CLSP,Premises-Related Expenditure,Clean Mats & Toilet Requisites,Border Janitorial Supplies Limited,23/06/2014,195.21
Customer Services,Facilities Management and Cleaning Services,CLSX,Premises-Related Expenditure,Clean Mats & Toilet Requisites,Border Janitorial Supplies Limited,04/06/2014,256.26
Customer Services,Facilities Management and Cleaning Services,CLSX,Premises-Related Expenditure,Clean Mats & Toilet Requisites,Border Janitorial Supplies Limited,23/06/2014,171.95
Customer Services,ICT,CBAF,Supplies & Services,Comp Hardware (Purch / Hire),MISCO,05/06/2014,166.44
Customer Services,ICT,CBAG,Supplies & Services,Equipment - Purchase,EUROPEAN ELECTRONIQUE LTD,12/06/2014,350.00
Customer Services,ICT,CBAG,Supplies & Services,Equipment - Purchase,WREKIN SERVICES LTD,12/06/2014,240.00
Customer Services,ICT,CBAG,Supplies & Services,Mobile Phones,ORANGE PERSONAL COMM SERVICES LTD,12/06/2014,"1,307.01"
Customer Services,ICT,CBAG,Supplies & Services,Mobile Phones,ORANGE PERSONAL COMM SERVICES LTD,12/06/2014,681.90
Customer Services,ICT,CBAG,Supplies & Services,Mobile Phones,ORANGE PERSONAL COMM SERVICES LTD,12/06/2014,"1,822.84"
Customer Services,ICT,CBAG,Supplies & Services,Mobile Phones,ORANGE PERSONAL COMM SERVICES LTD,12/06/2014,184.96
Customer Services,ICT,CBAG,Supplies & Services,Mobile Phones,ORANGE PERSONAL COMM SERVICES LTD,12/06/2014,"16,639.06"
Customer Services,ICT,CBAG,Supplies & Services,Mobile Phones,ORANGE PERSONAL COMM SERVICES LTD,12/06/2014,"5,853.78"
Customer Services,ICT,CBAG,Supplies & Services,Other Expenses,PROCESS FLOWS UK LTD,13/06/2014,386.37
Customer Services,ICT,CBAG,Supplies & Services,Equipment - Purchase,Digital Exchange Products Ltd,03/06/2014,440.00
Customer Services,ICT,CBAG,Supplies & Services,Telephones,Digital Exchange Products Ltd,05/06/2014,325.00
Customer Services,ICT,CBAG,Supplies & Services,Equipment - Purchase,EUROPEAN ELECTRONIQUE LTD,09/06/2014,"4,976.00"
Customer Services,ICT,CBAG,Supplies & Services,Telephones,Digital Exchange Products Ltd,09/06/2014,390.00
Customer Services,ICT,CBAG,Supplies & Services,Telephones,VIRGIN MEDIA BUSINESS,10/06/2014,"11,359.41"
Customer Services,ICT,CBAG,Supplies & Services,Telephones,VIRGIN MEDIA BUSINESS,10/06/2014,"-1,359.41"
Customer Services,ICT,CBAG,Supplies & Services,Telephones,VIRGIN MEDIA BUSINESS,10/06/2014,"10,075.30"
Customer Services,ICT,CBAH,Supplies & Services,Comp Hardware (Purch / Hire),EUROPEAN ELECTRONIQUE LTD,17/06/2014,"15,810.50"
Customer Services,ICT,CBAJ,Premises-Related Expenditure,R&M -Building Other,EUROPEAN ELECTRONIQUE LTD,17/06/2014,"1,015.00"
Customer Services,ICT,CBAJ,Supplies & Services,Comp Hardware (Purch / Hire),CCS MEDIA LIMITED,12/06/2014,145.00
Customer Services,ICT,CBAJ,Supplies & Services,Telecomms,Airband Community Internet,12/06/2014,295.00
Customer Services,ICT,CBAJ,Supplies & Services,Telephones,BRITISH TELECOMMUNICATIONS PLC,12/06/2014,"3,910.99"
Customer Services,ICT,CBAJ,Supplies & Services,Comp Software (Purch / Hire),AQ LIMITED,12/06/2014,124.26
Customer Services,ICT,CBAJ,Supplies & Services,External Computer Use,WELLDATA LTD,09/06/2014,"5,573.04"
Customer Services,ICT,CBAJ,Supplies & Services,Telecomms,Airband Community Internet,05/06/2014,590.00
Customer Services,ICT,CBAJ,Supplies & Services,Telecomms,Airband Community Internet,05/06/2014,950.00
Customer Services,ICT,CBAJ,Supplies & Services,Comp Software (Purch / Hire),PILLAR SOFTWARE LIMITED,18/06/2014,"1,159.00"
Customer Services,ICT,CBAJ,Supplies & Services,Comp Hardware (Purch / Hire),SPECIALIST COMPUTERS CENTRES PLC,19/06/2014,"1,036.50"
Customer Services,ICT,CBAJ,Supplies & Services,Telecomms,Airband Community Internet,09/06/2014,700.00
Customer Services,ICT,CBAJ,Supplies & Services,Comp Hardware (Purch / Hire),SPECIALIST COMPUTERS CENTRES PLC,23/06/2014,"21,198.00"
Customer Services,ICT,CBAJ,Supplies & Services,Telecomms,EUROPEAN ELECTRONIQUE LTD,23/06/2014,"4,320.00"
Customer Services,ICT,CBAJ,Transport-Related Expenditure,Transport,EXPOTEL HOTEL RESERVATIONS LIMITED,18/06/2014,190.20
Customer Services,ICT,CBAL,Supplies & Services,Stationery,PREMIER PAPER GROUP LTD,05/06/2014,246.00
Customer Services,ICT,CBAL,Supplies & Services,Stationery,PREMIER PAPER GROUP LTD,05/06/2014,123.00
Customer Services,ICT,CBAL,Supplies & Services,Stationery,PREMIER PAPER GROUP LTD,23/06/2014,220.20
Customer Services,ICT,CBAL,Supplies & Services,Stationery,PREMIER PAPER GROUP LTD,23/06/2014,458.75
Customer Services,ICT,CBAR,Capital Financing Costs,Leased Equipment,Pinecroft Limited,25/06/2014,"33,738.34"
Customer Services,ICT,CBAR,Capital Financing Costs,Leased Equipment,ASSET ADVANTAGE LIMITED,26/06/2014,"1,698.43"
Customer Services,ICT,CBAR,Capital Financing Costs,Leased Equipment,CIT VENDOR FINANCE,26/06/2014,295.06
Customer Services,ICT,CBAR,Capital Financing Costs,Leased Equipment,CIT VENDOR FINANCE,26/06/2014,243.64
Customer Services,ICT,CBAR,Capital Financing Costs,Leased Equipment,CIT VENDOR FINANCE,26/06/2014,"1,921.19"
Customer Services,ICT,CBAR,Capital Financing Costs,Leased Equipment,CIT VENDOR FINANCE,26/06/2014,"1,362.50"
Customer Services,ICT,CBAR,Capital Financing Costs,Leased Equipment,CIT VENDOR FINANCE,26/06/2014,570.93
Customer Services,ICT,CBAR,Capital Financing Costs,Leased Equipment,ASSET ADVANTAGE LIMITED,26/06/2014,632.54
Customer Services,ICT,CBAR,Capital Financing Costs,Leased Equipment,ASSET ADVANTAGE LIMITED,26/06/2014,"3,921.10"
Customer Services,ICT,CBAR,Capital Financing Costs,Leased Equipment,ASSET ADVANTAGE LIMITED,26/06/2014,"3,921.10"
Customer Services,ICT,WCAG,Capital Expenditure,Other Capital Expenditure,Bronze Software Labs Ltd,12/06/2014,"1,125.00"
Customer Services,ICT,WCAG,Capital Expenditure,Payments to Contractor,OPTEVIA,12/06/2014,"1,150.00"
Customer Services,ICT,WCAG,Capital Expenditure,Payments to Contractor,SPECIALIST COMPUTERS CENTRES PLC,26/06/2014,"1,503.00"
Customer Services,ICT,WCAG,Capital Expenditure,Payments to Contractor,SPECIALIST COMPUTERS CENTRES PLC,26/06/2014,"13,650.00"
Customer Services,ICT,WCAG,Capital Expenditure,Computer Hardware,EUROPEAN ELECTRONIQUE LTD,26/06/2014,"19,178.00"
Customer Services,ICT,WCAG,Capital Expenditure,Computer Hardware,Airband Community Internet,09/06/2014,"1,000.00"
Customer Services,ICT,WCAG,Capital Expenditure,Other Capital Expenditure,Oaresome LTD,09/06/2014,"2,530.00"
Customer Services,ICT,WCAG,Capital Expenditure,Computer Hardware,Airband Community Internet,10/06/2014,"1,600.00"
Customer Services,Library Services,LLAA,Supplies & Services,Stationery,MERIDIAN COST BENEFIT LTD,13/06/2014,204.15
Customer Services,Library Services,LLAA,Supplies & Services,Libraries Book Fund,BERTRAMS LIBRARY SERVICES,13/06/2014,390.56
Customer Services,Library Services,LLAA,Supplies & Services,Libraries Book Fund,ULVERSCROFT LARGE PRINT BOOKS LIMITED,13/06/2014,206.80
Customer Services,Library Services,LLAA,Supplies & Services,Libraries Book Fund,BERTRAMS LIBRARY SERVICES,13/06/2014,194.17
Customer Services,Library Services,LLAA,Supplies & Services,Libraries Book Fund,LIBRARY MAGNA BOOKS LIMITED,13/06/2014,279.28
Customer Services,Library Services,LLAA,Supplies & Services,Libraries Book Fund,BERTRAMS LIBRARY SERVICES,13/06/2014,104.91
Customer Services,Library Services,LLAA,Supplies & Services,Libraries Book Fund,LIBRARY MAGNA BOOKS LIMITED,06/06/2014,150.47
Customer Services,Library Services,LLAA,Supplies & Services,Libraries Book Fund,BERTRAMS LIBRARY SERVICES,06/06/2014,145.41
Customer Services,Library Services,LLAA,Supplies & Services,Libraries Book Fund,OAKHILL PUBLISHING LTD,06/06/2014,353.60
Customer Services,Library Services,LLAA,Supplies & Services,Libraries Book Fund,BERTRAMS LIBRARY SERVICES,03/06/2014,153.47
Customer Services,Library Services,LLAA,Supplies & Services,Libraries Book Fund,BERTRAMS LIBRARY SERVICES,03/06/2014,198.35
Customer Services,Library Services,LLAA,Supplies & Services,Libraries Book Fund,BERTRAMS LIBRARY SERVICES,03/06/2014,110.04
Customer Services,Library Services,LLAA,Supplies & Services,Libraries Book Fund,BERTRAMS LIBRARY SERVICES,03/06/2014,216.14
Customer Services,Library Services,LLAA,Supplies & Services,Libraries Book Fund,ULVERSCROFT LARGE PRINT BOOKS LIMITED,03/06/2014,112.24
Customer Services,Library Services,LLAA,Supplies & Services,Libraries Book Fund,BERTRAMS LIBRARY SERVICES,03/06/2014,332.52
Customer Services,Library Services,LLAA,Supplies & Services,Libraries Book Fund,BERTRAMS LIBRARY SERVICES,03/06/2014,248.33
Customer Services,Library Services,LLAA,Supplies & Services,Libraries Book Fund,BERTRAMS LIBRARY SERVICES,03/06/2014,126.98
Customer Services,Library Services,LLAA,Supplies & Services,Libraries Book Fund,BERTRAMS LIBRARY SERVICES,03/06/2014,135.50
Customer Services,Library Services,LLAA,Supplies & Services,Libraries Book Fund,BERTRAMS LIBRARY SERVICES,03/06/2014,160.31
Customer Services,Library Services,LLAA,Supplies & Services,Equipment - Purchase,SPECIALIST COMPUTERS CENTRES PLC,26/06/2014,180.73
Customer Services,Library Services,LLAA,Supplies & Services,Libraries Book Fund,W F HOWES LTD,16/06/2014,187.20
Customer Services,Library Services,LLAA,Supplies & Services,Libraries Book Fund,W F HOWES LTD,16/06/2014,187.20
Customer Services,Library Services,LLAA,Supplies & Services,Libraries Book Fund,LIBRARY MAGNA BOOKS LIMITED,16/06/2014,249.76
Customer Services,Library Services,LLAA,Supplies & Services,Libraries Book Fund,BERTRAMS LIBRARY SERVICES,02/06/2014,-160.31
Customer Services,Library Services,LLAA,Supplies & Services,Libraries Book Fund,BERTRAMS LIBRARY SERVICES,09/06/2014,284.16
Customer Services,Library Services,LLAA,Supplies & Services,Libraries Book Fund,BERTRAMS LIBRARY SERVICES,09/06/2014,154.30
Customer Services,Library Services,LLAA,Supplies & Services,Libraries Book Fund,W F HOWES LTD,09/06/2014,363.20
Customer Services,Library Services,LLAA,Supplies & Services,Libraries Book Fund,BERTRAMS LIBRARY SERVICES,09/06/2014,113.64
Customer Services,Library Services,LLAA,Supplies & Services,Libraries Book Fund,BERTRAMS LIBRARY SERVICES,09/06/2014,225.76
Customer Services,Library Services,LLAA,Supplies & Services,Libraries Book Fund,BERTRAMS LIBRARY SERVICES,09/06/2014,172.54
Customer Services,Library Services,LLAA,Supplies & Services,Libraries Book Fund,BERTRAMS LIBRARY SERVICES,09/06/2014,268.15
Customer Services,Library Services,LLAA,Supplies & Services,Libraries Book Fund,BERTRAMS LIBRARY SERVICES,09/06/2014,414.90
Customer Services,Library Services,LLAA,Supplies & Services,Libraries Book Fund,W F HOWES LTD,09/06/2014,396.00
Customer Services,Library Services,LLAA,Supplies & Services,Marketing & Publicity,POETRY ON LOAN,09/06/2014,204.00
Customer Services,Library Services,LLAA,Supplies & Services,Libraries Book Fund,BERTRAMS LIBRARY SERVICES,24/06/2014,128.38
Customer Services,Library Services,LLAA,Supplies & Services,Libraries Book Fund,BERTRAMS LIBRARY SERVICES,24/06/2014,667.56
Customer Services,Library Services,LLAA,Supplies & Services,Libraries Book Fund,ULVERSCROFT LARGE PRINT BOOKS LIMITED,24/06/2014,214.08
Customer Services,Library Services,LLAA,Supplies & Services,Libraries Book Fund,ULVERSCROFT LARGE PRINT BOOKS LIMITED,24/06/2014,118.32
Customer Services,Library Services,LLAA,Supplies & Services,Libraries Book Fund,ULVERSCROFT LARGE PRINT BOOKS LIMITED,24/06/2014,111.68
Customer Services,Library Services,LLAA,Supplies & Services,Libraries Book Fund,BERTRAMS LIBRARY SERVICES,24/06/2014,145.05
Customer Services,Library Services,LLAA,Supplies & Services,Libraries Book Fund,BERTRAMS LIBRARY SERVICES,24/06/2014,539.55
Customer Services,Library Services,LLAA,Supplies & Services,Libraries Book Fund,BERTRAMS LIBRARY SERVICES,24/06/2014,117.11
Customer Services,Library Services,LLAA,Supplies & Services,Libraries Book Fund,LIBRARY MAGNA BOOKS LIMITED,24/06/2014,154.72
Customer Services,Library Services,LLAA,Supplies & Services,Libraries Book Fund,ULVERSCROFT LARGE PRINT BOOKS LIMITED,24/06/2014,244.00
Customer Services,Library Services,LLAG,Supplies & Services,Other Expenses,GALTEC S0LUTIONS LTD,09/06/2014,"2,986.44"
Customer Services,Revenues,CBAK,Supplies & Services,Printing - Other,TELFORD REPROGRAPHICS LTD,06/06/2014,"2,040.00"
Customer Services,Revenues,CBAK,Supplies & Services,Printing - Other,DELTOR COMMUNICATIONS LTD,03/06/2014,134.00
Customer Services,Revenues,CBAK,Supplies & Services,Printing - Other,MARKETING AT THE MILL,30/06/2014,112.00
Customer Services,Revenues,CBAK,Supplies & Services,Printing - Other,MARKETING AT THE MILL,04/06/2014,180.00
Customer Services,Revenues,CBAK,Supplies & Services,Printing - Other,LION FPG LIMITED,24/06/2014,181.00
Customer Services,Revenues,CBAK,Supplies & Services,Printing - Other,Graphics and Print (Telford) Ltd,17/06/2014,285.00
Customer Services,Revenues,CBAK,Supplies & Services,Printing - Other,TELFORD REPROGRAPHICS LTD,26/06/2014,118.75
Customer Services,Revenues,CBAK,Supplies & Services,Printing - Other,Graphics and Print (Telford) Ltd,16/06/2014,"1,220.00"
Customer Services,Revenues,CBAK,Supplies & Services,Printing - Print Room,XEROX FINANCE,19/06/2014,"14,096.47"
Customer Services,Revenues,CBAK,Supplies & Services,Printing - Other,DELTOR COMMUNICATIONS LTD,17/06/2014,173.00
Customer Services,Revenues,CBAK,Supplies & Services,Printing - Other,Graphics and Print (Telford) Ltd,10/06/2014,156.00
Customer Services,Revenues,CBAK,Supplies & Services,Stationery,Graphics and Print (Telford) Ltd,10/06/2014,617.50
Customer Services,Revenues,CBAK,Supplies & Services,Stationery,PREMIER PAPER GROUP LTD,23/06/2014,444.95
Customer Services,Revenues,CBAK,Supplies & Services,Printing - Other,LION FPG LIMITED,24/06/2014,266.00
Customer Services,Revenues,COAB,Supplies & Services,Postages,ROYAL MAIL GROUP LTD,03/06/2014,128.44
Customer Services,Revenues,COAB,Supplies & Services,Postages,FREELANCE BUSINESS ASSOCIATES,19/06/2014,105.00
Customer Services,Revenues,COAB,Supplies & Services,Postages,FREELANCE BUSINESS ASSOCIATES,10/06/2014,300.00
Customer Services,Revenues,COAB,Supplies & Services,Postages,FREELANCE BUSINESS ASSOCIATES,10/06/2014,300.00
Customer Services,Revenues,COAC,Supplies & Services,Postages,FRANCOTYP-POSTALIA LTD (POSTAGE),03/06/2014,"3,000.00"
Customer Services,Revenues,COAC,Supplies & Services,Postages,FP EXECUTIVE AGENCY LTD,05/06/2014,204.00
Customer Services,Revenues,COAC,Supplies & Services,Postages,FRANCOTYP-POSTALIA LTD (POSTAGE),06/06/2014,"3,000.00"
Customer Services,Revenues,COAC,Supplies & Services,Postages,FRANCOTYP-POSTALIA LTD (POSTAGE),23/06/2014,"3,000.00"
Customer Services,Revenues,LRTA,Supplies & Services,Postages,ROYAL MAIL GROUP LTD,05/06/2014,"3,107.01"
Customer Services,Revenues,LRTA,Supplies & Services,Printing - other,Graphics and Print (Telford) Ltd,05/06/2014,180.00
Customer Services,Revenues,LRTA,Supplies & Services,Postages,ROYAL MAIL GROUP LTD,03/06/2014,"3,095.45"
Customer Services,Revenues,LRTA,Supplies & Services,Off Site Scanning,NORTHGATE INFORMATION SOLUTIONS UK LTD,05/06/2014,"15,000.00"
Customer Services,Revenues,LRTA,Supplies & Services,Postages,ROYAL MAIL GROUP LTD,16/06/2014,"4,033.31"
Customer Services,Revenues,LRTA,Supplies & Services,Computer Software (Maint),CIVICA SERVICES LTD F2122,16/06/2014,769.36
Customer Services,Revenues,LRTA,Supplies & Services,External Computer Use,NORTHGATE INFORMATION SOLUTIONS UK LTD,19/06/2014,"1,300.00"
Customer Services,Revenues,LRTA,Supplies & Services,Postages,ROYAL MAIL GROUP PLC,20/06/2014,"1,950.00"
Customer Services,Revenues,LRTA,Supplies & Services,Postages,ROYAL MAIL GROUP LTD,20/06/2014,"2,583.98"
Customer Services,Revenues,LRTA,Third Party Payments,Off Site Scanning,NORTHGATE INFORMATION SOLUTIONS UK LTD,10/06/2014,391.91
Customer Services,Revenues,LRTB,Employees,Course Fees,CHART INST PUBLIC FINANCE & ACCOUNTANCY,25/06/2014,325.00
Customer Services,Revenues,LRTB,Employees,Off Site Processing ,NORTHGATE INFORMATION SOLUTIONS UK LTD,10/06/2014,"2,353.04"
Customer Services,Revenues,LRTB,Supplies & Services,Computer Software (Maint),NORTHGATE INFORMATION SOLUTIONS UK LTD,30/06/2014,"1,500.00"
Customer Services,Revenues,LRTB,Supplies & Services,Comp Software (Purch / Hire),NORTHGATE INFORMATION SOLUTIONS UK LTD,24/06/2014,"4,000.00"
"Development, Business & Employment","AD - Development, Business & Housing",WCAN,Capital Expenditure,Payments to Contractor,JORDAN LEWIS ASSOCIATES LTD,13/06/2014,"1,500.00"
"Development, Business & Employment","AD - Development, Business & Housing",WCAN,Capital Expenditure,Payments to Contractor,JORDAN LEWIS ASSOCIATES LTD,13/06/2014,"3,639.60"
"Development, Business & Employment","AD - Development, Business & Housing",WCAN,Capital Expenditure,Payments to Contractor,PAVE AWAYS LTD,03/06/2014,"63,358.74"
"Development, Business & Employment","AD - Development, Business & Housing",WCAN,Capital Expenditure,Payments to Contractor,PAVE AWAYS LTD,26/06/2014,"77,560.08"
"Development, Business & Employment","AD - Development, Business & Housing",WCAN,Capital Expenditure,Site Purchase,THE WREKIN HOUSING TRUST (INVOICES ONLY),19/06/2014,"24,815.95"
"Development, Business & Employment",Business & Development Planning,AEAB,Supplies & Services,Marketing & Publicity,Beaming Success Ltd,10/06/2014,"1,170.00"
"Development, Business & Employment",Business & Development Planning,AEAB,Supplies & Services,Marketing & Publicity,Marketing Birmingham,10/06/2014,"2,000.00"
"Development, Business & Employment",Business & Development Planning,AEAB,Supplies & Services,Consultancy,Breeze Strategy,10/06/2014,"3,750.00"
"Development, Business & Employment",Business & Development Planning,AEAB,Supplies & Services,Consultancy,Breeze Strategy,10/06/2014,"3,750.00"
"Development, Business & Employment",Business & Development Planning,AEAC,Supplies & Services,Subscriptions,Essex County Council,23/06/2014,"1,350.00"
"Development, Business & Employment",Business & Development Planning,AEAD,Supplies & Services,Marketing & Publicity,PR Matters,30/06/2014,350.00
"Development, Business & Employment",Business & Development Planning,AEAD,Supplies & Services,Marketing & Publicity,DESIGN:ONE LTD,26/06/2014,"19,792.50"
"Development, Business & Employment",Business & Development Planning,AEAG,Supplies & Services,Marketing & Publicity,Zen Communications (UK) Ltd,10/06/2014,"1,440.00"
"Development, Business & Employment",Business & Development Planning,AEAG,Supplies & Services,Marketing & Publicity,Zen Communications (UK) Ltd,10/06/2014,"1,440.00"
"Development, Business & Employment",Business & Development Planning,AEAJ,Supplies & Services,Business Sector Development,Shropshire Enterprise Partnership,23/06/2014,500.00
"Development, Business & Employment",Business & Development Planning,DHAT,Supplies & Services,Subscriptions,HQN LTD,26/06/2014,"1,095.00"
"Development, Business & Employment",Business & Development Planning,DHBB,Supplies & Services,Other Grants (Expenses),Carillion Energy Services Ltd,02/06/2014,"19,208.69"
"Development, Business & Employment",Business & Development Planning,EWAJ,Premises-Related Expenditure,Hire Of Rooms,MEETING POINT TRUST LTD,17/06/2014,226.50
"Development, Business & Employment",Business & Development Planning,EWAJ,Supplies & Services,Research Surveys,Andrew Donald Plant Hire,16/06/2014,245.00
"Development, Business & Employment",Business & Development Planning,EWAJ,Supplies & Services,Research Surveys,SHROPSHIRE WILDLIFE TRUST,17/06/2014,750.00
"Development, Business & Employment",Business & Development Planning,EWAP,Supplies & Services,Advertising,THE MIDLAND NEWS ASSOCIATION LTD,05/06/2014,114.03
"Development, Business & Employment",Business & Development Planning,WDAF,Capital Expenditure,Other Capital Expenditure,MARTIN EVANS CONSTRUCTION LTD,02/06/2014,"4,227.73"
"Development, Business & Employment",Business & Development Planning,WDAF,Capital Expenditure,Other Capital Expenditure,R E BROWN BUILDERS LIMITED,02/06/2014,"4,986.56"
"Development, Business & Employment",Business & Development Planning,WDAF,Capital Expenditure,Other Capital Expenditure,ROSEMONT BUILDING CONTRACTORS,02/06/2014,"3,581.00"
"Development, Business & Employment",Business & Development Planning,WDAF,Capital Expenditure,Other Capital Expenditure,ROSEMONT BUILDING CONTRACTORS,02/06/2014,"3,695.00"
"Development, Business & Employment",Business & Development Planning,WDAF,Capital Expenditure,Other Capital Expenditure,STANNAH LIFT SERVICES LTD,02/06/2014,"1,521.00"
"Development, Business & Employment",Business & Development Planning,WDAF,Capital Expenditure,Other Capital Expenditure,THE WREKIN HOUSING TRUST (INVOICES ONLY),02/06/2014,"1,600.00"
"Development, Business & Employment",Business & Development Planning,WDAF,Capital Expenditure,Other Capital Expenditure,PRISM MEDICAL WESTHOLME DIVISION,30/06/2014,380.00
"Development, Business & Employment",Business & Development Planning,WDAF,Capital Expenditure,Other Capital Expenditure,DMW ENVIRONMENTAL SAFETY LTD,30/06/2014,125.00
"Development, Business & Employment",Business & Development Planning,WDAF,Capital Expenditure,Other Capital Expenditure,STANNAH LIFT SERVICES LTD,30/06/2014,"3,668.00"
"Development, Business & Employment",Business & Development Planning,WDAF,Capital Expenditure,Other Capital Expenditure,ROSEMONT BUILDING CONTRACTORS,30/06/2014,"7,732.90"
"Development, Business & Employment",Business & Development Planning,WDAF,Capital Expenditure,Other Capital Expenditure,DMW ENVIRONMENTAL SAFETY LTD,30/06/2014,125.00
"Development, Business & Employment",Business & Development Planning,WDAF,Capital Expenditure,Other Capital Expenditure,DMW ENVIRONMENTAL SAFETY LTD,30/06/2014,125.00
"Development, Business & Employment",Business & Development Planning,WDAF,Capital Expenditure,Other Capital Expenditure,DMW ENVIRONMENTAL SAFETY LTD,26/06/2014,125.00
"Development, Business & Employment",Business & Development Planning,WDAF,Capital Expenditure,Other Capital Expenditure,DMW ENVIRONMENTAL SAFETY LTD,26/06/2014,125.00
"Development, Business & Employment",Business & Development Planning,WDAF,Capital Expenditure,Other Capital Expenditure,DMW ENVIRONMENTAL SAFETY LTD,26/06/2014,125.00
"Development, Business & Employment",Business & Development Planning,WDAF,Capital Expenditure,Other Capital Expenditure,THE WREKIN HOUSING TRUST (INVOICES ONLY),26/06/2014,"2,377.13"
"Development, Business & Employment",Business & Development Planning,WDAF,Capital Expenditure,Other Capital Expenditure,DMW ENVIRONMENTAL SAFETY LTD,26/06/2014,125.00
"Development, Business & Employment",Business & Development Planning,WDAF,Capital Expenditure,Other Capital Expenditure,DMW ENVIRONMENTAL SAFETY LTD,26/06/2014,125.00
"Development, Business & Employment",Business & Development Planning,WDAF,Capital Expenditure,Other Capital Expenditure,DMW ENVIRONMENTAL SAFETY LTD,26/06/2014,125.00
"Development, Business & Employment",Business & Development Planning,WDAF,Capital Expenditure,Other Capital Expenditure,Redacted Personal Information,26/06/2014,425.00
"Development, Business & Employment",Business & Development Planning,WDAF,Capital Expenditure,Other Capital Expenditure,THE WREKIN HOUSING TRUST (INVOICES ONLY),26/06/2014,"1,600.00"
"Development, Business & Employment",Business & Development Planning,WDAF,Capital Expenditure,Other Capital Expenditure,DMW ENVIRONMENTAL SAFETY LTD,26/06/2014,125.00
"Development, Business & Employment",Business & Development Planning,WDAF,Capital Expenditure,Other Capital Expenditure,AIDS & ADAPTIONS LTD,19/06/2014,520.00
"Development, Business & Employment",Business & Development Planning,WDAF,Capital Expenditure,Other Capital Expenditure,Redacted Personal Information,19/06/2014,"3,894.07"
"Development, Business & Employment",Business & Development Planning,WDAF,Capital Expenditure,Other Capital Expenditure,THE WREKIN HOUSING TRUST (INVOICES ONLY),19/06/2014,"1,268.96"
"Development, Business & Employment",Business & Development Planning,WDAF,Capital Expenditure,Other Capital Expenditure,THE WREKIN HOUSING TRUST (INVOICES ONLY),18/06/2014,"1,600.00"
"Development, Business & Employment",Business & Development Planning,WDAF,Capital Expenditure,Other Capital Expenditure,AIDS & ADAPTIONS LTD,16/06/2014,"5,088.09"
"Development, Business & Employment",Business & Development Planning,WDAF,Capital Expenditure,Other Capital Expenditure,STANNAH LIFT SERVICES LTD,16/06/2014,"1,633.00"
"Development, Business & Employment",Business & Development Planning,WDAF,Capital Expenditure,Other Capital Expenditure,STANNAH LIFT SERVICES LTD,16/06/2014,"4,438.00"
"Development, Business & Employment",Business & Development Planning,WDAF,Capital Expenditure,Other Capital Expenditure,DMW ENVIRONMENTAL SAFETY LTD,16/06/2014,150.00
"Development, Business & Employment",Business & Development Planning,WDAF,Capital Expenditure,Other Capital Expenditure,DMW ENVIRONMENTAL SAFETY LTD,16/06/2014,150.00
"Development, Business & Employment",Business & Development Planning,WDAF,Capital Expenditure,Other Capital Expenditure,THREE PINES BUILDING CO LTD,16/06/2014,"4,035.84"
"Development, Business & Employment",Business & Development Planning,WDAF,Capital Expenditure,Other Capital Expenditure,DMW ENVIRONMENTAL SAFETY LTD,16/06/2014,150.00
"Development, Business & Employment",Business & Development Planning,WDAF,Capital Expenditure,Other Capital Expenditure,DMW ENVIRONMENTAL SAFETY LTD,16/06/2014,150.00
"Development, Business & Employment",Business & Development Planning,WDAF,Capital Expenditure,Other Capital Expenditure,DMW ENVIRONMENTAL SAFETY LTD,16/06/2014,150.00
"Development, Business & Employment",Business & Development Planning,WDAF,Capital Expenditure,Other Capital Expenditure,DMW ENVIRONMENTAL SAFETY LTD,16/06/2014,150.00
"Development, Business & Employment",Business & Development Planning,WDAF,Capital Expenditure,Other Capital Expenditure,THE WREKIN HOUSING TRUST (INVOICES ONLY),16/06/2014,780.00
"Development, Business & Employment",Business & Development Planning,WDAF,Capital Expenditure,Other Capital Expenditure,STANNAH LIFT SERVICES LTD,24/06/2014,"3,245.06"
"Development, Business & Employment",Business & Development Planning,WDAF,Capital Expenditure,Other Capital Expenditure,STANNAH LIFT SERVICES LTD,24/06/2014,"3,876.49"
"Development, Business & Employment",Business & Development Planning,WDAF,Capital Expenditure,Other Capital Expenditure,W&B Contractors,24/06/2014,"9,444.21"
"Development, Business & Employment",Business & Development Planning,WDST,Capital Expenditure,Payments to Contractor,FITZGERALD CONTRACTORS LTD,12/06/2014,"41,402.30"
"Development, Business & Employment",Business & Development Planning,WDST,Capital Expenditure,Payments to Contractor,Retail Outlet Design,06/06/2014,"20,000.00"
"Development, Business & Employment",Business & Development Planning,WDST,Capital Expenditure,Payments to Contractor,JORDAN LEWIS ASSOCIATES LTD,17/06/2014,460.00
"Development, Business & Employment",Business & Development Planning,WDST,Capital Expenditure,Compensation,E.ON ,17/06/2014,288.27
"Development, Business & Employment",Business & Development Planning,WDST,Capital Expenditure,Payments to Contractor,SAINTS SOLICITORS,26/06/2014,500.00
"Development, Business & Employment",Business & Development Planning,WDST,Capital Expenditure,Payments to Contractor,PRYSMIAN CABLES & SYSTEMS LTD,10/06/2014,287.17
"Development, Business & Employment",Business & Development Planning,WDST,Capital Expenditure,Payments to Contractor,BUSINESS WATCH GUARDING LIMITED,10/06/2014,660.00
"Development, Business & Employment",Business & Development Planning,WDST,Capital Expenditure,Payments to Contractor,JORDAN LEWIS ASSOCIATES LTD,10/06/2014,"3,369.53"
"Development, Business & Employment",Business & Development Planning,WDST,Capital Expenditure,Payments to Contractor,JORDAN LEWIS ASSOCIATES LTD,10/06/2014,"3,873.08"
"Development, Business & Employment",Business & Development Planning,WDST,Capital Expenditure,Payments to Contractor,FITZGERALD CONTRACTORS LTD,10/06/2014,"12,979.66"
"Development, Business & Employment",Business & Development Planning,WDST,Capital Expenditure,Payments to Contractor,FITZGERALD CONTRACTORS LTD,10/06/2014,"16,457.57"
"Development, Business & Employment",Business & Development Planning,WDST,Capital Expenditure,Payments to Contractor,FITZGERALD CONTRACTORS LTD,10/06/2014,"7,664.13"
"Development, Business & Employment",Business & Development Planning,WDST,Capital Expenditure,Payments to Contractor,PAVE AWAYS LTD,25/06/2014,"43,155.48"
"Development, Business & Employment",Development Management,DDAC,Supplies & Services,Advertising,THE MIDLAND NEWS ASSOCIATION LTD,11/06/2014,198.00
"Development, Business & Employment",Development Management,DDAC,Supplies & Services,Advertising,THE MIDLAND NEWS ASSOCIATION LTD,11/06/2014,297.00
"Development, Business & Employment",Development Management,DDAC,Supplies & Services,Advertising,THE MIDLAND NEWS ASSOCIATION LTD,03/06/2014,185.62
"Development, Business & Employment",Development Management,DDAC,Supplies & Services,Advertising,THE MIDLAND NEWS ASSOCIATION LTD,03/06/2014,297.00
"Development, Business & Employment",Development Management,DDAC,Supplies & Services,Advertising,THE MIDLAND NEWS ASSOCIATION LTD,30/06/2014,198.00
"Development, Business & Employment",Development Management,DDAC,Supplies & Services,Advertising,THE MIDLAND NEWS ASSOCIATION LTD,20/06/2014,198.00
"Development, Business & Employment",Development Management,DDAG,Employees,Professional Subs,ICSA,30/06/2014,285.00
"Development, Business & Employment",Development Management,DDAG,Supplies & Services,Ordnance Survey And Maps,LANDMARK INFORMATION GROUP LTD,06/06/2014,176.48
"Development, Business & Employment",Development Management,DDAG,Supplies & Services,Subscriptions,BBC Haymarket Exhibitions Ltd,02/06/2014,915.00
"Development, Business & Employment",Development Management,DDAG,Supplies & Services,Print & Data Services (Print Room) - Charges,RESOLUTION DATA MANAGEMENT LTD,16/06/2014,134.46
"Development, Business & Employment",Development Management,DDAG,Supplies & Services,Security Services,ADT FIRE & SECURITY PLC,20/06/2014,255.00
"Development, Business & Employment",Property & Design,CAAG,Employees,Agency Supply Costs,RACS Collective Limited,11/06/2014,738.28
"Development, Business & Employment",Property & Design,CAAG,Employees,Agency Supply Costs,RACS Collective Limited,18/06/2014,773.56
"Development, Business & Employment",Property & Design,CAAG,Employees,Agency Supply Costs,RACS Collective Limited,09/06/2014,635.56
"Development, Business & Employment",Property & Design,CAAG,Supplies & Services,Consultants Fees,TELFORD & WREKIN CVS,30/06/2014,"1,483.66"
"Development, Business & Employment",Property & Design,CAAG,Supplies & Services,Subscriptions,ROYAL INSTITUTE OF BRITISH ARCHITECTS,25/06/2014,370.00
"Development, Business & Employment",Property & Design,CAAH,Premises-Related Expenditure,R&M -Buildings DLO Charge,HORTON AUTOMATICS LTD,12/06/2014,"1,348.24"
"Development, Business & Employment",Property & Design,CAAH,Premises-Related Expenditure,R&M -Buildings DLO Charge,PHS GROUP LTD,12/06/2014,362.64
"Development, Business & Employment",Property & Design,CAAH,Premises-Related Expenditure,R&M -Buildings DLO Charge,PROKILL UK LIMITED,11/06/2014,150.00
"Development, Business & Employment",Property & Design,CAAH,Premises-Related Expenditure,R&M -Buildings DLO Charge,PROKILL UK LIMITED,11/06/2014,150.00
"Development, Business & Employment",Property & Design,CAAH,Premises-Related Expenditure,R&M -Buildings DLO Charge,WINDOW & DOOR CONTRACT SERVICES,12/06/2014,"2,549.13"
"Development, Business & Employment",Property & Design,CAAH,Premises-Related Expenditure,R&M -Buildings DLO Charge,Monodraught Limited,12/06/2014,"1,425.00"
"Development, Business & Employment",Property & Design,CAAH,Premises-Related Expenditure,R&M -Buildings DLO Charge,HUWS GRAY LTD,12/06/2014,130.59
"Development, Business & Employment",Property & Design,CAAH,Premises-Related Expenditure,R&M -Buildings DLO Charge,D P WILCOX & SON,17/06/2014,110.00
"Development, Business & Employment",Property & Design,CAAH,Premises-Related Expenditure,R&M -Buildings DLO Charge,PRYCE (BUILDERS) LTD,17/06/2014,300.40
"Development, Business & Employment",Property & Design,CAAH,Premises-Related Expenditure,R&M -Buildings DLO Charge,E DAVIES & SON,25/06/2014,465.95
"Development, Business & Employment",Property & Design,CAAH,Premises-Related Expenditure,R&M -Buildings DLO Charge,E DAVIES & SON,25/06/2014,875.00
"Development, Business & Employment",Property & Design,CAAH,Premises-Related Expenditure,R&M -Buildings DLO Charge,PRYCE (BUILDERS) LTD,25/06/2014,956.00
"Development, Business & Employment",Property & Design,CAAH,Premises-Related Expenditure,R&M -Buildings DLO Charge,HBL Associates Ltd,25/06/2014,450.00
"Development, Business & Employment",Property & Design,CAAH,Premises-Related Expenditure,R&M -Buildings DLO Charge,ADT FIRE & SECURITY PLC,25/06/2014,583.00
"Development, Business & Employment",Property & Design,CAAH,Premises-Related Expenditure,R&M -Buildings DLO Charge,ADT FIRE & SECURITY PLC,25/06/2014,463.00
"Development, Business & Employment",Property & Design,CAAH,Premises-Related Expenditure,R&M -Buildings DLO Charge,WREKIN DRAIN SERVICES LTD,25/06/2014,240.00
"Development, Business & Employment",Property & Design,CAAH,Premises-Related Expenditure,R&M -Buildings DLO Charge,George Birchall Limited,25/06/2014,"1,370.74"
"Development, Business & Employment",Property & Design,CAAH,Premises-Related Expenditure,R&M -Buildings DLO Charge,WREKIN DRAIN SERVICES LTD,25/06/2014,240.00
"Development, Business & Employment",Property & Design,CAAH,Premises-Related Expenditure,R&M -Buildings DLO Charge,JONES & HAMPTON LTD,25/06/2014,250.46
"Development, Business & Employment",Property & Design,CAAH,Premises-Related Expenditure,R&M -Buildings DLO Charge,PP ELECTRICAL SERVICES (Shropshire) Ltd,25/06/2014,441.03
"Development, Business & Employment",Property & Design,CAAH,Premises-Related Expenditure,R&M -Buildings DLO Charge,JONES & HAMPTON LTD,25/06/2014,322.47
"Development, Business & Employment",Property & Design,CAAH,Premises-Related Expenditure,R&M -Buildings DLO Charge,SECURITY WISE LTD,17/06/2014,-136.00
"Development, Business & Employment",Property & Design,CAAH,Premises-Related Expenditure,R&M -Buildings DLO Charge,D P WILCOX & SON,17/06/2014,365.00
"Development, Business & Employment",Property & Design,CAAH,Premises-Related Expenditure,R&M -Buildings DLO Charge,SECURITY WISE LTD,17/06/2014,136.00
"Development, Business & Employment",Property & Design,CAAH,Premises-Related Expenditure,R&M -Buildings DLO Charge,SHIELD ON-SITE SERVICES LTD,19/06/2014,194.96
"Development, Business & Employment",Property & Design,CAAH,Premises-Related Expenditure,R&M -Buildings DLO Charge,SECURITY WISE LTD,19/06/2014,130.00
"Development, Business & Employment",Property & Design,CAAH,Premises-Related Expenditure,R&M -Buildings DLO Charge,SECURITY WISE LTD,19/06/2014,125.00
"Development, Business & Employment",Property & Design,CAAH,Premises-Related Expenditure,R&M -Buildings DLO Charge,JCE & SONS LTD,19/06/2014,"1,185.10"
"Development, Business & Employment",Property & Design,CAAH,Premises-Related Expenditure,R&M -Buildings DLO Charge,JCE & SONS LTD,19/06/2014,751.50
"Development, Business & Employment",Property & Design,CAAH,Premises-Related Expenditure,R&M -Buildings DLO Charge,SECURITY WISE LTD,19/06/2014,345.00
"Development, Business & Employment",Property & Design,CAAH,Premises-Related Expenditure,R&M -Buildings DLO Charge,SECURITY WISE LTD,19/06/2014,424.00
"Development, Business & Employment",Property & Design,CAAH,Premises-Related Expenditure,R&M -Buildings DLO Charge,SECURITY WISE LTD,19/06/2014,345.00
"Development, Business & Employment",Property & Design,CAAH,Premises-Related Expenditure,R&M -Buildings DLO Charge,PP ELECTRICAL SERVICES (Shropshire) Ltd,19/06/2014,254.60
"Development, Business & Employment",Property & Design,CAAH,Premises-Related Expenditure,R&M -Buildings DLO Charge,ERIC NEVILLE CATERING SUPPLIES LTD,19/06/2014,120.00
"Development, Business & Employment",Property & Design,CAAH,Premises-Related Expenditure,R&M -Buildings DLO Charge,ADT FIRE & SECURITY PLC,19/06/2014,-579.76
"Development, Business & Employment",Property & Design,CAAH,Premises-Related Expenditure,R&M -Buildings DLO Charge,ADT FIRE & SECURITY PLC,20/06/2014,396.00
"Development, Business & Employment",Property & Design,CAAH,Premises-Related Expenditure,R&M -Buildings DLO Charge,ADT FIRE & SECURITY PLC,20/06/2014,420.74
"Development, Business & Employment",Property & Design,CAAH,Premises-Related Expenditure,R&M -Buildings DLO Charge,ADT FIRE & SECURITY PLC,20/06/2014,206.79
"Development, Business & Employment",Property & Design,CAAH,Premises-Related Expenditure,R&M -Buildings DLO Charge,ADT FIRE & SECURITY PLC,20/06/2014,579.76
"Development, Business & Employment",Property & Design,CAAH,Premises-Related Expenditure,R&M -Buildings DLO Charge,ADT FIRE & SECURITY PLC,20/06/2014,391.81
"Development, Business & Employment",Property & Design,CAAH,Premises-Related Expenditure,R&M -Buildings DLO Charge,ADT FIRE & SECURITY PLC,20/06/2014,487.00
"Development, Business & Employment",Property & Design,CAAH,Premises-Related Expenditure,R&M -Buildings DLO Charge,ADT FIRE & SECURITY PLC,20/06/2014,215.00
"Development, Business & Employment",Property & Design,CAAH,Premises-Related Expenditure,R&M -Buildings DLO Charge,JCE & SONS LTD,09/06/2014,"1,990.80"
"Development, Business & Employment",Property & Design,CAAH,Premises-Related Expenditure,R&M -Buildings DLO Charge,TAYLORS MECHANICAL H & P SERVICES LTD,09/06/2014,200.00
"Development, Business & Employment",Property & Design,CAAH,Premises-Related Expenditure,R&M -Buildings DLO Charge,TELFORD & WREKIN SERVICES LTD,09/06/2014,180.00
"Development, Business & Employment",Property & Design,CAAH,Premises-Related Expenditure,R&M -Buildings DLO Charge,PP ELECTRICAL SERVICES (Shropshire) Ltd,09/06/2014,491.48
"Development, Business & Employment",Property & Design,CAAH,Premises-Related Expenditure,R&M -Buildings DLO Charge,JCE & SONS LTD,09/06/2014,"1,705.20"
"Development, Business & Employment",Property & Design,CAAH,Premises-Related Expenditure,R&M -Buildings DLO Charge,ARJOHUNTLEIGH UK,09/06/2014,465.48
"Development, Business & Employment",Property & Design,CAAH,Premises-Related Expenditure,R&M -Buildings DLO Charge,JCE & SONS LTD,09/06/2014,156.65
"Development, Business & Employment",Property & Design,CAAH,Premises-Related Expenditure,R&M -Buildings DLO Charge,JCE & SONS LTD,09/06/2014,143.82
"Development, Business & Employment",Property & Design,CAAH,Premises-Related Expenditure,R&M -Buildings DLO Charge,PP ELECTRICAL SERVICES (Shropshire) Ltd,09/06/2014,396.60
"Development, Business & Employment",Property & Design,CAAH,Premises-Related Expenditure,R&M -Buildings DLO Charge,WREKIN DRAIN SERVICES LTD,09/06/2014,193.00
"Development, Business & Employment",Property & Design,CAAH,Premises-Related Expenditure,R&M -Buildings DLO Charge,PP ELECTRICAL SERVICES (Shropshire) Ltd,09/06/2014,147.00
"Development, Business & Employment",Property & Design,CAAH,Premises-Related Expenditure,R&M -Buildings DLO Charge,PP ELECTRICAL SERVICES (Shropshire) Ltd,09/06/2014,547.28
"Development, Business & Employment",Property & Design,CAAH,Premises-Related Expenditure,R&M -Buildings DLO Charge,PP ELECTRICAL SERVICES (Shropshire) Ltd,09/06/2014,412.00
"Development, Business & Employment",Property & Design,CAAH,Premises-Related Expenditure,R&M -Buildings DLO Charge,PP ELECTRICAL SERVICES (Shropshire) Ltd,09/06/2014,229.32
"Development, Business & Employment",Property & Design,CAAH,Premises-Related Expenditure,R&M -Buildings DLO Charge,TAYLORS MECHANICAL H & P SERVICES LTD,09/06/2014,840.00
"Development, Business & Employment",Property & Design,CAAH,Premises-Related Expenditure,R&M -Buildings DLO Charge,PROKILL UK LIMITED,09/06/2014,150.00
"Development, Business & Employment",Property & Design,CAAH,Premises-Related Expenditure,R&M -Buildings DLO Charge,AQUALOGIC (WC) LTD,09/06/2014,319.50
"Development, Business & Employment",Property & Design,CAAH,Premises-Related Expenditure,R&M -Buildings DLO Charge,FIRE MARQUE,09/06/2014,220.00
"Development, Business & Employment",Property & Design,CAAH,Premises-Related Expenditure,R&M -Buildings DLO Charge,WREKIN DRAIN SERVICES LTD,09/06/2014,170.00
"Development, Business & Employment",Property & Design,CAAH,Premises-Related Expenditure,R&M -Buildings DLO Charge,WREKIN DRAIN SERVICES LTD,09/06/2014,170.00
"Development, Business & Employment",Property & Design,CAAH,Premises-Related Expenditure,R&M -Buildings DLO Charge,SECURITY WISE LTD,09/06/2014,136.00
"Development, Business & Employment",Property & Design,CAAH,Premises-Related Expenditure,R&M -Buildings DLO Charge,A1 Glass & Glazing (Shropshire) Limited,09/06/2014,160.00
"Development, Business & Employment",Property & Design,CAAH,Premises-Related Expenditure,R&M -Buildings DLO Charge,George Birchall Limited,09/06/2014,"1,231.00"
"Development, Business & Employment",Property & Design,CAAH,Premises-Related Expenditure,R&M -Buildings DLO Charge,A1 Glass & Glazing (Shropshire) Limited,09/06/2014,380.00
"Development, Business & Employment",Property & Design,CAAH,Premises-Related Expenditure,R&M -Buildings DLO Charge,A1 Glass & Glazing (Shropshire) Limited,09/06/2014,140.00
"Development, Business & Employment",Property & Design,CAAH,Premises-Related Expenditure,R&M -Buildings DLO Charge,George Birchall Limited,09/06/2014,285.98
"Development, Business & Employment",Property & Design,CAAH,Premises-Related Expenditure,R&M -Buildings DLO Charge,George Birchall Limited,09/06/2014,275.02
"Development, Business & Employment",Property & Design,CAAH,Premises-Related Expenditure,R&M -Buildings DLO Charge,George Birchall Limited,09/06/2014,284.93
"Development, Business & Employment",Property & Design,CAAH,Premises-Related Expenditure,R&M -Buildings DLO Charge,George Birchall Limited,09/06/2014,254.85
"Development, Business & Employment",Property & Design,CAAH,Premises-Related Expenditure,R&M -Buildings DLO Charge,George Birchall Limited,09/06/2014,323.19
"Development, Business & Employment",Property & Design,CAAH,Premises-Related Expenditure,R&M -Buildings DLO Charge,George Birchall Limited,09/06/2014,153.50
"Development, Business & Employment",Property & Design,CAAH,Premises-Related Expenditure,R&M -Buildings DLO Charge,George Birchall Limited,09/06/2014,143.31
"Development, Business & Employment",Property & Design,CAAH,Premises-Related Expenditure,R&M -Buildings DLO Charge,George Birchall Limited,09/06/2014,448.64
"Development, Business & Employment",Property & Design,CAAH,Premises-Related Expenditure,R&M -Buildings DLO Charge,George Birchall Limited,09/06/2014,710.33
"Development, Business & Employment",Property & Design,CAAH,Premises-Related Expenditure,Gas,West Mercia Energy (WME),09/06/2014,"1,152.19"
"Development, Business & Employment",Property & Design,CAAH,Premises-Related Expenditure,R&M -Buildings DLO Charge,COTTAGE BLINDS OF SEDGLEY LTD,10/06/2014,550.00
"Development, Business & Employment",Property & Design,COAE,Premises-Related Expenditure,R&M -Buildings DLO Charge,ERIC NEVILLE CATERING SUPPLIES LTD,11/06/2014,109.90
"Development, Business & Employment",Property & Design,COAE,Premises-Related Expenditure,R&M -Buildings DLO Charge,George Birchall Limited,02/06/2014,399.13
"Development, Business & Employment",Property & Design,COAE,Premises-Related Expenditure,Gas,West Mercia Energy (WME),05/06/2014,"-2,632.58"
"Development, Business & Employment",Property & Design,COAE,Premises-Related Expenditure,Gas,BRITISH GAS BUSINESS ELEC (502015),06/06/2014,"1,389.27"
"Development, Business & Employment",Property & Design,COAE,Premises-Related Expenditure,R&M -Buildings DLO Charge,JCE & SONS LTD,06/06/2014,233.45
"Development, Business & Employment",Property & Design,COAE,Premises-Related Expenditure,R&M -Buildings DLO Charge,George Birchall Limited,06/06/2014,201.45
"Development, Business & Employment",Property & Design,COAE,Premises-Related Expenditure,Gas,West Mercia Energy (WME),30/06/2014,436.81
"Development, Business & Employment",Property & Design,COAE,Premises-Related Expenditure,Trade Refuse,FCC RECYCLING (UK) LIMITED,16/06/2014,416.26
"Development, Business & Employment",Property & Design,COAE,Premises-Related Expenditure,Gas,West Mercia Energy (WME),05/06/2014,"2,688.45"
"Development, Business & Employment",Property & Design,COAE,Premises-Related Expenditure,Electricity,West Mercia Energy (WME),16/06/2014,"1,123.98"
"Development, Business & Employment",Property & Design,COAE,Premises-Related Expenditure,Electricity,West Mercia Energy (WME),16/06/2014,352.26
"Development, Business & Employment",Property & Design,COAE,Premises-Related Expenditure,Electricity,West Mercia Energy (WME),16/06/2014,"1,184.12"
"Development, Business & Employment",Property & Design,COAE,Premises-Related Expenditure,Electricity,West Mercia Energy (WME),16/06/2014,121.99
"Development, Business & Employment",Property & Design,COAE,Premises-Related Expenditure,Electricity,West Mercia Energy (WME),16/06/2014,"2,612.50"
"Development, Business & Employment",Property & Design,COAE,Premises-Related Expenditure,Electricity,West Mercia Energy (WME),16/06/2014,201.09
"Development, Business & Employment",Property & Design,COAE,Premises-Related Expenditure,Electricity,West Mercia Energy (WME),16/06/2014,838.89
"Development, Business & Employment",Property & Design,COAE,Premises-Related Expenditure,Service Contracts,OSBORNE DELTA (LIGHTNING CONDUCTORS) LTD,18/06/2014,110.00
"Development, Business & Employment",Property & Design,COAE,Premises-Related Expenditure,R&M -Buildings DLO Charge,THYSSENKRUPP ELEVATOR (UK) LIMITED,18/06/2014,289.47
"Development, Business & Employment",Property & Design,COAE,Premises-Related Expenditure,R&M -Buildings DLO Charge,THYSSENKRUPP ELEVATOR (UK) LIMITED,18/06/2014,200.08
"Development, Business & Employment",Property & Design,COAE,Premises-Related Expenditure,Service Contracts,OSBORNE DELTA (LIGHTNING CONDUCTORS) LTD,18/06/2014,110.00
"Development, Business & Employment",Property & Design,COAE,Premises-Related Expenditure,Service Contracts,SECURITY WISE LTD,18/06/2014,302.00
"Development, Business & Employment",Property & Design,COAE,Premises-Related Expenditure,R&M -Buildings DLO Charge,NYKE ENERGY SERVICES LIMITED,18/06/2014,"1,172.00"
"Development, Business & Employment",Property & Design,COAE,Premises-Related Expenditure,General Rents,COMBINED PROPERTY CONTROL,19/06/2014,"117,834.54"
"Development, Business & Employment",Property & Design,COAE,Premises-Related Expenditure,Water Rates,SEVERN TRENT WATER LTD,09/06/2014,"2,015.97"
"Development, Business & Employment",Property & Design,COAE,Premises-Related Expenditure,R&M -Buildings DLO Charge,JCE & SONS LTD,09/06/2014,149.50
"Development, Business & Employment",Property & Design,COAE,Premises-Related Expenditure,R&M -Buildings DLO Charge,PP ELECTRICAL SERVICES (Shropshire) Ltd,09/06/2014,189.12
"Development, Business & Employment",Property & Design,COAE,Premises-Related Expenditure,Service Contracts,PP ELECTRICAL SERVICES (Shropshire) Ltd,09/06/2014,105.60
"Development, Business & Employment",Property & Design,COAE,Premises-Related Expenditure,Service Contracts,PP ELECTRICAL SERVICES (Shropshire) Ltd,09/06/2014,932.40
"Development, Business & Employment",Property & Design,COAE,Premises-Related Expenditure,R&M -Buildings DLO Charge,PP ELECTRICAL SERVICES (Shropshire) Ltd,09/06/2014,"1,015.20"
"Development, Business & Employment",Property & Design,COAE,Premises-Related Expenditure,Gas,West Mercia Energy (WME),23/06/2014,461.10
"Development, Business & Employment",Property & Design,COAE,Premises-Related Expenditure,R&M -Buildings DLO Charge,G LEDDINGTON (ELECTRICAL) LTD,24/06/2014,945.70
"Development, Business & Employment",Property & Design,COAE,Premises-Related Expenditure,R&M -Buildings DLO Charge,JCE & SONS LTD,25/06/2014,"1,902.34"
"Development, Business & Employment",Property & Design,COAE,Premises-Related Expenditure,Service Contracts,ADT FIRE & SECURITY PLC,25/06/2014,103.44
"Development, Business & Employment",Property & Design,COAE,Supplies & Services,Equipment - Hire,DCI RECYCLING,03/06/2014,516.67
"Development, Business & Employment",Property & Design,COAG,Premises-Related Expenditure,Service Contracts,SICO EUROPE LTD,11/06/2014,241.50
"Development, Business & Employment",Property & Design,COAG,Premises-Related Expenditure,R&M -Buildings DLO Charge,ERIC NEVILLE CATERING SUPPLIES LTD,11/06/2014,106.74
"Development, Business & Employment",Property & Design,COAG,Premises-Related Expenditure,R&M -Buildings DLO Charge,ERIC NEVILLE CATERING SUPPLIES LTD,11/06/2014,107.00
"Development, Business & Employment",Property & Design,COAG,Premises-Related Expenditure,R&M -Buildings DLO Charge,D P WILCOX & SON,16/06/2014,340.00
"Development, Business & Employment",Property & Design,COAG,Premises-Related Expenditure,R&M -Buildings DLO Charge,WREKIN DRAIN SERVICES LTD,02/06/2014,170.00
"Development, Business & Employment",Property & Design,COAG,Premises-Related Expenditure,R&M -Buildings DLO Charge,SICO EUROPE LTD,02/06/2014,342.90
"Development, Business & Employment",Property & Design,COAG,Premises-Related Expenditure,R&M -Buildings DLO Charge,George Birchall Limited,02/06/2014,166.25
"Development, Business & Employment",Property & Design,COAG,Premises-Related Expenditure,R&M -Buildings DLO Charge,SDT ELECTRICAL LTD,05/06/2014,"1,020.00"
"Development, Business & Employment",Property & Design,COAG,Premises-Related Expenditure,R&M -Buildings DLO Charge,SDT ELECTRICAL LTD,05/06/2014,"1,125.00"
"Development, Business & Employment",Property & Design,COAG,Premises-Related Expenditure,Service Contracts,ERIC NEVILLE CATERING SUPPLIES LTD,18/06/2014,120.00
"Development, Business & Employment",Property & Design,COAG,Premises-Related Expenditure,Service Contracts,ERIC NEVILLE CATERING SUPPLIES LTD,18/06/2014,120.00
"Development, Business & Employment",Property & Design,COAG,Premises-Related Expenditure,R&M -Buildings DLO Charge,DMW ENVIRONMENTAL SAFETY LTD,25/06/2014,450.00
"Development, Business & Employment",Property & Design,COAG,Premises-Related Expenditure,R&M -Buildings DLO Charge,DMW ENVIRONMENTAL SAFETY LTD,25/06/2014,450.00
"Development, Business & Employment",Property & Design,COAG,Premises-Related Expenditure,R&M -Buildings DLO Charge,BRADLEY INDUSTRIAL SERVICES,05/06/2014,160.00
"Development, Business & Employment",Property & Design,COAG,Premises-Related Expenditure,R&M -Buildings DLO Charge,BRADLEY INDUSTRIAL SERVICES,16/06/2014,193.80
"Development, Business & Employment",Property & Design,COAG,Premises-Related Expenditure,R&M -Building Other,WELLINGTON INSULATION CO. LTD,16/06/2014,"2,440.00"
"Development, Business & Employment",Property & Design,COAG,Premises-Related Expenditure,Service Contracts,SICO EUROPE LTD,18/06/2014,155.25
"Development, Business & Employment",Property & Design,COAG,Premises-Related Expenditure,Service Contracts,ERIC NEVILLE CATERING SUPPLIES LTD,18/06/2014,120.00
"Development, Business & Employment",Property & Design,COAG,Premises-Related Expenditure,R&M -Buildings DLO Charge,BOW CONSTRUCTION LTD,18/06/2014,"4,462.84"
"Development, Business & Employment",Property & Design,COAG,Premises-Related Expenditure,R&M -Buildings DLO Charge,BRADLEY INDUSTRIAL SERVICES,05/06/2014,114.09
"Development, Business & Employment",Property & Design,COAG,Premises-Related Expenditure,R&M -Buildings DLO Charge,GRANVILLE CONSTRUCTION & MAINTENANCE LTD,20/06/2014,417.21
"Development, Business & Employment",Property & Design,COAG,Premises-Related Expenditure,R&M -Buildings DLO Charge,JCE & SONS LTD,09/06/2014,218.77
"Development, Business & Employment",Property & Design,COAG,Premises-Related Expenditure,Service Contracts,SICO EUROPE LTD,09/06/2014,172.50
"Development, Business & Employment",Property & Design,COAG,Premises-Related Expenditure,Service Contracts,SICO EUROPE LTD,09/06/2014,207.00
"Development, Business & Employment",Property & Design,COAG,Premises-Related Expenditure,R&M -Buildings DLO Charge,TAYLORS MECHANICAL H & P SERVICES LTD,09/06/2014,121.75
"Development, Business & Employment",Property & Design,COAG,Premises-Related Expenditure,R&M -Buildings DLO Charge,George Birchall Limited,09/06/2014,105.00
"Development, Business & Employment",Property & Design,COAK,Premises-Related Expenditure,Leasehold Rents,KEY ANGELS LTD,13/06/2014,400.00
"Development, Business & Employment",Property & Design,COAK,Premises-Related Expenditure,R&M -Buildings DLO Charge,SECURITY WISE LTD,11/06/2014,220.00
"Development, Business & Employment",Property & Design,COAK,Premises-Related Expenditure,Leasehold Rents,Redacted Personal Information,13/06/2014,404.00
"Development, Business & Employment",Property & Design,COAK,Premises-Related Expenditure,Leasehold Rents,Redacted Personal Information,13/06/2014,506.70
"Development, Business & Employment",Property & Design,COAK,Premises-Related Expenditure,Leasehold Rents,Redacted Personal Information,13/06/2014,431.10
"Development, Business & Employment",Property & Design,COAK,Premises-Related Expenditure,Leasehold Rents,CHURCHILL PL LIMITED,13/06/2014,420.60
"Development, Business & Employment",Property & Design,COAK,Premises-Related Expenditure,Leasehold Rents,CHURCHILL PL LIMITED,13/06/2014,431.10
"Development, Business & Employment",Property & Design,COAK,Premises-Related Expenditure,Leasehold Rents,Redacted Personal Information,13/06/2014,443.40
"Development, Business & Employment",Property & Design,COAK,Premises-Related Expenditure,Leasehold Rents,KEY ANGELS LTD,13/06/2014,400.00
"Development, Business & Employment",Property & Design,COAK,Premises-Related Expenditure,Leasehold Rents,Redacted Personal Information,13/06/2014,400.30
"Development, Business & Employment",Property & Design,COAK,Premises-Related Expenditure,Leasehold Rents,CHURCHILL PL LIMITED,13/06/2014,420.60
"Development, Business & Employment",Property & Design,COAK,Premises-Related Expenditure,Leasehold Rents,KEY ANGELS LTD,13/06/2014,400.00
"Development, Business & Employment",Property & Design,COAK,Premises-Related Expenditure,Leasehold Rents,Redacted Personal Information,13/06/2014,429.20
"Development, Business & Employment",Property & Design,COAK,Premises-Related Expenditure,Leasehold Rents,Redacted Personal Information,13/06/2014,452.65
"Development, Business & Employment",Property & Design,COAK,Premises-Related Expenditure,Leasehold Rents,CHURCHILL PL LIMITED,13/06/2014,420.60
"Development, Business & Employment",Property & Design,COAK,Premises-Related Expenditure,Leasehold Rents,CHURCHILL PL LIMITED,13/06/2014,385.50
"Development, Business & Employment",Property & Design,COAK,Premises-Related Expenditure,Leasehold Rents,CHURCHILL PL LIMITED,13/06/2014,420.60
"Development, Business & Employment",Property & Design,COAK,Premises-Related Expenditure,Leasehold Rents,KEY ANGELS LTD,13/06/2014,455.00
"Development, Business & Employment",Property & Design,COAK,Premises-Related Expenditure,R&M -Buildings DLO Charge,George Birchall Limited,04/06/2014,312.94
"Development, Business & Employment",Property & Design,COAK,Premises-Related Expenditure,Gas,E.ON ,24/06/2014,155.79
"Development, Business & Employment",Property & Design,COAK,Premises-Related Expenditure,R&M -Buildings DLO Charge,RCS ROOFING CONSTRUCTION SERVICES LTD,17/06/2014,"1,310.00"
"Development, Business & Employment",Property & Design,COAK,Premises-Related Expenditure,Electricity,West Mercia Energy (WME),16/06/2014,439.43
"Development, Business & Employment",Property & Design,COAK,Premises-Related Expenditure,General Rents,THE WREKIN HOUSING TRUST (INVOICES ONLY),20/06/2014,"1,700.34"
"Development, Business & Employment",Property & Design,COAK,Premises-Related Expenditure,General Rents,THE WREKIN HOUSING TRUST (INVOICES ONLY),20/06/2014,"1,446.18"
"Development, Business & Employment",Property & Design,COAK,Premises-Related Expenditure,R&M -Buildings DLO Charge,VPS (UK) LTD,20/06/2014,138.26
"Development, Business & Employment",Property & Design,COAK,Premises-Related Expenditure,Electricity,West Mercia Energy (WME),23/06/2014,794.34
"Development, Business & Employment",Property & Design,COAK,Supplies & Services,Security Services,BUSINESS WATCH GUARDING LIMITED,11/06/2014,"2,659.45"
"Development, Business & Employment",Property & Design,COAP,Premises-Related Expenditure,Service Contracts,AQUALOGIC (WC) LTD,11/06/2014,114.50
"Development, Business & Employment",Property & Design,COAP,Premises-Related Expenditure,R&M -Buildings DLO Charge,GRANVILLE CONSTRUCTION & MAINTENANCE LTD,13/06/2014,212.00
"Development, Business & Employment",Property & Design,COAP,Premises-Related Expenditure,R&M -Buildings DLO Charge,GRANVILLE CONSTRUCTION & MAINTENANCE LTD,13/06/2014,849.00
"Development, Business & Employment",Property & Design,COAP,Premises-Related Expenditure,R&M -Buildings DLO Charge,Protec Fire Detection PLC,13/06/2014,123.20
"Development, Business & Employment",Property & Design,COAP,Premises-Related Expenditure,R&M -Buildings DLO Charge,George Birchall Limited,11/06/2014,115.80
"Development, Business & Employment",Property & Design,COAP,Premises-Related Expenditure,R&M -Buildings DLO Charge,ERIC NEVILLE CATERING SUPPLIES LTD,11/06/2014,114.00
"Development, Business & Employment",Property & Design,COAP,Premises-Related Expenditure,R&M -Buildings DLO Charge,LOCSAFE SECURITY SYSTEMS,11/06/2014,451.04
"Development, Business & Employment",Property & Design,COAP,Premises-Related Expenditure,R&M -Buildings DLO Charge,A1 Glass & Glazing (Shropshire) Limited,11/06/2014,265.00
"Development, Business & Employment",Property & Design,COAP,Premises-Related Expenditure,R&M -Buildings DLO Charge,George Birchall Limited,11/06/2014,222.26
"Development, Business & Employment",Property & Design,COAP,Premises-Related Expenditure,R&M -Buildings DLO Charge,George Birchall Limited,11/06/2014,168.00
"Development, Business & Employment",Property & Design,COAP,Premises-Related Expenditure,R&M -Buildings DLO Charge,JCE & SONS LTD,11/06/2014,250.00
"Development, Business & Employment",Property & Design,COAP,Premises-Related Expenditure,R&M -Buildings DLO Charge,Lift Source (UK) Limited,11/06/2014,200.00
"Development, Business & Employment",Property & Design,COAP,Premises-Related Expenditure,R&M -Buildings DLO Charge,OSPREY WATER MANAGEMENT LTD,13/06/2014,276.40
"Development, Business & Employment",Property & Design,COAP,Premises-Related Expenditure,Service Contracts,CHUBB FIRE & SECURITY LTD,04/06/2014,138.18
"Development, Business & Employment",Property & Design,COAP,Premises-Related Expenditure,R&M -Buildings DLO Charge,TAYLORS MECHANICAL H & P SERVICES LTD,03/06/2014,224.25
"Development, Business & Employment",Property & Design,COAP,Premises-Related Expenditure,R&M -Buildings DLO Charge,George Birchall Limited,03/06/2014,131.25
"Development, Business & Employment",Property & Design,COAP,Premises-Related Expenditure,R&M -Buildings DLO Charge,PP ELECTRICAL SERVICES (Shropshire) Ltd,05/06/2014,136.60
"Development, Business & Employment",Property & Design,COAP,Premises-Related Expenditure,R&M -Buildings DLO Charge,JONES & HAMPTON LTD,05/06/2014,219.40
"Development, Business & Employment",Property & Design,COAP,Premises-Related Expenditure,R&M -Buildings DLO Charge,Lift Source (UK) Limited,05/06/2014,220.00
"Development, Business & Employment",Property & Design,COAP,Premises-Related Expenditure,R&M -Buildings DLO Charge,Lift Source (UK) Limited,05/06/2014,150.00
"Development, Business & Employment",Property & Design,COAP,Premises-Related Expenditure,R&M -Buildings DLO Charge,Lift Source (UK) Limited,05/06/2014,200.00
"Development, Business & Employment",Property & Design,COAP,Premises-Related Expenditure,R&M -Buildings DLO Charge,PP ELECTRICAL SERVICES (Shropshire) Ltd,05/06/2014,560.46
"Development, Business & Employment",Property & Design,COAP,Premises-Related Expenditure,R&M -Buildings DLO Charge,JONES & HAMPTON LTD,05/06/2014,897.74
"Development, Business & Employment",Property & Design,COAP,Premises-Related Expenditure,R&M -Buildings DLO Charge,ASLES (TOOL HIRE & SALES) LTD,05/06/2014,139.00
"Development, Business & Employment",Property & Design,COAP,Premises-Related Expenditure,R&M -Buildings DLO Charge,ASLES (TOOL HIRE & SALES) LTD,05/06/2014,212.00
"Development, Business & Employment",Property & Design,COAP,Premises-Related Expenditure,R&M -Buildings DLO Charge,CONCEPT ELEVATORS (MIDLANDS) LIMITED,05/06/2014,240.00
"Development, Business & Employment",Property & Design,COAP,Premises-Related Expenditure,R&M -Buildings DLO Charge,Lift Source (UK) Limited,05/06/2014,150.00
"Development, Business & Employment",Property & Design,COAP,Premises-Related Expenditure,R&M -Buildings DLO Charge,SECURITY WISE LTD,05/06/2014,280.00
"Development, Business & Employment",Property & Design,COAP,Premises-Related Expenditure,Service Contracts,PROKILL UK LIMITED,05/06/2014,108.94
"Development, Business & Employment",Property & Design,COAP,Premises-Related Expenditure,R&M -Buildings DLO Charge,PP ELECTRICAL SERVICES (Shropshire) Ltd,09/06/2014,665.00
"Development, Business & Employment",Property & Design,COAP,Premises-Related Expenditure,R&M -Buildings DLO Charge,PP ELECTRICAL SERVICES (Shropshire) Ltd,09/06/2014,247.10
"Development, Business & Employment",Property & Design,COAP,Premises-Related Expenditure,R&M -Buildings DLO Charge,AGS AUTOMATIC DOORS LTD,09/06/2014,420.00
"Development, Business & Employment",Property & Design,COAP,Premises-Related Expenditure,R&M -Buildings DLO Charge,GRA-BERN,09/06/2014,"1,388.75"
"Development, Business & Employment",Property & Design,COAP,Premises-Related Expenditure,R&M -Buildings DLO Charge,George Birchall Limited,04/06/2014,278.71
"Development, Business & Employment",Property & Design,COAP,Premises-Related Expenditure,R&M -Buildings DLO Charge,George Birchall Limited,04/06/2014,101.33
"Development, Business & Employment",Property & Design,COAP,Premises-Related Expenditure,Service Contracts,Automated building & energy controls,04/06/2014,"1,260.00"
"Development, Business & Employment",Property & Design,COAP,Premises-Related Expenditure,R&M -Buildings DLO Charge,George Birchall Limited,04/06/2014,115.80
"Development, Business & Employment",Property & Design,COAP,Premises-Related Expenditure,R&M -Buildings DLO Charge,GRANVILLE CONSTRUCTION & MAINTENANCE LTD,06/06/2014,580.00
"Development, Business & Employment",Property & Design,COAP,Premises-Related Expenditure,R&M -Buildings DLO Charge,GRANVILLE CONSTRUCTION & MAINTENANCE LTD,06/06/2014,887.00
"Development, Business & Employment",Property & Design,COAP,Premises-Related Expenditure,R&M -Buildings DLO Charge,George Birchall Limited,04/06/2014,414.10
"Development, Business & Employment",Property & Design,COAP,Premises-Related Expenditure,R&M -Buildings DLO Charge,PP ELECTRICAL SERVICES (Shropshire) Ltd,30/06/2014,259.06
"Development, Business & Employment",Property & Design,COAP,Premises-Related Expenditure,R&M -Buildings DLO Charge,JCE & SONS LTD,30/06/2014,349.38
"Development, Business & Employment",Property & Design,COAP,Premises-Related Expenditure,R&M -Buildings DLO Charge,SECURITY WISE LTD,30/06/2014,155.00
"Development, Business & Employment",Property & Design,COAP,Premises-Related Expenditure,R&M -Buildings DLO Charge,SECURITY WISE LTD,30/06/2014,110.00
"Development, Business & Employment",Property & Design,COAP,Premises-Related Expenditure,R&M -Buildings DLO Charge,GRA-BERN,20/06/2014,158.71
"Development, Business & Employment",Property & Design,COAP,Premises-Related Expenditure,R&M -Buildings DLO Charge,JONES & HAMPTON LTD,20/06/2014,"1,109.50"
"Development, Business & Employment",Property & Design,COAP,Premises-Related Expenditure,R&M -Buildings DLO Charge,JONES & HAMPTON LTD,20/06/2014,118.30
"Development, Business & Employment",Property & Design,COAP,Premises-Related Expenditure,Service Contracts,OSPREY WATER MANAGEMENT LTD,13/06/2014,517.50
"Development, Business & Employment",Property & Design,COAP,Premises-Related Expenditure,R&M -Buildings DLO Charge,SECURITY WISE LTD,13/06/2014,220.00
"Development, Business & Employment",Property & Design,COAP,Premises-Related Expenditure,R&M -Buildings DLO Charge,George Birchall Limited,09/06/2014,108.56
"Development, Business & Employment",Property & Design,COAP,Premises-Related Expenditure,R&M -Buildings DLO Charge,Protec Fire Detection PLC,09/06/2014,108.91
"Development, Business & Employment",Property & Design,COAP,Premises-Related Expenditure,R&M -Buildings DLO Charge,George Birchall Limited,09/06/2014,108.56
"Development, Business & Employment",Property & Design,COAP,Premises-Related Expenditure,Service Contracts,SECURITY WISE LTD,20/06/2014,150.00
"Development, Business & Employment",Property & Design,COAP,Premises-Related Expenditure,Service Contracts,ADT FIRE & SECURITY PLC,27/06/2014,-150.40
"Development, Business & Employment",Property & Design,COAP,Premises-Related Expenditure,R&M -Buildings DLO Charge,ARJOHUNTLEIGH UK,17/06/2014,162.00
"Development, Business & Employment",Property & Design,COAP,Premises-Related Expenditure,Service Contracts,SECURITY WISE LTD,18/06/2014,345.00
"Development, Business & Employment",Property & Design,COAP,Premises-Related Expenditure,R&M -Buildings DLO Charge,STIRCHLEY & BROOKSIDE PARISH COUNCIL,27/06/2014,"3,213.64"
"Development, Business & Employment",Property & Design,COAP,Premises-Related Expenditure,R&M -Buildings DLO Charge,PP ELECTRICAL SERVICES (Shropshire) Ltd,27/06/2014,490.00
"Development, Business & Employment",Property & Design,COAP,Premises-Related Expenditure,R&M -Buildings DLO Charge,PP ELECTRICAL SERVICES (Shropshire) Ltd,27/06/2014,"1,158.76"
"Development, Business & Employment",Property & Design,COAP,Premises-Related Expenditure,Service Contracts,ADT FIRE & SECURITY PLC,27/06/2014,-100.27
"Development, Business & Employment",Property & Design,COAP,Premises-Related Expenditure,R&M -Buildings DLO Charge,AGS AUTOMATIC DOORS LTD,25/06/2014,669.48
"Development, Business & Employment",Property & Design,COAP,Premises-Related Expenditure,Service Contracts,ADT FIRE & SECURITY PLC,25/06/2014,149.10
"Development, Business & Employment",Property & Design,COAP,Premises-Related Expenditure,Service Contracts,SECURITY WISE LTD,18/06/2014,345.00
"Development, Business & Employment",Property & Design,COAP,Premises-Related Expenditure,R&M -Buildings DLO Charge,SECURITY WISE LTD,18/06/2014,395.00
"Development, Business & Employment",Property & Design,COAP,Premises-Related Expenditure,Service Contracts,SECURITY WISE LTD,18/06/2014,345.00
"Development, Business & Employment",Property & Design,COAP,Premises-Related Expenditure,Service Contracts,SHIELD ON-SITE SERVICES LTD,18/06/2014,146.22
"Development, Business & Employment",Property & Design,COAP,Premises-Related Expenditure,Service Contracts,SECURITY WISE LTD,18/06/2014,345.00
"Development, Business & Employment",Property & Design,COAP,Premises-Related Expenditure,Service Contracts,SECURITY WISE LTD,18/06/2014,142.00
"Development, Business & Employment",Property & Design,COAP,Premises-Related Expenditure,R&M -Buildings DLO Charge,ADT FIRE & SECURITY PLC,20/06/2014,149.10
"Development, Business & Employment",Property & Design,COAP,Premises-Related Expenditure,Service Contracts,CHUBB FIRE & SECURITY LTD,20/06/2014,759.14
"Development, Business & Employment",Property & Design,COAP,Premises-Related Expenditure,Service Contracts,ADT FIRE & SECURITY PLC,20/06/2014,-100.27
"Development, Business & Employment",Property & Design,COAP,Premises-Related Expenditure,Service Contracts,ADT FIRE & SECURITY PLC,20/06/2014,342.24
"Development, Business & Employment",Property & Design,COAP,Premises-Related Expenditure,Service Contracts,ADT FIRE & SECURITY PLC,20/06/2014,422.98
"Development, Business & Employment",Property & Design,COAP,Premises-Related Expenditure,Service Contracts,ADT FIRE & SECURITY PLC,20/06/2014,100.27
